Workbook

Sheet 21MBA221
A1: RV Institute of Management
A2: Autonomous Institution Affiliated to BCU
A3: MBA Programme II Semester
A4: Course Outcome Report
A5: Macro Economics
A6: Name of the Course Teacher: | I6: Sub. Code: | L6: 21MBA221
A7: Dr.Rashmi Shetty, Dr.Anupama K Malagi, Prof. Vidyadhar Hegde | J7: Sec: | L7: ABC
D8: Semester II
D9: Batch 2021-23
C11: Section A | H11: Section B | K11: Sec-C
A12: Question number | C12: 1 | D12: 2 | E12: 3 | F12: 4 | G12: 5 | H12: 6 | I12: 7 | J12: 8 | K12: 9 | L12: External Exam | M12: Mid Term Exam
A13: Course outcome | C13: CO1 | D13: CO2 | E13: CO3 | F13: CO1 | G13: CO3 | H13: CO1 | I13: CO2 | J13: CO3 | K13: CO1 | L13: Marks | M13: Marks
A14: Maximum marks | C14: 5 | D14: 5 | E14: 5 | F14: 5 | G14: 5 | H14: 5 | I14: 5 | J14: 10 | K14: 10 | L14: 50 | M14: 50
A15: Student Reg. No | B15: Student Name | C15: =C14*0.64 -> 3.2 | D15: =D14*0.64 -> 3.2 | E15: 3.2 | F15: 3.2 | G15: 3.2 | H15: 3.2 | I15: 3.2 | J15: 6.4 | K15: 6.4 | L15: =L14*0.357142 -> 18
A16: P18FW21M0001 | B16: VIPUL VILAS NAIK | C16: 3 | F16: 4 | G16: 5 | H16: 7 | I16: 4 | K16: 7 | L16: 34 | M16: =SUM(C16:K16) -> 30
A17: P18FW21M0002 | B17: M PRANEETH KUMAR REDDY | C17: 4 | F17: 2 | G17: 5 | H17: 6 | J17: 3 | K17: 9 | L17: 29 | M17: =SUM(C17:K17) -> 29
A18: P18FW21M0003 | B18: NIKHIL S ANJANALLI | C18: 4 | F18: 4 | G18: 5 | H18: 9 | J18: 7 | K18: 10 | L18: 36 | M18: 39
A19: P18FW21M0004 | B19: KARTHIK P SHETTY | C19: 4 | F19: 3 | G19: 3 | H19: 6 | I19: 5 | L19: 30 | M19: 21
A20: P18FW21M0005 | B20: AMITH C | C20: 4 | F20: 4 | G20: 5 | H20: 9 | I20: 6 | K20: 4 | L20: 31 | M20: 32
A21: P18FW21M0006 | B21: AISHWARYA G | C21: 4 | F21: 4 | G21: 5 | H21: 7 | I21: 8 | K21: 6 | L21: 25 | M21: 34
A22: P18FW21M0007 | B22: AKANKSH P | C22: 5 | F22: 3 | G22: 4 | H22: 8 | I22: 7 | K22: 11 | L22: 33 | M22: 38
A23: P18FW21M0008 | B23: SACHITH B K | C23: 4 | F23: 0 | G23: 3 | H23: 5 | J23: 8 | K23: 9 | L23: 30 | M23: 29
A24: P18FW21M0009 | B24: CHAITANYA KAMATAGI B | C24: 4.5 | F24: 3.5 | G24: 5 | H24: 9 | J24: 9 | K24: 10 | L24: 39 | M24: 41
A25: P18FW21M0010 | B25: AKASH RACHAPPA KHANAGAVI | C25: 3 | F25: 3 | G25: 5 | H25: 9 | I25: 8 | J25: 0 | K25: 6 | L25: 33 | M25: 34
A26: P18FW21M0011 | B26: SOURAV SADANAND SWAR | C26: 5 | E26: 3 | G26: 2 | H26: 6 | I26: 4 | L26: 31 | M26: 20
A27: P18FW21M0012 | B27: NISHANTH KRISHNA | C27: 4 | F27: 2 | G27: 2 | H27: 8 | J27: 2 | K27: 6 | L27: 30 | M27: 24
A28: P18FW21M0013 | B28: MEHUL V BHASKAR | C28: 1 | F28: 2 | G28: 1 | H28: 4 | I28: 6 | K28: 3 | L28: 26 | M28: 17
A29: P18FW21M0014 | B29: SHUBHAM RAJENDRA REVANKAR | C29: 3 | F29: 3 | G29: 1 | H29: 5 | I29: 8 | K29: 8 | L29: 29 | M29: 28
A30: P18FW21M0015 | B30: SHETTY TRUPTHI CHANDRAHAS | C30: 4 | F30: 4 | G30: 2.5 | H30: 8 | I30: 8 | K30: 10 | L30: 37 | M30: 37
A31: P18FW21M0016 | B31: SHEEBAL M S | C31: 5 | F31: 3 | G31: 4 | H31: 8 | I31: 9 | K31: 8 | L31: 35 | M31: 37
A32: P18FW21M0017 | B32: VISHNU KUMAR | C32: 5 | F32: 4 | G32: 5 | H32: 8 | I32: 8 | K32: 11 | L32: 37 | M32: 41
A33: P18FW21M0018 | B33: HARSHITHA SRINIVAS | C33: 4 | F33: 4 | G33: 5 | H33: 9 | I33: 8 | K33: 9 | L33: 39 | M33: 39
A34: P18FW21M0019 | B34: SAGI SAMPI | C34: 4 | F34: 4 | G34: 5 | H34: 9 | I34: 8 | K34: 6 | L34: 37 | M34: 36
A35: P18FW21M0020 | B35: PAULOMEE BARUAH | C35: 4 | F35: 2 | G35: 5 | H35: 9 | I35: 8 | K35: 9 | L35: 30 | M35: 37
A36: P18FW21M0021 | B36: NEETHA KAMATH | C36: 4 | F36: 3 | G36: 5 | H36: 6 | I36: 4 | K36: 5 | L36: 34 | M36: 27
A37: P18FW21M0022 | B37: ADITYA UDAY HEGDE | C37: 3 | F37: 2.5 | G37: 2.5 | H37: 7 | I37: 4 | J37: 0 | K37: 8 | L37: 35 | M37: 27
A38: P18FW21M0023 | B38: SHREYAS G A | C38: 4 | D38: 1 | F38: 1 | G38: 5 | H38: 7 | I38: 4 | J38: 8 | K38: 1 | L38: 35 | M38: 31
A39: P18FW21M0024 | B39: SRUJANA S | C39: 5 | F39: 4 | G39: 5 | H39: 8 | J39: 9 | K39: 12 | L39: 38 | M39: 43
A40: P18FW21M0025 | B40: PRAJWAL S N | C40: 2 | D40: 2 | F40: 3 | G40: 5 | H40: 7 | I40: 6 | J40: 4 | K40: 7 | L40: 35 | M40: 36
A41: P18FW21M0026 | B41: SUCHITRA G | C41: 2 | F41: 4.5 | G41: 2.5 | H41: 7 | I41: 4 | J41: 2 | K41: 2 | L41: 34 | M41: 24
A42: P18FW21M0027 | B42: SANKET SURESH SHIRSAT | C42: 4 | F42: 2 | G42: 5 | H42: 8 | I42: 8 | K42: 5 | L42: 34 | M42: 32
A43: P18FW21M0028 | B43: ANIKET SANJAY REVANKAR | C43: 4 | F43: 4 | G43: 5 | H43: 9 | J43: 9 | K43: 8 | L43: 37 | M43: 39
A44: P18FW21M0029 | B44: AKHILA H | C44: 4 | D44: 4 | F44: 3 | H44: 6 | I44: 4 | K44: 5 | L44: 25 | M44: 26
A45: P18FW21M0030 | B45: M LUQMAN NAWAZ | C45: 3 | D45: 2 | F45: 3 | G45: 5 | H45: 6 | I45: 5 | J45: 6 | K45: 6 | L45: 38 | M45: 36
A46: P18FW21M0031 | B46: MADHURA A | C46: 3 | F46: 4 | G46: 4 | H46: 7 | I46: 8 | J46: 0 | K46: 8 | L46: 39 | M46: 34
A47: P18FW21M0032 | B47: H V SHREEVATSA | C47: 2 | F47: 3 | G47: 1 | H47: 5 | I47: 5 | K47: 5 | L47: 31 | M47: 21
A48: P18FW21M0033 | B48: LILIMA DASH | C48: 4 | F48: 3 | G48: 1 | H48: 5 | I48: 6 | K48: 7 | L48: 32 | M48: 26
A49: P18FW21M0034 | B49: KUMAR ASHUTOSH | C49: 2 | F49: 3 | G49: 0 | H49: 4 | I49: 4 | J49: 0 | K49: 0 | L49: 26 | M49: 13
A50: P18FW21M0035 | B50: RAHUL S SANGOLLI | C50: 3 | F50: 3 | G50: 2 | H50: 5 | I50: 8 | K50: 6 | L50: 25 | M50: 27
A51: P18FW21M0036 | B51: GIRISH N NASHI | C51: 4 | F51: 2 | G51: 5 | H51: 9 | I51: 8 | K51: 3 | L51: 33 | M51: 31
A52: P18FW21M0037 | B52: ANKITA GAJANAN NAIK | C52: 0 | D52: 0 | G52: 2.5 | H52: 9 | J52: 7 | K52: 5 | L52: 28 | M52: 24
A53: P18FW21M0038 | B53: GURUBASAVARAJ K M | C53: 3 | F53: 3 | G53: 5 | H53: 5 | I53: 6 | K53: 7 | L53: 34 | M53: 29
A54: P18FW21M0039 | B54: ANANYA P HEGDE | C54: 5 | F54: 3 | G54: 2 | H54: 7 | I54: 8 | K54: 7 | L54: 27 | M54: 32
A55: P18FW21M0040 | B55: NIVEDITHA K SWAMY | C55: 4 | F55: 2 | G55: 5 | H55: 8 | I55: 8 | K55: 11 | L55: 37 | M55: 38
A56: P18FW21M0041 | B56: LIKHITHA L | C56: 3 | F56: 2 | G56: 5 | H56: 7 | I56: 7 | K56: 1 | L56: 26 | M56: 25
A57: P18FW21M0042 | B57: RAHUL RAM BHAT | C57: 4 | F57: 3 | G57: 5 | H57: 8 | J57: 7 | K57: 6 | L57: 35 | M57: 33
A58: P18FW21M0043 | B58: AMIT KAMADOLLISHETTARU | C58: 3 | F58: 4 | G58: 5 | H58: 8 | I58: 8 | K58: 7 | L58: 32 | M58: 35
A59: P18FW21M0044 | B59: POOJARANI TALAWAR | C59: 1 | F59: 4 | G59: 5 | H59: 8 | J59: 7 | K59: 4 | L59: 29 | M59: 29
A60: P18FW21M0045 | B60: ABHITHA K | C60: 3 | F60: 1 | G60: 5 | H60: 4 | J60: 0 | K60: 3 | L60: 28 | M60: 16
A61: P18FW21M0046 | B61: S SHREYAS | C61: 4 | F61: 2 | G61: 2 | I61: 2 | J61: 5 | K61: 6 | L61: 25 | M61: 21
A62: P18FW21M0047 | B62: ABHISHEK SHENOY | C62: 3 | F62: 0 | G62: 2 | H62: 8 | I62: 7 | K62: 7 | L62: 29 | M62: 27
A63: P18FW21M0048 | B63: B S SUSHEN | C63: 4 | F63: 5 | G63: 5 | H63: 8 | I63: 9 | K63: 9 | L63: 35 | M63: 40
A64: P18FW21M0049 | B64: PRAJWALA H | C64: 5 | F64: 4 | G64: 1 | H64: 9 | I64: 7 | K64: 8 | L64: 35 | M64: 34
A65: P18FW21M0050 | B65: VAISHNAVI N | C65: 5 | F65: 4 | G65: 5 | H65: 7 | J65: 9 | K65: 13 | L65: 39 | M65: 43
A66: P18FW21M0051 | B66: DEEPAK GIRISH KALYANI | C66: 3 | F66: 4 | G66: 3 | H66: 5 | I66: 5 | K66: 5 | L66: 36 | M66: 25
A67: P18FW21M0052 | B67: ISAAC JESSE K | C67: 4 | E67: 0 | G67: 2 | H67: 4 | I67: 5 | K67: 3 | L67: 15 | M67: 18
A68: P18FW21M0053 | B68: SUPRIYA GOVIND BELSARE | C68: 4 | F68: 4 | G68: 5 | H68: 8 | J68: 10 | K68: 7 | L68: 31 | M68: 38
A69: P18FW21M0054 | B69: VINAYAK RAO GAIKWAD K | C69: 0 | F69: 4 | G69: 1 | H69: 6 | I69: 0 | K69: 3 | L69: 24 | M69: 14
A70: P18FW21M0055 | B70: SUTOPA DEB | C70: 4 | D70: 2 | F70: 4 | H70: 8 | J70: 0 | K70: 6 | L70: 36 | M70: 24
A71: P18FW21M0056 | B71: M S SUKRUT | C71: 4 | F71: 3 | G71: 1 | H71: 6 | I71: 6 | K71: 6 | L71: AB | M71: 26
A72: P18FW21M0057 | B72: BHASKARA PRABHU | C72: 2 | F72: 2 | G72: 5 | H72: 8 | I72: 8 | K72: 3 | L72: 31 | M72: 28
A73: P18FW21M0058 | B73: PRAKASH SHIVAKUMAR | C73: 3 | F73: 3 | G73: 5 | H73: 6 | I73: 4 | K73: 3 | L73: 31 | M73: 24
A74: P18FW21M0059 | B74: AMOGHA Y G | C74: 4 | F74: 3 | G74: 1 | H74: 4 | I74: 3 | K74: 6 | L74: 28 | M74: 21
A75: P18FW21M0060 | B75: BHARATH K S | C75: 4 | D75: 3 | F75: 3 | G75: 2 | H75: 5 | J75: 0 | K75: 8 | L75: 27 | M75: 25
A76: P18FW21M0061 | B76: AKANKSH K G | C76: 2 | F76: 1 | G76: 5 | H76: 4 | J76: 4 | K76: 12 | L76: 31 | M76: 28
A77: P18FW21M0062 | B77: BERNARD FERNANDES | C77: 4 | F77: 0 | G77: 4 | H77: 7 | I77: 7 | K77: 1 | L77: 28 | M77: 23
A78: P18FW21M0063 | B78: AISHWARYA P | C78: 4 | F78: 3 | G78: 2 | H78: 6 | I78: 7 | K78: 4 | L78: 25 | M78: 26
A79: P18FW21M0064 | B79: VIOLA PINTO | C79: 4 | F79: 2 | G79: 2 | H79: 5 | I79: 5 | K79: 6 | L79: 33 | M79: 24
A80: P18FW21M0065 | B80: VARSHA | C80: 4 | F80: 3 | G80: 5 | I80: 8 | J80: 9 | K80: 5 | L80: 33 | M80: 34
A81: P18FW21M0066 | B81: CHIDRI BALAJI | C81: 4 | F81: 3 | G81: 2 | H81: 8 | I81: 6 | K81: 10 | L81: 34 | M81: =SUM(C81:K81) -> 33
A82: P18FW21M0067 | B82: GAGANDEEP V N | C82: 3 | F82: 3 | G82: 5 | H82: 3 | I82: 3 | K82: 5 | L82: 30 | M82: 22
A83: P18FW21M0068 | B83: PRAJWALA | C83: 4.5 | F83: 4 | G83: 5 | H83: 9 | J83: 7 | K83: 8 | L83: 37 | M83: 38
A84: P18FW21M0069 | B84: POORNIMA L | C84: 4.5 | E84: 4 | G84: 5 | H84: 9 | J84: 8 | K84: 6 | L84: 32 | M84: 37
A85: P18FW21M0070 | B85: SHUBIKSHA S | C85: 3 | D85: 3 | F85: 4 | G85: 0 | H85: 4 | I85: 5 | K85: 4 | L85: 33 | M85: 23
A86: P18FW21M0071 | B86: ANUSHA | C86: 3 | D86: 0 | F86: 1 | G86: 0 | H86: 4 | I86: 1 | J86: 9 | K86: 6 | L86: 26 | M86: 24
A87: P18FW21M0072 | B87: P T KIRTI | C87: 4 | F87: 4 | G87: 5 | H87: 6 | I87: 0 | K87: 8 | L87: 29 | M87: 27
A88: P18FW21M0073 | B88: SAMEEKSHA M P | C88: 4.5 | E88: 4 | G88: 5 | I88: 8 | J88: 10 | K88: 13 | L88: 34 | M88: 45
A89: P18FW21M0074 | B89: KAVYAPRIYA J | C89: 3 | F89: 2 | G89: 5 | H89: 7 | I89: 8 | K89: 10 | L89: 33 | M89: 35
A90: P18FW21M0075 | B90: RAKSHITH R T | C90: 4 | F90: 2 | G90: 5 | I90: 8 | J90: 7 | K90: 10 | L90: 32 | M90: 36
A91: P18FW21M0076 | B91: SHUBHA R | C91: 4 | F91: 4 | G91: 5 | H91: 8 | J91: 9 | K91: 13 | L91: 34 | M91: 43
A92: P18FW21M0077 | B92: BASAVARAJ | C92: 4 | F92: 4 | G92: 0 | H92: 6 | I92: 5 | K92: 9 | L92: 29 | M92: 28
A93: P18FW21M0078 | B93: MANOJ RAKSHATH B S | C93: 2 | F93: 3 | G93: 5 | H93: 0 | I93: 0 | K93: 7 | L93: 27 | M93: 17
A94: P18FW21M0079 | B94: ADITI RANI | C94: 4 | F94: 4 | G94: 5 | H94: 8 | J94: 10 | K94: 10 | L94: 32 | M94: 41
A95: P18FW21M0080 | B95: DIVYA SHREE M | C95: 5 | F95: 4 | G95: 3 | H95: 9 | I95: 6 | J95: 0 | K95: 8 | L95: 35 | M95: 35
A96: P18FW21M0081 | B96: VARUN S BHARADWAJ | C96: 4 | F96: 3 | G96: 2.5 | H96: 7.5 | I96: 7 | K96: 9 | L96: 33 | M96: 33
A97: P18FW21M0082 | B97: S KARTHIK | C97: 5 | F97: 4 | G97: 0 | H97: 7 | I97: 7 | K97: 12 | L97: 31 | M97: 35
A98: P18FW21M0083 | B98: NEELAMMA M K | C98: 4 | E98: 3 | G98: 5 | H98: 8 | J98: 7 | K98: 13 | L98: 35 | M98: 40
A99: P18FW21M0084 | B99: PRAMOD K L | C99: 3 | F99: 3 | G99: 3 | H99: 8 | I99: 1 | J99: 0 | K99: 7 | L99: 32 | M99: 25
A100: P18FW21M0085 | B100: NAMRATHA N | C100: 4 | E100: 4 | G100: 1 | H100: 8 | J100: 7 | K100: 8 | L100: 33 | M100: 32
A101: P18FW21M0086 | B101: ANVITH KUMAR | C101: 3 | D101: 3 | G101: 0 | H101: 8 | I101: 9 | K101: 7 | L101: 31 | M101: 30
A102: P18FW21M0087 | B102: BHOOMIKA BHAT | C102: 4 | D102: 2 | G102: 5 | H102: 9 | I102: 0 | K102: 6 | L102: 30 | M102: 26
A103: P18FW21M0088 | B103: SOUMYA GANAPATI HEGDE | C103: 5 | D103: 2 | G103: 5 | I103: 8 | J103: 6 | K103: 9 | L103: 31 | M103: 35
A104: P18FW21M0089 | B104: SHREEKRISHNA | C104: 4 | D104: 1 | F104: 3 | H104: 9 | I104: 4 | K104: 9 | L104: 34 | M104: 30
A105: P18FW21M0090 | B105: OLETI SAI SREENITHYA | C105: 4 | D105: 4 | F105: 4 | H105: 9 | J105: 9 | K105: 11 | L105: 30 | M105: 41
A106: P18FW21M0091 | B106: RAMANUJAM H J | C106: 3.5 | E106: 4 | F106: 3 | H106: 6 | I106: 7 | K106: 8 | L106: 32 | M106: 32
A107: P18FW21M0092 | B107: CHAVI JAGADEESH | C107: 3 | E107: 0 | F107: 3 | H107: 7 | J107: 10 | K107: 7 | L107: 28 | M107: 30
A108: P18FW21M0093 | B108: DESAI JATIN ARUN | C108: 4 | E108: 2 | F108: 3 | G108: 0 | H108: 5 | I108: 3 | K108: 1 | L108: 24 | M108: 18
A109: P18FW21M0094 | B109: MALLESH S | C109: 3 | F109: 3 | G109: 5 | I109: 8 | J109: 8 | K109: 8 | L109: 35 | M109: 35
A110: P18FW21M0095 | B110: SRINIDHI K | C110: 4 | F110: 4 | G110: 5 | H110: 9 | J110: 9 | K110: 8 | L110: 36 | M110: 39
A111: P18FW21M0096 | B111: B SHASHANK | C111: 4 | F111: 4 | G111: 5 | I111: 8 | J111: 7 | K111: 12 | L111: 33 | M111: 40
A112: P18FW21M0097 | B112: YOGASHREE C N | C112: 5 | E112: 3 | F112: 4 | H112: 8 | I112: 6 | K112: 11 | L112: 27 | M112: 37
A113: P18FW21M0098 | B113: CHARANA T U | C113: 3 | F113: 3 | G113: 0 | H113: 7 | I113: 6 | K113: 8 | L113: 29 | M113: 27
A114: P18FW21M0099 | B114: NAGARAJ GAJANAN HEGDE | C114: 4 | D114: 4 | G114: 5 | H114: 9 | J114: 8 | K114: 10 | L114: 32 | M114: 40
A115: P18FW21M0100 | B115: NIKITHA J SHANBHOG | C115: 4 | F115: 4 | G115: 0 | H115: 8 | I115: 7 | K115: 8 | L115: 33 | M115: 31
A116: P18FW21M0101 | B116: YASHASWINI P | C116: 4 | D116: 4 | F116: 4 | H116: 8 | I116: 8 | K116: 8 | L116: 22 | M116: 36
A117: P18FW21M0102 | B117: TANUSHREE R | C117: 4 | F117: 4 | G117: 2 | H117: 8 | I117: 4 | K117: 2 | L117: 21 | M117: 24
A118: P18FW21M0103 | B118: CHETHAN KUMAR V A | C118: 4 | D118: 4 | F118: 3 | H118: 7 | J118: 5 | K118: 10 | L118: 29 | M118: 33
A119: P18FW21M0104 | B119: NAYAN KUMAR | C119: 3 | D119: 2 | F119: 3 | H119: 6 | I119: 7 | K119: 4 | L119: 37 | M119: 25
A120: P18FW21M0105 | B120: DEEPAK GOPALAKRISHNAN | C120: 2 | D120: 4 | E120: 3 | I120: 0 | J120: 4 | K120: 8 | L120: 21 | M120: 21
A121: P18FW21M0106 | B121: POORNAPRAJNYA K MANGALVEDI | C121: 3 | E121: 2 | G121: 0 | H121: 8 | J121: 7 | K121: 13 | L121: 30 | M121: 33
A122: P18FW21M0107 | B122: JENISHA MENEZES | C122: 4 | E122: 0 | G122: 0 | H122: 9 | I122: 8 | J122: 0 | K122: 12 | L122: 28 | M122: 33
A123: P18FW21M0108 | B123: SRAVANI SUNIL MHALSEKAR | C123: 4.5 | F123: 2 | G123: 5 | H123: 9 | I123: 9 | K123: 11 | L123: 32 | M123: 41
A124: P18FW21M0109 | B124: M RITISH | C124: 3 | F124: 3 | G124: 0 | H124: 7 | I124: 0 | K124: 0 | L124: 29 | M124: 13
A125: P18FW21M0110 | B125: DHANYA S SHARMA | C125: 4 | F125: 4 | G125: 1 | H125: 5 | J125: 0 | K125: 11 | L125: 25 | M125: 25
A126: P18FW21M0111 | B126: PREETHAM D VARMA | C126: 3.5 | D126: 0 | F126: 2 | H126: 9 | I126: 9 | K126: 5 | L126: 25 | M126: 29
A127: P18FW21M0112 | B127: DHIRAJKUMAR BELAVADI | C127: 4 | F127: 3 | G127: 3 | H127: 7 | I127: 8 | K127: 11 | L127: 26 | M127: 36
A128: P18FW21M0113 | B128: FERNANDES RICHA FLORINDA | C128: 4 | F128: 3 | G128: 0 | H128: 7 | J128: 8 | K128: 7 | L128: 26 | M128: 29
A129: P18FW21M0114 | B129: MEGHA U JOSHI | C129: 4 | E129: 0 | F129: 3.5 | H129: 8.5 | J129: 10 | K129: 10 | L129: 35 | M129: 36
A130: P18FW21M0116 | B130: DINAH NEETHA NORONHA | C130: 3 | F130: 3 | G130: 2 | H130: 5 | I130: 6 | K130: 4 | L130: 29 | M130: 23
A131: P18FW21M0117 | B131: HEGDE PAVANA GANAPATHI | C131: 4 | D131: 0 | F131: 3 | H131: 9 | J131: 10 | K131: 11 | L131: 32 | M131: 37
A132: P18FW21M0118 | B132: LOYSTON CRASTA | C132: 3 | E132: 0 | F132: 0 | H132: 6 | J132: 7 | K132: 6 | L132: 21 | M132: 22
A133: P18FW21M0119 | B133: GANESH HEGDE | C133: 4 | D133: 4 | G133: 1 | H133: 7 | J133: 1 | K133: 7 | L133: 26 | M133: 24
A134: P18FW21M0120 | B134: ANUSHA PRAKASH | C134: 4 | D134: 1 | G134: 0 | H134: 9 | I134: 7 | J134: 0 | K134: 11 | L134: 26 | M134: 32
A135: P18FW21M0121 | B135: ANJANA KSHIRASAGAR | C135: 3 | F135: 3 | G135: 3 | H135: 6.5 | J135: 0 | K135: 10 | L135: 35 | M135: 26
A136: P18FW21M0122 | B136: JAGADISH SHENOY R | C136: 4 | F136: 3 | G136: 1 | H136: 8 | I136: 6 | K136: 10 | L136: 34 | M136: 32
A137: P18FW21M0123 | B137: MADHAN KUMAR C S | C137: 4 | D137: 4 | F137: 4 | H137: 9 | J137: 0 | K137: 11 | L137: 30 | M137: 32
A138: P18FW21M0124 | B138: TEJAS H P | C138: 3 | E138: 0 | F138: 2 | H138: 0 | J138: 8 | K138: 2 | L138: 22 | M138: 15
A139: P18FW21M0125 | B139: DHANUSH K V | C139: 3 | F139: 3 | G139: 0 | H139: 6 | I139: 6 | K139: 11 | L139: 27 | M139: 29
A140: P18FW21M0126 | B140: SWAMI SAMIKSHA PUSHPARAJ | C140: 5 | D140: 1 | G140: 2 | H140: 7 | J140: 1 | K140: 2 | L140: 33 | M140: 18
A141: P18FW21M0127 | B141: AMITH BHAT | C141: 4 | F141: 4 | G141: 3 | H141: 8 | I141: 9 | K141: 3 | L141: 27 | M141: 31
A142: P18FW21M0128 | B142: NUTHANA U | C142: 3.5 | E142: 4 | G142: 5 | H142: 7 | J142: 9 | K142: 11 | L142: 29 | M142: 40
A143: P18FW21M0129 | B143: CHETAN SINGH M | C143: 2 | D143: 1 | F143: 2 | G143: 2 | H143: 2 | I143: 3 | J143: 0 | K143: 5 | L143: 22 | M143: 17
A144: P18FW21M0130 | B144: KAUSTUBH LACHAPPANAVAR | C144: 3 | D144: 4 | F144: 4 | H144: 8 | I144: 8 | K144: 6 | L144: 28 | M144: 33
A145: P18FW21M0131 | B145: KSHITIJ P L | C145: 0 | F145: 1 | G145: 0 | H145: 3 | I145: 2 | K145: 1 | L145: 27 | M145: =SUM(C145:K145) -> 7
A146: P18FW21M0132 | B146: BHUVANES P | C146: 3 | F146: 1 | G146: 0 | H146: 2 | I146: 0 | K146: 2 | L146: 21 | M146: 8
A147: P18FW21M0133 | B147: NALASANI VARSHITHA | C147: 5 | F147: 4 | G147: 5 | H147: 8 | J147: 9 | K147: 11 | L147: 34 | M147: 42
A148: P18FW21M0134 | B148: KOKILA K | C148: 4 | F148: 4 | G148: 0 | H148: 9 | I148: 9 | K148: 7 | L148: 30 | M148: 33
A149: P18FW21M0135 | B149: KOTHA KEERTHANA | C149: 5 | F149: 5 | G149: 1 | H149: 9 | J149: 9 | K149: 11 | L149: 33 | M149: 40
A150: P18FW21M0136 | B150: MUCHELI SUBBARAJU | C150: 0 | E150: 4 | F150: 4 | G150: 5 | H150: 8 | J150: 0 | K150: 12 | L150: 28 | M150: 33
A151: P18FW21M0137 | B151: NANDAGOPAL B R | C151: 4.5 | F151: 4 | G151: 4 | H151: 9 | J151: 10 | K151: 12 | L151: 27 | M151: 44
A152: P18FW21M0138 | B152: VISHAL SHIVARAJ | C152: 4 | D152: 4 | G152: 5 | H152: 8 | J152: 10 | K152: 10 | L152: 29 | M152: 41
A153: P18FW21M0139 | B153: SHASHI KUMAR R | C153: 4 | E153: 4 | G153: 5 | H153: 8 | J153: 9 | K153: 12 | L153: 35 | M153: 42
A154: P18FW21M0140 | B154: YASHWANTH R | C154: 4 | F154: 4 | G154: 5 | H154: 8 | J154: 8 | K154: 13 | L154: 41 | M154: 42
A155: P18FW21M0141 | B155: M M JABEZ | C155: 3 | F155: 3 | G155: 5 | H155: 6 | I155: 6 | K155: 2 | L155: 33 | M155: 25
A156: P18FW21M0142 | B156: KALAVALA ABHISHTA | C156: 4 | F156: 4 | G156: 5 | H156: 6 | I156: 7 | K156: 9 | L156: 30 | M156: 35
A157: P18FW21M0143 | B157: SANKALP V | C157: 4 | F157: 4 | G157: 3 | H157: 8 | I157: 2 | L157: 29 | M157: 21
A158: P18FW21M0144 | B158: NAVEEN C | C158: 4 | D158: 4 | G158: 5 | H158: 8 | J158: 9 | K158: 10 | L158: 32 | M158: 40
A159: P18FW21M0145 | B159: PAVAN KUMAR M | C159: 3 | E159: 3 | F159: 3 | H159: 6 | I159: 2 | K159: 1 | L159: 26 | M159: 18
A160: P18FW21M0146 | B160: KAPARTHI BHAVANA | C160: 5 | F160: 4 | G160: 0 | H160: 8 | I160: 8 | K160: 10 | L160: 32 | M160: 35
A161: P18FW21M0147 | B161: MANOJ N S | C161: 4 | F161: 1 | G161: 3 | H161: 9 | I161: 7 | J161: 8 | L161: 31 | M161: 32
A162: P18FW21M0149 | B162: HEMA S | C162: 4 | F162: 4 | G162: 5 | H162: 9 | I162: 8 | K162: 10 | L162: 33 | M162: 40
A163: P18FW21M0150 | B163: MADHUSUDAN G | C163: 4 | D163: 2 | G163: 5 | H163: 8 | J163: 8 | K163: 6 | L163: 27 | M163: 33
A164: P18FW21M0151 | B164: ANNASAGARAM RAGHAVENDRA | C164: 2 | E164: 0 | F164: 3 | H164: 7.5 | I164: 7 | K164: 10 | L164: 25 | M164: 30
A165: P18FW21M0152 | B165: SYED MUSSAVEERULLA | C165: 4 | F165: 3 | G165: 3 | H165: 7 | J165: 8 | K165: 10 | L165: 32 | M165: 35
A166: P18FW21M0153 | B166: SYED SAMEER | C166: 4.5 | D166: 4 | F166: 3 | H166: 9 | I166: 8 | K166: 0 | L166: 30 | M166: 29
A167: P18FW21M0154 | B167: RAMANABOINA ANAND KUMAR | D167: 4 | F167: 4 | G167: 5 | H167: 8 | I167: 8 | K167: 9 | L167: 32 | M167: 38
A168: P18FW21M0155 | B168: SHIVAM GANAPATI ANVEKAR | C168: 4 | F168: 0 | G168: 5 | H168: 8 | I168: 4 | K168: 9 | L168: 28 | M168: 30
A169: P18FW21M0156 | B169: SHUBHAM SINGH | C169: 4 | F169: 3 | G169: 2 | H169: 6 | I169: 3 | K169: 11 | L169: 22 | M169: 29
A170: P18FW21M0157 | B170: GURU VARUN G | C170: 3 | F170: 3 | G170: 3 | H170: 6 | I170: 0 | K170: 3 | L170: 25 | M170: 18
A171: P18FW21M0158 | B171: ABHIJEETH MASHETTY | C171: 4 | F171: 4 | G171: 5 | H171: 7 | I171: 7 | K171: 10 | L171: 29 | M171: 37
A172: P18FW21M0159 | B172: PRANITH KUMAR S | C172: 2 | F172: 3 | G172: 1 | H172: 7 | I172: 6 | K172: 8 | L172: 32 | M172: 27
A173: P18FW21M0160 | B173: LIKITHA A | C173: 2 | F173: 3 | G173: 1 | H173: 6 | I173: 5 | J173: 0 | K173: 8 | L173: 27 | M173: 25
A174: P18FW21M0161 | B174: NAVEEN SETTY N A | C174: 3 | F174: 0 | G174: 5 | I174: 7 | J174: 6 | K174: 9 | L174: 33 | M174: 30
A175: P18FW21M0162 | B175: REHAN FAISAL QADRI | C175: 4.5 | F175: 4 | G175: 5 | H175: 8.5 | J175: 9 | K175: 8 | L175: 28 | M175: 39
A176: P18FW21M0163 | B176: SMITHA M | C176: 4 | D176: 3.5 | G176: 5 | H176: 9 | J176: 10 | K176: 13 | L176: 31 | M176: 45
A177: P18FW21M0164 | B177: ANIRUDH K | C177: 2.5 | F177: 0 | G177: 5 | H177: 5 | J177: 2 | K177: 13 | L177: 21 | M177: 28
A178: P18FW21M0165 | B178: SALMAN FAISAL QADRI | C178: 3.5 | E178: 2.5 | F178: 3 | H178: 6 | J178: 7 | K178: 7 | L178: 25 | M178: 29
A179: P18FW21M0166 | B179: RAVISH RAMACHANDRA HEGDE | C179: 2 | D179: 2 | F179: 2 | H179: 5 | J179: 6 | K179: 8 | L179: 29 | M179: 25
A180: P18FW21M0167 | B180: POOJA VALLUR | C180: 4 | F180: 4 | G180: 5 | H180: 8 | J180: 9 | K180: 11 | L180: 33 | M180: 41
A181: P18FW21M0169 | B181: MAHANTH GOWDA K C | C181: 4 | F181: 3 | G181: 5 | H181: 9 | J181: 10 | K181: 12 | L181: 33 | M181: 43
A182: P18FW21M0170 | B182: BHUPALI SAURABH PRAKASH | C182: 5 | F182: 3 | G182: 4 | H182: 8 | I182: 8 | K182: 4 | L182: 33 | M182: 32
A183: P18FW21M0171 | B183: SYED RAIHAN | C183: 3 | F183: 4 | G183: 1 | H183: 7 | I183: 8 | K183: 5 | L183: 28 | M183: 28
A184: P18FW21M0172 | B184: SHRI HARI L | C184: 3 | F184: 2 | G184: 1 | H184: 5 | I184: 8 | K184: 5 | L184: 27 | M184: 24
A185: P18FW21M0173 | B185: SNEHA U | C185: 3 | F185: 3 | G185: 4 | H185: 8 | I185: 7 | K185: 0 | L185: 25 | M185: 25
A186: P18FW21M0174 | B186: SHAH VINIT SIDDHARTH | C186: 3 | D186: 3 | F186: 3 | H186: 8 | I186: 9 | K186: 12 | L186: 33 | M186: 38
A187: P18FW21M0175 | B187: NAYANA G C | C187: 3 | F187: 3 | G187: 3 | H187: 6 | J187: 3 | K187: 8 | L187: 28 | M187: 26
A188: P18FW21M0176 | B188: D SURIYA PRIYASREE | C188: 4 | F188: 4 | G188: 5 | H188: 8 | I188: 8 | K188: 1 | L188: 25 | M188: 30
A189: P18FW21M0177 | B189: SATHYA B NAYAKA | C189: 4 | F189: 4 | G189: 3 | H189: 6 | I189: 7 | K189: 12 | L189: 29 | M189: 36
A190: P18FW21M0178 | B190: NEHA H V | C190: 3 | D190: 3 | F190: 4 | G190: 0 | H190: 4 | I190: 5 | K190: 4 | L190: 24 | M190: 23
A191: P18FW21M0179 | B191: SAAHIL SRIKANT KULLOLI | C191: 4 | F191: 2 | G191: 5 | H191: 7 | I191: 3 | K191: 6 | L191: 23 | M191: 27
A192: P18FW21M0180 | B192: SIMRANJIT KAUR | C192: 4 | F192: 4 | G192: 5 | H192: 8 | I192: 9 | K192: 11 | L192: 31 | M192: 41
A193: P18FW21M0181 | B193: NIRANJAN JANARDHAN HEGDE | C193: 4.5 | F193: 3 | G193: 0 | H193: 9 | J193: 8 | K193: 12 | L193: 24 | M193: 37
A194: P18FW21M0182 | B194: TEJAS N | M194: 0
A195: P18FW21M0184 | B195: AGAMYA A KINHAL | C195: 2 | F195: 2 | G195: 1 | H195: 4 | I195: 7 | K195: 5 | L195: 21 | M195: 21
A196: No. of students attended | C196: =COUNTA(C16:C195) -> 178 | D196: 36 | E196: 22 | F196: 156 | G196: 155 | H196: 170 | I196: 121 | J196: 83 | K196: 175 | L196: =COUNT(L16:L195) -> 178
A197: No. of Students attained CO | C197: =COUNTIF(C16:C195,">"&C15) -> 114 | D197: 14 | E197: 7 | F197: 61 | G197: 81 | H197: 164 | I197: 101 | J197: 50 | K197: 109 | L197: 177
A198: CO Attainment percentage | C198: =ROUND(C197*100/C196,0) -> 64 | D198: 39 | E198: 32 | F198: 39 | G198: 52 | H198: 96 | I198: 83 | J198: 60 | K198: 62 | L198: =ROUND(L197*100/L196,0) -> 99
A199: Level | C199: =IF(C198>=80,"3",IF(C198>=70,"2",IF(C198>=60,"1","-"))) -> 1 | D199: =IF(D198>=80,"3",IF(D198>=70,"2",IF(D198>=60,"1","-"))) -> - | E199: - | F199: - | G199: - | H199: 3 | I199: 3 | J199: 1 | K199: 1 | L199: 3
C200: =C13 -> CO1 | D200: =D13 -> CO2 | E200: CO3 | F200: CO1 | G200: CO3 | H200: CO1 | I200: CO2 | J200: CO3 | K200: CO1
H201: Internals | J201: Final CO Attainment
... 6 more rows

Sheet 21MBA221- Attainment
A1: ='21MBA221'!A5:M5 -> Macro Economics
D3: Internals | F3: Final CO Attainment
C4: CO | D4: Percentage | E4: Level | F4: Percentage | G4: Level
C5: CO1 | D5: ='21MBA221'!H203 -> 65 | E5: ='21MBA221'!I203 -> 1 | F5: ='21MBA221'!J203 -> 89 | G5: ='21MBA221'!K203 -> 3
C6: CO2 | D6: ='21MBA221'!H204 -> 61 | E6: ='21MBA221'!I204 -> 1 | F6: ='21MBA221'!J204 -> 88 | G6: ='21MBA221'!K204 -> 3
C7: CO3 | D7: ='21MBA221'!H205 -> 48 | E7: 1 | F7: ='21MBA221'!J205 -> 84 | G7: ='21MBA221'!K205 -> 3
C8: CO4 | D8: ='21MBA221'!H206 -> 59 | E8: ='21MBA221'!I206 -> - | F8: ='21MBA221'!J206 -> 87 | G8: ='21MBA221'!K206 -> 3
C9: CO5 | D9: ='21MBA221'!H207 -> 39 | E9: ='21MBA221'!I207 -> - | F9: ='21MBA221'!J207 -> 81 | G9: ='21MBA221'!K207 -> 3
C13: PO1 | D13: PO2 | E13: PO3 | F13: PO4 | G13: PO5 | H13: PO6 | I13: PO7 | J13: PO8 | K13: PO9 | L13: PO10 | M13: PO11
B14: C01 | C14: 3 | D14: 3 | E14: 2 | F14: 1 | H14: 2 | J14: 1 | K14: 2 | L14: 1
B15: C02 | C15: 3 | D15: 3 | H15: 2 | J15: 3 | K15: 1 | M15: 1
B16: C03 | C16: 3 | D16: 3 | F16: 3 | H16: - | I16: 2 | K16: 1 | L16: 1 | M16: 2
B17: C04 | C17: 2 | D17: 3 | F17: 2 | H17: 3 | K17: 1 | M17: 2
B18: C05 | C18: 2 | D18: 3 | F18: 2 | H18: 3 | K18: 1 | M18: 2
C19: LEVEL | D19: 3-Substantial | E19: 2-Moderate | F19: 1-Slight | G19: "-" No Co-relation
A22: Final CO | C22: PO1 | D22: PO2 | E22: PO3 | F22: PO4 | G22: PO5 | H22: PO6 | I22: PO7 | J22: PO8 | K22: PO9 | L22: PO10 | M22: PO11
A23: ATTAINMENT
A24: C01 | B24: =F5 -> 88.88 | C24: =C14*$B$24/3 -> 88.88 | D24: 88.88 | E24: 59.25 | F24: 29.63 | G24: 0.00 | H24: 59.25 | I24: 0.00 | J24: 29.63 | K24: 59.25 | L24: =L14*$B$24/3 -> 29.63 | M24: 0.00
A25: C02 | B25: =F6 -> 87.60 | C25: =C15*$B$25/3 -> 87.60 | D25: 87.60 | E25: 0.00 | F25: 0.00 | G25: 0.00 | H25: 58.40 | I25: 0.00 | J25: 87.60 | K25: 29.20 | L25: =L15*$B$25/3 -> 0.00 | M25: 29.20
A26: C03 | B26: =F7 -> 83.70 | C26: =C16*$B$26/3 -> 83.70 | D26: 83.70 | E26: 0.00 | F26: 83.70 | G26: 0.00 | I26: 55.80 | J26: 0.00 | K26: 27.90 | L26: =L16*$B$26/3 -> 27.90 | M26: 55.80
A27: C04 | B27: =F8 -> 87.00 | C27: =C17*$B$27/3 -> 58.00 | D27: 87.00 | E27: 0.00 | F27: 58.00 | G27: 0.00 | H27: 87.00 | I27: 0.00 | J27: 0.00 | K27: 29.00 | L27: =L17*$B$27/3 -> 0.00 | M27: 58.00
A28: C05 | B28: =F9 -> 81.00 | C28: =C18*$B$28/3 -> 54.00 | D28: =D18*$B$28/3 -> 81.00 | E28: 0.00 | F28: 54.00 | G28: 0.00 | H28: 81.00 | I28: 0.00 | J28: 0.00 | K28: 27.00 | L28: 0.00 | M28: 54.00
A29: Average | C29: =AVERAGE(C24:C28) -> 74.44 | D29: =AVERAGE(D24:D28) -> 85.64 | E29: =AVERAGE(E24:E28) -> 11.85 | F29: 45.07 | G29: 0.00 | H29: 71.41 | I29: 11.16 | J29: 23.45 | K29: 34.47 | L29: 11.51 | M29: 39.40

Sheet 21MBA421
A1: RV Institute of Management
A2: Autonomous Institution Affiliated to BCU
A3: MBA Programme II Semester
A4: Course Outcome Report
A5: Application of Operations Research in Business
A6: Name of the Course Teacher: | I6: Sub. Code: | L6: 21MBA421
A7: Prof. Pooja T ,Dr. Suresh N, Dr. Santhosh M | J7: Sec: | L7: ABC
D8: Semester II
D9: Batch 2021-23
A11: Question number | C11: 1 | D11: 2 | E11: 3 | F11: 4 | G11: 5 | H11: 6 | I11: 7 | J11: 8 | K11: 9 | L11: External Exam | M11: Mid Term Exam
A12: Course outcome | C12: CO1 | D12: CO1 | E12: CO3 | F12: CO4 | G12: CO3 | H12: CO | I12: CO4 | J12: CO3 | K12: CO4 | L12: Marks | M12: Marks
A13: Maximum marks | C13: 5 | D13: 5 | E13: 5 | F13: 5 | G13: 5 | H13: 5 | I13: 5 | J13: 10 | K13: 10 | L13: 50 | M13: 50
A14: Student Reg. No | B14: Student Name | C14: =C13*0.64 -> 3.2 | D14: =D13*0.64 -> 3.2 | E14: 3.2 | F14: 3.2 | G14: 3.2 | H14: 3.2 | I14: 3.2 | J14: 6.4 | K14: 6.4 | L14: =L13*0.357142 -> 18
A15: ='21MBA221'!A16 -> P18FW21M0001 | B15: ='21MBA221'!B16 -> VIPUL VILAS NAIK | C15: 4 | E15: 5 | F15: 2 | I15: 5 | J15: 3 | L15: 40 | M15: =SUM(C15:K15) -> 19
A16: ='21MBA221'!A17 -> P18FW21M0002 | B16: ='21MBA221'!B17 -> M PRANEETH KUMAR REDDY | C16: 4 | D16: 5 | E16: 4 | I16: 5 | J16: 5 | K16: 15 | L16: 43 | M16: =SUM(C16:K16) -> 38
A17: ='21MBA221'!A18 -> P18FW21M0003 | B17: ='21MBA221'!B18 -> NIKHIL S ANJANALLI | C17: 4 | D17: 2 | E17: 5 | I17: 8 | J17: 8 | K17: 15 | L17: 38 | M17: 42
A18: ='21MBA221'!A19 -> P18FW21M0004 | B18: ='21MBA221'!B19 -> KARTHIK P SHETTY | C18: 3 | D18: 0 | E18: 5 | I18: 6 | J18: 4 | K18: 5 | L18: 34 | M18: 23
A19: ='21MBA221'!A20 -> P18FW21M0005 | B19: ='21MBA221'!B20 -> AMITH C | C19: 5 | D19: 4 | E19: 5 | I19: 10 | J19: 9 | K19: 15 | L19: 44 | M19: 48
A20: ='21MBA221'!A21 -> P18FW21M0006 | B20: ='21MBA221'!B21 -> AISHWARYA G | C20: 2 | D20: 4.5 | E20: 3 | I20: 9 | J20: 8 | K20: 0 | L20: 15 | M20: 26.5
A21: ='21MBA221'!A22 -> P18FW21M0007 | B21: ='21MBA221'!B22 -> AKANKSH P | C21: 4 | D21: 5 | E21: 4 | H21: 6 | I21: 7 | J21: 5 | K21: 15 | L21: 35 | M21: 46
A22: ='21MBA221'!A23 -> P18FW21M0008 | B22: ='21MBA221'!B23 -> SACHITH B K | C22: 5 | D22: 1 | E22: 5 | I22: 6 | J22: 8 | K22: 15 | L22: 37 | M22: 40
A23: ='21MBA221'!A24 -> P18FW21M0009 | B23: ='21MBA221'!B24 -> CHAITANYA KAMATAGI B | C23: 5 | D23: 5 | E23: 5 | I23: 10 | J23: 10 | K23: 15 | L23: 45 | M23: 50
A24: ='21MBA221'!A25 -> P18FW21M0010 | B24: ='21MBA221'!B25 -> AKASH RACHAPPA KHANAGAVI | C24: 5 | D24: 4.5 | E24: 5 | I24: 10 | J24: 10 | K24: 14 | L24: 46 | M24: 48.5
A25: ='21MBA221'!A26 -> P18FW21M0011 | B25: ='21MBA221'!B26 -> SOURAV SADANAND SWAR | C25: 3 | E25: 4 | F25: 0 | I25: 8 | J25: 7 | L25: 16 | M25: 22
A26: ='21MBA221'!A27 -> P18FW21M0012 | B26: ='21MBA221'!B27 -> NISHANTH KRISHNA | C26: 5 | D26: 5 | F26: 5 | I26: 10 | J26: 5 | K26: 15 | L26: 45 | M26: 45
A27: ='21MBA221'!A28 -> P18FW21M0013 | B27: ='21MBA221'!B28 -> MEHUL V BHASKAR | C27: 0 | D27: 0 | E27: 0 | H27: 0 | I27: 2 | L27: 14 | M27: 2
A28: ='21MBA221'!A29 -> P18FW21M0014 | B28: ='21MBA221'!B29 -> SHUBHAM RAJENDRA REVANKAR | C28: 0 | D28: 0 | E28: 5 | I28: 4 | J28: 10 | L28: 25 | M28: 19
A29: ='21MBA221'!A30 -> P18FW21M0015 | B29: ='21MBA221'!B30 -> SHETTY TRUPTHI CHANDRAHAS | C29: 5 | D29: 4 | E29: 5 | I29: 10 | J29: 9 | K29: 8 | L29: 39 | M29: 41
A30: ='21MBA221'!A31 -> P18FW21M0016 | B30: ='21MBA221'!B31 -> SHEEBAL M S | C30: 2 | D30: 5 | F30: 5 | I30: 8 | J30: 9 | K30: 11 | L30: 39 | M30: 40
A31: ='21MBA221'!A32 -> P18FW21M0017 | B31: ='21MBA221'!B32 -> VISHNU KUMAR | C31: 5 | D31: 5 | E31: 4 | I31: 10 | J31: 10 | K31: 15 | L31: 47 | M31: 49
A32: ='21MBA221'!A33 -> P18FW21M0018 | B32: ='21MBA221'!B33 -> HARSHITHA SRINIVAS | C32: 4 | D32: 4 | E32: 5 | H32: 9 | I32: 8 | L32: 37 | M32: 30
A33: ='21MBA221'!A34 -> P18FW21M0019 | B33: ='21MBA221'!B34 -> SAGI SAMPI | C33: 5 | D33: 5 | E33: 5 | I33: 10 | J33: 9 | K33: 10 | L33: 49 | M33: 44
A34: ='21MBA221'!A35 -> P18FW21M0020 | B34: ='21MBA221'!B35 -> PAULOMEE BARUAH | C34: 5 | D34: 5 | E34: 5 | I34: 10 | J34: 10 | K34: 10 | L34: 43 | M34: 45
A35: ='21MBA221'!A36 -> P18FW21M0021 | B35: ='21MBA221'!B36 -> NEETHA KAMATH | C35: 4 | D35: 5 | E35: 5 | I35: 10 | J35: 5 | K35: 6 | L35: 36 | M35: 35
A36: ='21MBA221'!A37 -> P18FW21M0022 | B36: ='21MBA221'!B37 -> ADITYA UDAY HEGDE | C36: 5 | D36: 5 | E36: 4 | I36: 7 | J36: 8 | K36: 7 | L36: 35 | M36: 36
A37: ='21MBA221'!A38 -> P18FW21M0023 | B37: ='21MBA221'!B38 -> SHREYAS G A | C37: 5 | D37: 5 | E37: 5 | I37: 10 | J37: 6 | K37: 15 | L37: 43 | M37: 46
A38: ='21MBA221'!A39 -> P18FW21M0024 | B38: ='21MBA221'!B39 -> SRUJANA S | C38: 5 | D38: 5 | E38: 5 | I38: 7 | J38: 8 | K38: 15 | L38: 43 | M38: 45
A39: ='21MBA221'!A40 -> P18FW21M0025 | B39: ='21MBA221'!B40 -> PRAJWAL S N | C39: 5 | D39: 5 | E39: 5 | I39: 10 | J39: 10 | K39: 10 | L39: 40 | M39: 45
A40: ='21MBA221'!A41 -> P18FW21M0026 | B40: ='21MBA221'!B41 -> SUCHITRA G | C40: 5 | D40: 5 | E40: 5 | I40: 6 | J40: 6 | K40: 5 | L40: 34 | M40: 32
A41: ='21MBA221'!A42 -> P18FW21M0027 | B41: ='21MBA221'!B42 -> SANKET SURESH SHIRSAT | C41: 3 | D41: 5 | E41: 5 | I41: 10 | J41: 10 | K41: 7 | L41: 35 | M41: 40
A42: ='21MBA221'!A43 -> P18FW21M0028 | B42: ='21MBA221'!B43 -> ANIKET SANJAY REVANKAR | C42: 5 | D42: 5 | E42: 5 | I42: 10 | J42: 10 | K42: 12 | L42: 45 | M42: 47
A43: ='21MBA221'!A44 -> P18FW21M0029 | B43: ='21MBA221'!B44 -> AKHILA H | C43: 2 | E43: 2 | F43: 2 | I43: 6 | J43: 8 | K43: 4 | L43: 21 | M43: 24
A44: ='21MBA221'!A45 -> P18FW21M0030 | B44: ='21MBA221'!B45 -> M LUQMAN NAWAZ | C44: 5 | D44: 5 | F44: 5 | I44: 8 | J44: 10 | K44: 13 | L44: 37 | M44: 46
A45: ='21MBA221'!A46 -> P18FW21M0031 | B45: ='21MBA221'!B46 -> MADHURA A | C45: 5 | D45: 5 | E45: 5 | H45: 9 | J45: 6 | K45: 10 | L45: 45 | M45: 40
A46: ='21MBA221'!A47 -> P18FW21M0032 | B46: ='21MBA221'!B47 -> H V SHREEVATSA | C46: 3 | D46: 5 | E46: 5 | H46: 10 | I46: 10 | K46: 12 | L46: 30 | M46: 45
A47: ='21MBA221'!A48 -> P18FW21M0033 | B47: ='21MBA221'!B48 -> LILIMA DASH | C47: 5 | D47: 5 | E47: 5 | I47: 10 | J47: 10 | K47: 15 | L47: 49 | M47: 50
A48: ='21MBA221'!A49 -> P18FW21M0034 | B48: ='21MBA221'!B49 -> KUMAR ASHUTOSH | C48: 3 | D48: 2 | E48: 2 | I48: 5 | J48: 7 | K48: 0 | L48: 21 | M48: 19
A49: ='21MBA221'!A50 -> P18FW21M0035 | B49: ='21MBA221'!B50 -> RAHUL S SANGOLLI | C49: 5 | D49: 5 | E49: 5 | I49: 10 | J49: 9 | K49: 8 | L49: 27 | M49: 42
A50: ='21MBA221'!A51 -> P18FW21M0036 | B50: ='21MBA221'!B51 -> GIRISH N NASHI | C50: 5 | D50: 5 | E50: 4 | I50: 10 | J50: 10 | K50: 10 | L50: 38 | M50: 44
A51: ='21MBA221'!A52 -> P18FW21M0037 | B51: ='21MBA221'!B52 -> ANKITA GAJANAN NAIK | C51: 5 | D51: 5 | E51: 5 | H51: 10 | I51: 10 | K51: 15 | L51: 44 | M51: 50
A52: ='21MBA221'!A53 -> P18FW21M0038 | B52: ='21MBA221'!B53 -> GURUBASAVARAJ K M | C52: 5 | D52: 5 | E52: 5 | I52: 8 | J52: 10 | K52: 15 | L52: 46 | M52: 48
A53: ='21MBA221'!A54 -> P18FW21M0039 | B53: ='21MBA221'!B54 -> ANANYA P HEGDE | C53: 4 | D53: 5 | E53: 5 | I53: 10 | J53: 8 | K53: 15 | L53: 44 | M53: 47
A54: ='21MBA221'!A55 -> P18FW21M0040 | B54: ='21MBA221'!B55 -> NIVEDITHA K SWAMY | C54: 5 | D54: 5 | E54: 5 | I54: 10 | J54: 10 | K54: 15 | L54: 50 | M54: 50
A55: ='21MBA221'!A56 -> P18FW21M0041 | B55: ='21MBA221'!B56 -> LIKHITHA L | C55: 5 | D55: 5 | E55: 5 | I55: 7 | J55: 10 | K55: 10 | L55: 38 | M55: 42
A56: ='21MBA221'!A57 -> P18FW21M0042 | B56: ='21MBA221'!B57 -> RAHUL RAM BHAT | C56: 5 | D56: 5 | E56: 5 | I56: 8 | J56: 10 | K56: 7 | L56: 36 | M56: 40
A57: ='21MBA221'!A58 -> P18FW21M0043 | B57: ='21MBA221'!B58 -> AMIT KAMADOLLISHETTARU | C57: 5 | D57: 5 | E57: 5 | I57: 10 | J57: 10 | K57: 11 | L57: 44 | M57: 46
A58: ='21MBA221'!A59 -> P18FW21M0044 | B58: ='21MBA221'!B59 -> POOJARANI TALAWAR | C58: 5 | D58: 5 | E58: 5 | I58: 10 | J58: 10 | K58: 10 | L58: 42 | M58: 45
A59: ='21MBA221'!A60 -> P18FW21M0045 | B59: ='21MBA221'!B60 -> ABHITHA K | C59: 5 | D59: 5 | E59: 5 | I59: 9 | J59: 8 | K59: 15 | L59: 26 | M59: 47
A60: ='21MBA221'!A61 -> P18FW21M0046 | B60: ='21MBA221'!B61 -> S SHREYAS | C60: 2 | E60: 4 | F60: 0 | I60: 2 | J60: 3 | L60: 14 | M60: 11
A61: ='21MBA221'!A62 -> P18FW21M0047 | B61: ='21MBA221'!B62 -> ABHISHEK SHENOY | C61: 5 | D61: 5 | E61: 3 | I61: 1 | J61: 5 | K61: 4 | L61: 30 | M61: 23
A62: ='21MBA221'!A63 -> P18FW21M0048 | B62: ='21MBA221'!B63 -> B S SUSHEN | C62: 5 | D62: 2 | E62: 2 | F62: 5 | I62: 8 | J62: 10 | K62: 7 | L62: 39 | M62: 39
A63: ='21MBA221'!A64 -> P18FW21M0049 | B63: ='21MBA221'!B64 -> PRAJWALA H | C63: 3 | D63: 3 | E63: 5 | I63: 8 | J63: 10 | K63: 8 | L63: 43 | M63: 37
A64: ='21MBA221'!A65 -> P18FW21M0050 | B64: ='21MBA221'!B65 -> VAISHNAVI N | C64: 5 | D64: 5 | E64: 5 | I64: 10 | J64: 10 | K64: 15 | L64: 48 | M64: 50
A65: ='21MBA221'!A66 -> P18FW21M0051 | B65: ='21MBA221'!B66 -> DEEPAK GIRISH KALYANI | C65: 5 | D65: 5 | E65: 5 | I65: 8 | J65: 10 | K65: 15 | L65: 46 | M65: 48
A66: ='21MBA221'!A67 -> P18FW21M0052 | B66: ='21MBA221'!B67 -> ISAAC JESSE K | C66: 5 | D66: 5 | E66: 4 | I66: 8 | J66: 10 | K66: 0 | L66: 20 | M66: 32
A67: ='21MBA221'!A68 -> P18FW21M0053 | B67: ='21MBA221'!B68 -> SUPRIYA GOVIND BELSARE | C67: 5 | D67: 5 | E67: 5 | I67: 10 | J67: 10 | K67: 7 | L67: 24 | M67: 42
A68: ='21MBA221'!A69 -> P18FW21M0054 | B68: ='21MBA221'!B69 -> VINAYAK RAO GAIKWAD K | C68: 5 | D68: 2 | E68: 2 | I68: 0 | J68: 6 | K68: 15 | L68: 21 | M68: 30
A69: ='21MBA221'!A70 -> P18FW21M0055 | B69: ='21MBA221'!B70 -> SUTOPA DEB | C69: 5 | D69: 3 | E69: 5 | I69: 7 | J69: 8 | K69: 6 | L69: 29 | M69: 34
A70: ='21MBA221'!A71 -> P18FW21M0056 | B70: ='21MBA221'!B71 -> M S SUKRUT | C70: 3 | E70: 5 | F70: 0 | I70: 3 | J70: 8 | L70: AB | M70: 19
A71: ='21MBA221'!A72 -> P18FW21M0057 | B71: ='21MBA221'!B72 -> BHASKARA PRABHU | C71: 5 | D71: 5 | E71: 3 | I71: 10 | J71: 10 | K71: 10 | L71: 32 | M71: 43
A72: ='21MBA221'!A73 -> P18FW21M0058 | B72: ='21MBA221'!B73 -> PRAKASH SHIVAKUMAR | C72: 5 | D72: 5 | E72: 5 | I72: 10 | J72: 10 | K72: 15 | L72: 38 | M72: 50
A73: ='21MBA221'!A74 -> P18FW21M0059 | B73: ='21MBA221'!B74 -> AMOGHA Y G | C73: 4 | D73: 2 | E73: 5 | I73: 8 | J73: 5 | K73: 10 | L73: 42 | M73: 34
A74: ='21MBA221'!A75 -> P18FW21M0060 | B74: ='21MBA221'!B75 -> BHARATH K S | C74: 2 | E74: 5 | F74: 2 | I74: 5 | J74: 5 | K74: 7 | L74: 32 | M74: 26
A75: ='21MBA221'!A76 -> P18FW21M0061 | B75: ='21MBA221'!B76 -> AKANKSH K G | C75: 2 | D75: 0 | E75: 1 | I75: 6 | J75: 4 | K75: 5 | L75: 22 | M75: 18
A76: ='21MBA221'!A77 -> P18FW21M0062 | B76: ='21MBA221'!B77 -> BERNARD FERNANDES | C76: 4 | D76: 2 | E76: 2 | I76: 10 | J76: 10 | L76: 21 | M76: 28
A77: ='21MBA221'!A78 -> P18FW21M0063 | B77: ='21MBA221'!B78 -> AISHWARYA P | C77: 4 | D77: 5 | G77: 2 | I77: 0 | J77: 10 | K77: 5 | L77: 26 | M77: 26
A78: ='21MBA221'!A79 -> P18FW21M0064 | B78: ='21MBA221'!B79 -> VIOLA PINTO | C78: 2 | D78: 5 | E78: 2 | I78: 10 | J78: 10 | K78: 0 | L78: 35 | M78: 29
A79: ='21MBA221'!A80 -> P18FW21M0065 | B79: ='21MBA221'!B80 -> VARSHA | C79: 5 | D79: 5 | E79: 5 | I79: 10 | J79: 10 | K79: 15 | L79: 44 | M79: 50
A80: ='21MBA221'!A81 -> P18FW21M0066 | B80: ='21MBA221'!B81 -> CHIDRI BALAJI | C80: 5 | D80: 5 | E80: 5 | I80: 10 | J80: 5 | K80: 15 | L80: 41 | M80: =SUM(C80:K80) -> 45
A81: ='21MBA221'!A82 -> P18FW21M0067 | B81: ='21MBA221'!B82 -> GAGANDEEP V N | C81: 4 | D81: 3 | E81: 0 | I81: 8 | J81: 10 | K81: 10 | L81: 29 | M81: 35
A82: ='21MBA221'!A83 -> P18FW21M0068 | B82: ='21MBA221'!B83 -> PRAJWALA | C82: 5 | D82: 4.5 | E82: 5 | I82: 10 | J82: 4 | K82: 15 | L82: 39 | M82: 43.5
A83: ='21MBA221'!A84 -> P18FW21M0069 | B83: ='21MBA221'!B84 -> POORNIMA L | C83: 5 | D83: 5 | E83: 5 | I83: 10 | J83: 9 | K83: 15 | L83: 34 | M83: 49
A84: ='21MBA221'!A85 -> P18FW21M0070 | B84: ='21MBA221'!B85 -> SHUBIKSHA S | C84: 5 | D84: 5 | E84: 5 | I84: 10 | J84: 10 | K84: 15 | L84: 48 | M84: 50
A85: ='21MBA221'!A86 -> P18FW21M0071 | B85: ='21MBA221'!B86 -> ANUSHA | C85: 5 | D85: 5 | E85: 5 | I85: 8 | J85: 10 | K85: 12 | L85: 42 | M85: 45
A86: ='21MBA221'!A87 -> P18FW21M0072 | B86: ='21MBA221'!B87 -> P T KIRTI | C86: 5 | D86: 5 | E86: 5 | I86: 10 | J86: 10 | K86: 15 | L86: 41 | M86: 50
A87: ='21MBA221'!A88 -> P18FW21M0073 | B87: ='21MBA221'!B88 -> SAMEEKSHA M P | C87: 5 | D87: 5 | E87: 5 | I87: 9 | J87: 10 | K87: 15 | L87: 32 | M87: 49
A88: ='21MBA221'!A89 -> P18FW21M0074 | B88: ='21MBA221'!B89 -> KAVYAPRIYA J | C88: 5 | D88: 5 | E88: 4 | I88: 10 | J88: 10 | K88: 15 | L88: 47 | M88: 49
A89: ='21MBA221'!A90 -> P18FW21M0075 | B89: ='21MBA221'!B90 -> RAKSHITH R T | C89: 5 | D89: 5 | E89: 5 | I89: 10 | J89: 2 | K89: 15 | L89: 37 | M89: 42
A90: ='21MBA221'!A91 -> P18FW21M0076 | B90: ='21MBA221'!B91 -> SHUBHA R | C90: 5 | D90: 5 | E90: 5 | I90: 10 | J90: 10 | K90: 15 | L90: 39 | M90: 50
A91: ='21MBA221'!A92 -> P18FW21M0077 | B91: ='21MBA221'!B92 -> BASAVARAJ | C91: 3 | D91: 5 | E91: 4 | I91: 8 | J91: 10 | K91: 4 | L91: 34 | M91: 34
A92: ='21MBA221'!A93 -> P18FW21M0078 | B92: ='21MBA221'!B93 -> MANOJ RAKSHATH B S | C92: 2 | E92: 4 | F92: 0 | H92: 3 | I92: 4 | J92: 8 | L92: 18 | M92: 21
A93: ='21MBA221'!A94 -> P18FW21M0079 | B93: ='21MBA221'!B94 -> ADITI RANI | C93: 5 | D93: 5 | E93: 5 | I93: 7 | J93: 10 | K93: 1 | L93: 31 | M93: 33
A94: ='21MBA221'!A95 -> P18FW21M0080 | B94: ='21MBA221'!B95 -> DIVYA SHREE M | C94: 5 | E94: 5 | F94: 5 | I94: 8 | J94: 10 | K94: 8 | L94: 44 | M94: 41
A95: ='21MBA221'!A96 -> P18FW21M0081 | B95: ='21MBA221'!B96 -> VARUN S BHARADWAJ | C95: 5 | D95: 5 | E95: 5 | I95: 5 | J95: 10 | K95: 5 | L95: 40 | M95: 35
A96: ='21MBA221'!A97 -> P18FW21M0082 | B96: ='21MBA221'!B97 -> S KARTHIK | C96: 5 | E96: 5 | F96: 5 | I96: 2 | J96: 10 | K96: 1 | L96: 36 | M96: 28
A97: ='21MBA221'!A98 -> P18FW21M0083 | B97: ='21MBA221'!B98 -> NEELAMMA M K | C97: 3 | D97: 5 | E97: 5 | I97: 5 | J97: 10 | K97: 9 | L97: 29 | M97: 37
A98: ='21MBA221'!A99 -> P18FW21M0084 | B98: ='21MBA221'!B99 -> PRAMOD K L | C98: 3 | D98: 5 | E98: 5 | I98: 8 | J98: 10 | K98: 15 | L98: 45 | M98: 46
A99: ='21MBA221'!A100 -> P18FW21M0085 | B99: ='21MBA221'!B100 -> NAMRATHA N | C99: 2 | D99: 0 | E99: 5 | F99: 4 | I99: 5 | J99: 10 | K99: 2 | L99: 25 | M99: 28
A100: ='21MBA221'!A101 -> P18FW21M0086 | B100: ='21MBA221'!B101 -> ANVITH KUMAR | C100: 5 | D100: 5 | E100: 5 | H100: 10 | I100: 10 | K100: 10 | L100: 38 | M100: 45
A101: ='21MBA221'!A102 -> P18FW21M0087 | B101: ='21MBA221'!B102 -> BHOOMIKA BHAT | C101: 4 | D101: 2 | E101: 5 | I101: 8 | J101: 10 | L101: 42 | M101: 29
A102: ='21MBA221'!A103 -> P18FW21M0088 | B102: ='21MBA221'!B103 -> SOUMYA GANAPATI HEGDE | C102: 3 | D102: 5 | E102: 5 | I102: 8 | J102: 10 | K102: 9 | L102: 43 | M102: 40
A103: ='21MBA221'!A104 -> P18FW21M0089 | B103: ='21MBA221'!B104 -> SHREEKRISHNA | C103: 5 | E103: 5 | G103: 3 | I103: 8 | J103: 10 | K103: 4 | L103: 40 | M103: 35
A104: ='21MBA221'!A105 -> P18FW21M0090 | B104: ='21MBA221'!B105 -> OLETI SAI SREENITHYA | C104: 5 | D104: 5 | E104: 5 | I104: 10 | J104: 5 | K104: 5 | L104: 38 | M104: 35
A105: ='21MBA221'!A106 -> P18FW21M0091 | B105: ='21MBA221'!B106 -> RAMANUJAM H J | C105: 5 | D105: 3 | E105: 5 | I105: 4 | J105: 10 | K105: 9 | L105: 26 | M105: 36
A106: ='21MBA221'!A107 -> P18FW21M0092 | B106: ='21MBA221'!B107 -> CHAVI JAGADEESH | C106: 2 | D106: 4 | E106: 5 | I106: 6 | J106: 10 | K106: 0 | L106: 24 | M106: 27
A107: ='21MBA221'!A108 -> P18FW21M0093 | B107: ='21MBA221'!B108 -> DESAI JATIN ARUN | C107: 5 | D107: 5 | E107: 2 | H107: 5 | J107: 8 | L107: 19 | M107: 25
A108: ='21MBA221'!A109 -> P18FW21M0094 | B108: ='21MBA221'!B109 -> MALLESH S | C108: 3 | D108: 5 | E108: 5 | I108: 8 | J108: 10 | K108: 4 | L108: 26 | M108: 35
A109: ='21MBA221'!A110 -> P18FW21M0095 | B109: ='21MBA221'!B110 -> SRINIDHI K | C109: 2 | D109: 5 | E109: 5 | I109: 10 | J109: 8 | K109: 6 | L109: 32 | M109: 36
A110: ='21MBA221'!A111 -> P18FW21M0096 | B110: ='21MBA221'!B111 -> B SHASHANK | C110: 5 | D110: 2 | E110: 5 | I110: 10 | J110: 8 | K110: 6 | L110: 37 | M110: 36
A111: ='21MBA221'!A112 -> P18FW21M0097 | B111: ='21MBA221'!B112 -> YOGASHREE C N | C111: 3 | D111: 5 | E111: 5 | F111: 5 | I111: 6 | J111: 10 | K111: 10 | L111: 38 | M111: 44
A112: ='21MBA221'!A113 -> P18FW21M0098 | B112: ='21MBA221'!B113 -> CHARANA T U | C112: 1 | D112: 5 | E112: 5 | I112: 7 | J112: 8 | K112: 5 | L112: 29 | M112: 31
A113: ='21MBA221'!A114 -> P18FW21M0099 | B113: ='21MBA221'!B114 -> NAGARAJ GAJANAN HEGDE | C113: 5 | D113: 5 | E113: 5 | I113: 10 | J113: 9 | K113: 8 | L113: 32 | M113: 42
A114: ='21MBA221'!A115 -> P18FW21M0100 | B114: ='21MBA221'!B115 -> NIKITHA J SHANBHOG | C114: 3 | E114: 5 | F114: 2 | I114: 8 | J114: 3 | K114: 2 | L114: 13 | M114: 23
A115: ='21MBA221'!A116 -> P18FW21M0101 | B115: ='21MBA221'!B116 -> YASHASWINI P | C115: 5 | D115: 5 | E115: 5 | I115: 3 | J115: 9 | K115: 0 | L115: 24 | M115: 27
A116: ='21MBA221'!A117 -> P18FW21M0102 | B116: ='21MBA221'!B117 -> TANUSHREE R | D116: 3 | E116: 5 | F116: 4 | I116: 9 | J116: 5 | K116: 0 | L116: 14 | M116: 26
A117: ='21MBA221'!A118 -> P18FW21M0103 | B117: ='21MBA221'!B118 -> CHETHAN KUMAR V A | C117: 2 | D117: 3 | F117: 1 | I117: 2 | J117: 10 | L117: 17 | M117: 18
A118: ='21MBA221'!A119 -> P18FW21M0104 | B118: ='21MBA221'!B119 -> NAYAN KUMAR | C118: 5 | D118: 5 | G118: 3 | H118: 7 | J118: 8 | L118: 31 | M118: 28
A119: ='21MBA221'!A120 -> P18FW21M0105 | B119: ='21MBA221'!B120 -> DEEPAK GOPALAKRISHNAN | C119: 2 | D119: 0 | E119: 0 | I119: 4 | J119: 1 | K119: 4 | L119: 12 | M119: 11
A120: ='21MBA221'!A121 -> P18FW21M0106 | B120: ='21MBA221'!B121 -> POORNAPRAJNYA K MANGALVEDI | C120: 5 | D120: 0 | E120: 1 | I120: 4 | J120: 0 | K120: 1 | L120: 21 | M120: 11
A121: ='21MBA221'!A122 -> P18FW21M0107 | B121: ='21MBA221'!B122 -> JENISHA MENEZES | C121: 3 | D121: 5 | E121: 5 | I121: 4 | J121: 10 | L121: 21 | M121: 27
A122: ='21MBA221'!A123 -> P18FW21M0108 | B122: ='21MBA221'!B123 -> SRAVANI SUNIL MHALSEKAR | C122: 5 | D122: 4 | E122: 5 | I122: 10 | J122: 8 | K122: 15 | L122: 37 | M122: 47
A123: ='21MBA221'!A124 -> P18FW21M0109 | B123: ='21MBA221'!B124 -> M RITISH | C123: 2 | D123: 0 | E123: 0 | I123: 5 | J123: 3 | L123: 17 | M123: 10
A124: ='21MBA221'!A125 -> P18FW21M0110 | B124: ='21MBA221'!B125 -> DHANYA S SHARMA | C124: 4 | E124: 5 | F124: 0 | I124: 3 | J124: 3 | K124: 5 | L124: 31 | M124: 20
A125: ='21MBA221'!A126 -> P18FW21M0111 | B125: ='21MBA221'!B126 -> PREETHAM D VARMA | C125: 2 | D125: 0 | E125: 5 | I125: 7 | J125: 1 | L125: 8 | M125: 15
A126: ='21MBA221'!A127 -> P18FW21M0112 | B126: ='21MBA221'!B127 -> DHIRAJKUMAR BELAVADI | C126: 2 | D126: 0 | E126: 5 | I126: 7 | J126: 7 | L126: 23 | M126: 21
A127: ='21MBA221'!A128 -> P18FW21M0113 | B127: ='21MBA221'!B128 -> FERNANDES RICHA FLORINDA | C127: 5 | E127: 5 | F127: 0 | I127: 7 | J127: 10 | L127: 21 | M127: 27
A128: ='21MBA221'!A129 -> P18FW21M0114 | B128: ='21MBA221'!B129 -> MEGHA U JOSHI | C128: 3 | E128: 5 | F128: 5 | I128: 10 | J128: 10 | K128: 8 | L128: 43 | M128: 41
A129: ='21MBA221'!A130 -> P18FW21M0116 | B129: ='21MBA221'!B130 -> DINAH NEETHA NORONHA | C129: 3 | E129: 4 | G129: 2 | I129: 4 | J129: 10 | K129: 2 | L129: 27 | M129: 25
A130: ='21MBA221'!A131 -> P18FW21M0117 | B130: ='21MBA221'!B131 -> HEGDE PAVANA GANAPATHI | C130: 5 | D130: 3 | E130: 5 | I130: 7 | J130: 10 | K130: 0 | L130: 32 | M130: 30
A131: ='21MBA221'!A132 -> P18FW21M0118 | B131: ='21MBA221'!B132 -> LOYSTON CRASTA | C131: 3 | D131: 5 | E131: 5 | I131: 5 | J131: 10 | K131: 8 | L131: 27 | M131: 36
A132: ='21MBA221'!A133 -> P18FW21M0119 | B132: ='21MBA221'!B133 -> GANESH HEGDE | C132: 4 | D132: 5 | E132: 5 | I132: 10 | J132: 5 | K132: 8 | L132: 33 | M132: 37
A133: ='21MBA221'!A134 -> P18FW21M0120 | B133: ='21MBA221'!B134 -> ANUSHA PRAKASH | C133: 3 | D133: 1 | E133: 5 | I133: 5 | J133: 10 | K133: 5 | L133: 35 | M133: 29
A134: ='21MBA221'!A135 -> P18FW21M0121 | B134: ='21MBA221'!B135 -> ANJANA KSHIRASAGAR | C134: 3 | D134: 2 | E134: 5 | I134: 6 | J134: 10 | L134: 16 | M134: 26
A135: ='21MBA221'!A136 -> P18FW21M0122 | B135: ='21MBA221'!B136 -> JAGADISH SHENOY R | C135: 5 | D135: 2 | E135: 3 | I135: 7 | J135: 10 | K135: 7 | L135: 28 | M135: 34
A136: ='21MBA221'!A137 -> P18FW21M0123 | B136: ='21MBA221'!B137 -> MADHAN KUMAR C S | C136: 3 | D136: 5 | E136: 5 | F136: 5 | I136: 8 | J136: 10 | K136: 7 | L136: 47 | M136: 43
A137: ='21MBA221'!A138 -> P18FW21M0124 | B137: ='21MBA221'!B138 -> TEJAS H P | C137: 5 | D137: 5 | E137: 1 | I137: 5 | J137: 4 | L137: 21 | M137: 20
A138: ='21MBA221'!A139 -> P18FW21M0125 | B138: ='21MBA221'!B139 -> DHANUSH K V | C138: 5 | E138: 5 | F138: 0 | I138: 8 | J138: 6 | L138: 27 | M138: 24
A139: ='21MBA221'!A140 -> P18FW21M0126 | B139: ='21MBA221'!B140 -> SWAMI SAMIKSHA PUSHPARAJ | C139: 4 | D139: 2 | E139: 2 | I139: 6 | J139: 5 | K139: 3 | L139: 31 | M139: 22
A140: ='21MBA221'!A141 -> P18FW21M0127 | B140: ='21MBA221'!B141 -> AMITH BHAT | C140: 3 | D140: 4.5 | E140: 5 | I140: 8 | J140: 6 | K140: 6 | L140: 15 | M140: 32.5
A141: ='21MBA221'!A142 -> P18FW21M0128 | B141: ='21MBA221'!B142 -> NUTHANA U | C141: 3 | D141: 2 | E141: 5 | I141: 2 | J141: 10 | K141: 7 | L141: 34 | M141: 29
A142: ='21MBA221'!A143 -> P18FW21M0129 | B142: ='21MBA221'!B143 -> CHETAN SINGH M | C142: 5 | D142: 3 | E142: 4 | I142: 5 | J142: 5 | K142: 3 | L142: 26 | M142: 25
A143: ='21MBA221'!A144 -> P18FW21M0130 | B143: ='21MBA221'!B144 -> KAUSTUBH LACHAPPANAVAR | C143: 5 | D143: 0 | E143: 3 | I143: 10 | J143: 6 | K143: 8 | L143: 32 | M143: 32
A144: ='21MBA221'!A145 -> P18FW21M0131 | B144: ='21MBA221'!B145 -> KSHITIJ P L | C144: 5 | D144: 5 | E144: 5 | I144: 10 | J144: 8 | L144: 33 | M144: =SUM(C144:K144) -> 33
A145: ='21MBA221'!A146 -> P18FW21M0132 | B145: ='21MBA221'!B146 -> BHUVANES P | C145: 5 | D145: 5 | E145: 5 | H145: 8 | I145: 4 | K145: 12 | L145: 29 | M145: 39
A146: ='21MBA221'!A147 -> P18FW21M0133 | B146: ='21MBA221'!B147 -> NALASANI VARSHITHA | C146: 5 | D146: 5 | E146: 5 | H146: 8 | J146: 10 | K146: 9 | L146: 35 | M146: 42
A147: ='21MBA221'!A148 -> P18FW21M0134 | B147: ='21MBA221'!B148 -> KOKILA K | C147: 5 | E147: 5 | G147: 3 | I147: 10 | J147: 10 | K147: 8 | L147: 38 | M147: 41
A148: ='21MBA221'!A149 -> P18FW21M0135 | B148: ='21MBA221'!B149 -> KOTHA KEERTHANA | C148: 5 | D148: 5 | E148: 5 | I148: 8 | J148: 6 | K148: 13 | L148: 36 | M148: 42
A149: ='21MBA221'!A150 -> P18FW21M0136 | B149: ='21MBA221'!B150 -> MUCHELI SUBBARAJU | C149: 3 | D149: 3 | G149: 3 | I149: 4 | J149: 10 | L149: 32 | M149: 23
A150: ='21MBA221'!A151 -> P18FW21M0137 | B150: ='21MBA221'!B151 -> NANDAGOPAL B R | D150: 5 | E150: 5 | F150: 2 | I150: 10 | J150: 5 | K150: 15 | L150: 30 | M150: 42
A151: ='21MBA221'!A152 -> P18FW21M0138 | B151: ='21MBA221'!B152 -> VISHAL SHIVARAJ | C151: 3 | D151: 5 | E151: 5 | I151: 6 | J151: 5 | K151: 8 | L151: 29 | M151: 32
A152: ='21MBA221'!A153 -> P18FW21M0139 | B152: ='21MBA221'!B153 -> SHASHI KUMAR R | D152: 5 | E152: 5 | F152: 5 | I152: 3 | J152: 4 | K152: 15 | L152: 36 | M152: 37
A153: ='21MBA221'!A154 -> P18FW21M0140 | B153: ='21MBA221'!B154 -> YASHWANTH R | C153: 5 | D153: 5 | E153: 5 | I153: 10 | J153: 8 | K153: 10 | L153: 38 | M153: 43
A154: ='21MBA221'!A155 -> P18FW21M0141 | B154: ='21MBA221'!B155 -> M M JABEZ | C154: 3 | D154: 5 | E154: 5 | I154: 10 | J154: 10 | K154: 10 | L154: 28 | M154: 43
A155: ='21MBA221'!A156 -> P18FW21M0142 | B155: ='21MBA221'!B156 -> KALAVALA ABHISHTA | C155: 5 | D155: 5 | E155: 5 | I155: 10 | J155: 10 | K155: 11 | L155: 43 | M155: 46
A156: ='21MBA221'!A157 -> P18FW21M0143 | B156: ='21MBA221'!B157 -> SANKALP V | D156: 4 | F156: 4 | G156: 0 | I156: 0 | J156: 0 | K156: 13 | L156: 16 | M156: 21
A157: ='21MBA221'!A158 -> P18FW21M0144 | B157: ='21MBA221'!B158 -> NAVEEN C | C157: 5 | D157: 5 | E157: 5 | I157: 8 | J157: 5 | K157: 15 | L157: 40 | M157: 43
A158: ='21MBA221'!A159 -> P18FW21M0145 | B158: ='21MBA221'!B159 -> PAVAN KUMAR M | C158: 2 | D158: 2 | E158: 5 | I158: 10 | J158: 8 | L158: 24 | M158: 27
A159: ='21MBA221'!A160 -> P18FW21M0146 | B159: ='21MBA221'!B160 -> KAPARTHI BHAVANA | C159: 5 | D159: 5 | E159: 5 | I159: 6 | J159: 8 | K159: 10 | L159: 32 | M159: 39
A160: ='21MBA221'!A161 -> P18FW21M0147 | B160: ='21MBA221'!B161 -> MANOJ N S | C160: 4 | D160: 5 | E160: 5 | I160: 3 | J160: 10 | K160: 8 | L160: 46 | M160: 35
A161: ='21MBA221'!A162 -> P18FW21M0149 | B161: ='21MBA221'!B162 -> HEMA S | C161: 5 | D161: 5 | E161: 5 | H161: 10 | I161: 10 | K161: 12 | L161: 40 | M161: 47
A162: ='21MBA221'!A163 -> P18FW21M0150 | B162: ='21MBA221'!B163 -> MADHUSUDAN G | C162: 5 | D162: 4.5 | E162: 5 | I162: 8 | J162: 10 | K162: 9 | L162: 25 | M162: 41.5
A163: ='21MBA221'!A164 -> P18FW21M0151 | B163: ='21MBA221'!B164 -> ANNASAGARAM RAGHAVENDRA | D163: 1 | E163: 5 | F163: 0 | H163: 1 | J163: 6 | L163: 16 | M163: 13
A164: ='21MBA221'!A165 -> P18FW21M0152 | B164: ='21MBA221'!B165 -> SYED MUSSAVEERULLA | C164: 2 | D164: 1 | E164: 1 | G164: 4 | I164: 2 | J164: 10 | K164: 7 | L164: 25 | M164: 27
A165: ='21MBA221'!A166 -> P18FW21M0153 | B165: ='21MBA221'!B166 -> SYED SAMEER | C165: 5 | D165: 5 | E165: 5 | I165: 8 | J165: 10 | K165: 8 | L165: 31 | M165: 41
A166: ='21MBA221'!A167 -> P18FW21M0154 | B166: ='21MBA221'!B167 -> RAMANABOINA ANAND KUMAR | C166: 5 | D166: 5 | E166: 5 | H166: 10 | I166: 10 | K166: 15 | L166: 48 | M166: 50
A167: ='21MBA221'!A168 -> P18FW21M0155 | B167: ='21MBA221'!B168 -> SHIVAM GANAPATI ANVEKAR | C167: 5 | E167: 5 | F167: 0 | I167: 5 | J167: 5 | L167: 33 | M167: 20
A168: ='21MBA221'!A169 -> P18FW21M0156 | B168: ='21MBA221'!B169 -> SHUBHAM SINGH | C168: 5 | E168: 3 | G168: 3 | I168: 5 | J168: 6 | L168: 35 | M168: 22
A169: ='21MBA221'!A170 -> P18FW21M0157 | B169: ='21MBA221'!B170 -> GURU VARUN G | C169: 1 | D169: 0 | E169: 0 | F169: 1 | I169: 0 | J169: 0 | K169: 0 | L169: 8 | M169: 2
A170: ='21MBA221'!A171 -> P18FW21M0158 | B170: ='21MBA221'!B171 -> ABHIJEETH MASHETTY | C170: 5 | D170: 5 | E170: 5 | I170: 8 | J170: 5 | K170: 11 | L170: 42 | M170: 39
A171: ='21MBA221'!A172 -> P18FW21M0159 | B171: ='21MBA221'!B172 -> PRANITH KUMAR S | C171: 4 | E171: 5 | G171: 2 | I171: 5 | J171: 5 | K171: 0 | L171: 37 | M171: 21
A172: ='21MBA221'!A173 -> P18FW21M0160 | B172: ='21MBA221'!B173 -> LIKITHA A | C172: 4 | D172: 5 | E172: 2 | I172: 7 | J172: 4 | K172: 4 | L172: 38 | M172: 26
A173: ='21MBA221'!A174 -> P18FW21M0161 | B173: ='21MBA221'!B174 -> NAVEEN SETTY N A | C173: 5 | D173: 2 | E173: 5 | H173: 7 | J173: 10 | K173: 13 | L173: 39 | M173: 42
A174: ='21MBA221'!A175 -> P18FW21M0162 | B174: ='21MBA221'!B175 -> REHAN FAISAL QADRI | C174: 5 | D174: 5 | E174: 5 | H174: 2 | I174: 10 | K174: 5 | L174: 23 | M174: 32
A175: ='21MBA221'!A176 -> P18FW21M0163 | B175: ='21MBA221'!B176 -> SMITHA M | C175: 2 | D175: 5 | E175: 4.5 | I175: 10 | J175: 10 | K175: 15 | L175: 37 | M175: 46.5
A176: ='21MBA221'!A177 -> P18FW21M0164 | B176: ='21MBA221'!B177 -> ANIRUDH K | C176: 1 | E176: 5 | F176: 0 | I176: 4 | J176: 3 | L176: 13 | M176: 13
A177: ='21MBA221'!A178 -> P18FW21M0165 | B177: ='21MBA221'!B178 -> SALMAN FAISAL QADRI | C177: 2 | E177: 1 | F177: 0 | H177: 5 | I177: 0 | K177: 4 | L177: 21 | M177: 12
A178: ='21MBA221'!A179 -> P18FW21M0166 | B178: ='21MBA221'!B179 -> RAVISH RAMACHANDRA HEGDE | C178: 4 | E178: 5 | F178: 4 | I178: 6 | J178: 10 | L178: 14 | M178: 29
A179: ='21MBA221'!A180 -> P18FW21M0167 | B179: ='21MBA221'!B180 -> POOJA VALLUR | C179: 5 | D179: 5 | E179: 5 | I179: 10 | J179: 8 | K179: 8 | L179: 34 | M179: 41
A180: ='21MBA221'!A181 -> P18FW21M0169 | B180: ='21MBA221'!B181 -> MAHANTH GOWDA K C | C180: 5 | D180: 5 | E180: 5 | I180: 10 | J180: 6 | K180: 15 | L180: 40 | M180: 46
A181: ='21MBA221'!A182 -> P18FW21M0170 | B181: ='21MBA221'!B182 -> BHUPALI SAURABH PRAKASH | C181: 5 | D181: 4 | E181: 5 | I181: 10 | J181: 8 | K181: 5 | L181: 41 | M181: 37
A182: ='21MBA221'!A183 -> P18FW21M0171 | B182: ='21MBA221'!B183 -> SYED RAIHAN | C182: 4 | D182: 3 | E182: 5 | I182: 3 | J182: 10 | L182: 39 | M182: 25
A183: ='21MBA221'!A184 -> P18FW21M0172 | B183: ='21MBA221'!B184 -> SHRI HARI L | C183: 3 | D183: 3 | E183: 3 | I183: 5 | J183: 5 | K183: 7 | L183: 26 | M183: 26
A184: ='21MBA221'!A185 -> P18FW21M0173 | B184: ='21MBA221'!B185 -> SNEHA U | C184: 5 | D184: 5 | E184: 4 | I184: 8 | J184: 8 | K184: 4 | L184: 18 | M184: 34
A185: ='21MBA221'!A186 -> P18FW21M0174 | B185: ='21MBA221'!B186 -> SHAH VINIT SIDDHARTH | C185: 5 | E185: 3 | F185: 0 | I185: 8 | J185: 6 | K185: 0 | L185: 25 | M185: 22
A186: ='21MBA221'!A187 -> P18FW21M0175 | B186: ='21MBA221'!B187 -> NAYANA G C | C186: 2 | D186: 2 | E186: 3 | F186: 2 | I186: 4 | J186: 5 | K186: 2 | L186: 27 | M186: 20
A187: ='21MBA221'!A188 -> P18FW21M0176 | B187: ='21MBA221'!B188 -> D SURIYA PRIYASREE | C187: 3 | E187: 5 | G187: 2 | I187: 8 | J187: 10 | L187: 29 | M187: 28
A188: ='21MBA221'!A189 -> P18FW21M0177 | B188: ='21MBA221'!B189 -> SATHYA B NAYAKA | C188: 5 | D188: 5 | E188: 5 | I188: 9 | J188: 10 | K188: 4 | L188: 35 | M188: 38
A189: ='21MBA221'!A190 -> P18FW21M0178 | B189: ='21MBA221'!B190 -> NEHA H V | C189: 1 | E189: 1 | F189: 1 | H189: 2 | J189: 3 | L189: 17 | M189: 8
A190: ='21MBA221'!A191 -> P18FW21M0179 | B190: ='21MBA221'!B191 -> SAAHIL SRIKANT KULLOLI | C190: 5 | D190: 5 | E190: 5 | I190: 10 | J190: 9 | K190: 15 | L190: 39 | M190: 49
A191: ='21MBA221'!A192 -> P18FW21M0180 | B191: ='21MBA221'!B192 -> SIMRANJIT KAUR | C191: 5 | D191: 5 | E191: 5 | I191: 10 | J191: 10 | K191: 15 | L191: 46 | M191: 50
A192: ='21MBA221'!A193 -> P18FW21M0181 | B192: ='21MBA221'!B193 -> NIRANJAN JANARDHAN HEGDE | C192: 2 | D192: 0 | E192: 1 | G192: 3 | I192: 8 | J192: 2 | K192: 4 | L192: 12 | M192: 20
A193: ='21MBA221'!A194 -> P18FW21M0182 | B193: ='21MBA221'!B194 -> TEJAS N | M193: 0
A194: ='21MBA221'!A195 -> P18FW21M0184 | B194: ='21MBA221'!B195 -> AGAMYA A KINHAL | C194: 2 | D194: 0 | E194: 2 | I194: 5 | J194: 10 | K194: 2 | L194: 14 | M194: 21
A195: No. of students attended | C195: =COUNTA(C15:C194) -> 174 | D195: 153 | E195: 171 | F195: 35 | G195: 12 | H195: 19 | I195: 172 | J195: 169 | K195: 147 | L195: =COUNT(L15:L194) -> 178
A196: No. of Students attained CO | C196: =COUNTIF(C15:C194,">"&C14) -> 117 | D196: 109 | E196: 140 | F196: 14 | G196: 1 | H196: 14 | I196: 154 | J196: 116 | K196: 99 | L196: 158
A197: CO Attainment percentage | C197: =ROUND(C196*100/C195,0) -> 67 | D197: 71 | E197: 82 | F197: 40 | G197: 8 | H197: 74 | I197: 90 | J197: 69 | K197: 67 | L197: =ROUND(L196*100/L195,0) -> 89
A198: Level | C198: =IF(C197>=80,"3",IF(C197>=70,"2",IF(C197>=60,"1","-"))) -> 1 | D198: =IF(D197>=80,"3",IF(D197>=70,"2",IF(D197>=60,"1","-"))) -> 2 | E198: 3 | F198: - | G198: - | H198: 2 | I198: 3 | J198: 1 | K198: 1 | L198: 3
H199: Internals | J199: Final CO Attainment
F200: CO | H200: Percent | I200: Level | J200: Percent | K200: Level
F201: CO 1 | H201: =AVERAGE(C197,D197) -> 69 | I201: =IF(H201>=80,"3",IF(H201>=70,"2",IF(H201>=60,"1",IF(H201<=59,"-")))) -> 1 | J201: =(H201*0.3)+($L$197*0.7) -> 83 | K201: =IF(J201>=80,"3",IF(J201>=70,"2",IF(J201>=60,"1",IF(J201<59,"-")))) -> 3
... 3 more rows

Sheet 21MBA421-Attainment
A1: ='21MBA421'!A5:M5 -> Application of Operations Research in Business
D3: Internals | F3: Final CO Attainment
C4: CO | D4: Percentage | E4: Level | F4: Percentage | G4: Level
C5: CO1 | D5: ='21MBA421'!H201 -> 69 | E5: ='21MBA421'!I201 -> 1 | F5: ='21MBA421'!J201 -> 83 | G5: ='21MBA421'!K201 -> 3
C6: CO2 | D6: ='21MBA421'!H202 -> 73 | E6: ='21MBA421'!I202 -> 2 | F6: ='21MBA421'!J202 -> 84 | G6: ='21MBA421'!K202 -> 3
C7: CO3 | D7: ='21MBA421'!H203 -> 53 | E7: ='21MBA421'!I203 -> - | F7: ='21MBA421'!J203 -> 78 | G7: ='21MBA421'!K203 -> 2
C8: CO4 | D8: ='21MBA421'!H204 -> 66 | E8: ='21MBA421'!I204 -> 1 | F8: ='21MBA421'!J204 -> 82 | G8: ='21MBA421'!K204 -> 3
C10: PO1 | D10: PO2 | E10: PO3 | F10: PO4 | G10: PO5 | H10: PO6 | I10: PO7 | J10: PO8 | K10: PO9 | L10: PO10 | M10: PO11
B11: C01 | C11: 1 | D11: 3 | E11: 1 | H11: 2 | I11: 3 | K11: 3
B12: C02 | D12: 3 | E12: 1 | G12: 1 | I12: 3 | J12: 3 | K12: 3 | L12: 1
B13: C03 | C13: 2 | D13: 3 | E13: 1 | I13: 3 | J13: 1 | K13: 3 | L13: 1
B14: C04 | D14: 3 | H14: 3 | I14: 3 | J14: 1 | K14: 3 | L14: 1 | M14: 1
B15: C05 | C15: 1 | D15: 3 | E15: 2 | H15: 1 | I15: 3 | J15: 1 | K15: 3
A17: Final CO | C17: PO1 | D17: PO2 | E17: PO3 | F17: PO4 | G17: PO5 | H17: PO6 | I17: PO7 | J17: PO8 | K17: PO9 | L17: PO10 | M17: PO11
A18: ATTAINMENT
A19: C01 | B19: =F5 -> 83.00 | C19: =C11*$B$19/3 -> 27.67 | D19: 83.00 | E19: 27.67 | F19: 0.00 | G19: 0.00 | H19: 55.33 | I19: 83.00 | J19: 0.00 | K19: 83.00 | L19: 0.00 | M19: 0.00
A20: C02 | B20: =F6 -> 84.30 | C20: =C12*$B$20/3 -> 0.00 | D20: 84.30 | E20: 28.10 | F20: 0.00 | G20: 28.10 | H20: 0.00 | I20: 84.30 | J20: 84.30 | K20: 84.30 | L20: 28.10 | M20: 0.00
A21: C03 | B21: =F7 -> 78.20 | C21: =C13*$B$21/3 -> 52.13 | D21: 78.20 | E21: 26.07 | F21: 0.00 | G21: 0.00 | H21: 0.00 | I21: 78.20 | J21: 26.07 | K21: 78.20 | L21: 26.07 | M21: 0.00
A22: C04 | B22: =F8 -> 82.00 | C22: =C14*$B$22/3 -> 0.00 | D22: 82.00 | E22: 0.00 | F22: 0.00 | G22: 0.00 | H22: 82.00 | I22: 82.00 | J22: 27.33 | K22: 82.00 | L22: 27.33 | M22: 27.33
A23: Average | C23: =AVERAGE(C19:C22) -> 19.95 | D23: 81.88 | E23: 20.46 | F23: 0.00 | G23: 7.03 | H23: 34.33 | I23: 81.88 | J23: 34.43 | K23: 81.88 | L23: 20.38 | M23: 6.83

Sheet 21MBA521
A1: RV Institute of Management
A2: Autonomous Institution Affiliated to BCU
A3: MBA Programme II Semester
A4: Course Outcome Report
A5: Introduction to Business Analytics
A6: Name of the Course Teacher: | I6: Sub. Code: | L6: 21MBA521
A7: Prof. Vidyadhar Hegde, Dr. Jahnavi M, Prof.Nagasubba Reddy | J7: Sec: | L7: ABC
D8: Semester II
D9: Batch 2021-23
C11: Section A | H11: Section B | K11: Sec-C
A12: Question number | C12: 1 | D12: 2 | E12: 3 | F12: 4 | G12: 5 | H12: 6 | I12: 7 | J12: 8 | K12: 9 | L12: External Exam | M12: Mid Term Exam
A13: Course outcome | C13: CO1 | D13: CO1 | E13: CO3 | F13: CO4 | G13: CO2 | H13: CO2 | I13: CO5 | J13: CO3 | K13: CO4 | L13: Marks | M13: Marks
A14: Maximum marks | C14: 5 | D14: 5 | E14: 5 | F14: 5 | G14: 5 | H14: 10 | I14: 10 | J14: 10 | K14: 15 | L14: 50 | M14: 50
A15: Student Reg. No | B15: Student Name | C15: =C14*0.64 -> 3.2 | D15: =D14*0.64 -> 3.2 | E15: 3.2 | F15: 3.2 | G15: 3.2 | H15: 6.4 | I15: 6.4 | J15: 6.4 | K15: 9.6 | L15: =L14*0.357142 -> 18
A16: ='21MBA221'!A16 -> P18FW21M0001 | B16: ='21MBA221'!B16 -> VIPUL VILAS NAIK | C16: 2.5 | E16: 4 | F16: 4 | I16: 5 | J16: 6 | K16: 10 | L16: 29 | M16: =SUM(C16:K16) -> 32
A17: ='21MBA221'!A17 -> P18FW21M0002 | B17: ='21MBA221'!B17 -> M PRANEETH KUMAR REDDY | C17: 4 | E17: 3 | F17: 4 | I17: 10 | J17: 7 | K17: 11 | L17: 33 | M17: =SUM(C17:K17) -> 39
A18: ='21MBA221'!A18 -> P18FW21M0003 | B18: ='21MBA221'!B18 -> NIKHIL S ANJANALLI | D18: 5 | E18: 4 | F18: 5 | I18: 6 | J18: 9 | K18: 13 | L18: 35 | M18: 42
A19: ='21MBA221'!A19 -> P18FW21M0004 | B19: ='21MBA221'!B19 -> KARTHIK P SHETTY | C19: 3 | D19: 4 | E19: 4 | I19: 6 | J19: 4 | K19: 12 | L19: 31 | M19: 33
A20: ='21MBA221'!A20 -> P18FW21M0005 | B20: ='21MBA221'!B20 -> AMITH C | D20: 4 | E20: 4 | G20: 4 | I20: 6 | J20: 6 | K20: 11 | L20: 32 | M20: 35
A21: ='21MBA221'!A21 -> P18FW21M0006 | B21: ='21MBA221'!B21 -> AISHWARYA G | D21: 5 | E21: 4 | F21: 3 | G21: 2 | H21: 5 | J21: 0 | K21: 2 | L21: 30 | M21: 21
A22: ='21MBA221'!A22 -> P18FW21M0007 | B22: ='21MBA221'!B22 -> AKANKSH P | C22: 4 | D22: 5 | E22: 5 | I22: 5 | J22: 6 | K22: 14 | L22: 34 | M22: 39
A23: ='21MBA221'!A23 -> P18FW21M0008 | B23: ='21MBA221'!B23 -> SACHITH B K | D23: 1 | F23: 2 | G23: 4 | H23: 6 | I23: 7 | K23: 10 | L23: 32 | M23: 30
A24: ='21MBA221'!A24 -> P18FW21M0009 | B24: ='21MBA221'!B24 -> CHAITANYA KAMATAGI B | C24: 4 | D24: 5 | G24: 4 | I24: 10 | J24: 8 | K24: 14 | L24: 38 | M24: 45
A25: ='21MBA221'!A25 -> P18FW21M0010 | B25: ='21MBA221'!B25 -> AKASH RACHAPPA KHANAGAVI | C25: 4 | D25: 5 | G25: 4 | I25: 8 | J25: 8 | K25: 13 | L25: 35 | M25: 42
A26: ='21MBA221'!A26 -> P18FW21M0011 | B26: ='21MBA221'!B26 -> SOURAV SADANAND SWAR | C26: 4 | D26: 4 | F26: 2 | H26: 4 | I26: 0 | K26: 10 | L26: 26 | M26: 24
A27: ='21MBA221'!A27 -> P18FW21M0012 | B27: ='21MBA221'!B27 -> NISHANTH KRISHNA | D27: 4 | E27: 4 | F27: 5 | I27: 8 | J27: 9 | K27: 13 | L27: 36 | M27: 43
A28: ='21MBA221'!A28 -> P18FW21M0013 | B28: ='21MBA221'!B28 -> MEHUL V BHASKAR | C28: 2 | D28: 3 | G28: 2 | I28: 3 | J28: 5 | K28: 5 | L28: 23 | M28: 20
A29: ='21MBA221'!A29 -> P18FW21M0014 | B29: ='21MBA221'!B29 -> SHUBHAM RAJENDRA REVANKAR | C29: 3 | D29: 3 | F29: 2 | I29: 4 | J29: 6 | K29: 5 | L29: 28 | M29: 23
A30: ='21MBA221'!A30 -> P18FW21M0015 | B30: ='21MBA221'!B30 -> SHETTY TRUPTHI CHANDRAHAS | C30: 3.5 | D30: 4 | E30: 4 | H30: 4 | I30: 5 | K30: 5.5 | L30: 35 | M30: 26
A31: ='21MBA221'!A31 -> P18FW21M0016 | B31: ='21MBA221'!B31 -> SHEEBAL M S | C31: 4 | D31: 5 | E31: 4 | I31: 8 | J31: 6 | K31: 14 | L31: 35 | M31: 41
A32: ='21MBA221'!A32 -> P18FW21M0017 | B32: ='21MBA221'!B32 -> VISHNU KUMAR | C32: 3 | D32: 5 | G32: 5 | I32: 7 | J32: 6 | K32: 14 | L32: 35 | M32: 40
A33: ='21MBA221'!A33 -> P18FW21M0018 | B33: ='21MBA221'!B33 -> HARSHITHA SRINIVAS | C33: 4 | D33: 4 | E33: 5 | I33: 7 | J33: 4 | K33: 6 | L33: 38 | M33: 30
A34: ='21MBA221'!A34 -> P18FW21M0019 | B34: ='21MBA221'!B34 -> SAGI SAMPI | D34: 5 | E34: 4.5 | F34: 5 | I34: 10 | J34: 9 | K34: 14 | L34: 37 | M34: 48
A35: ='21MBA221'!A35 -> P18FW21M0020 | B35: ='21MBA221'!B35 -> PAULOMEE BARUAH | C35: 4 | D35: 5 | E35: 4.5 | I35: 9.5 | J35: 3 | K35: 6 | L35: 33 | M35: 32
A36: ='21MBA221'!A36 -> P18FW21M0021 | B36: ='21MBA221'!B36 -> NEETHA KAMATH | C36: 5 | D36: 4.5 | E36: 4 | I36: 6 | J36: 8 | K36: 11.5 | L36: 32 | M36: 39
A37: ='21MBA221'!A37 -> P18FW21M0022 | B37: ='21MBA221'!B37 -> ADITYA UDAY HEGDE | C37: 4.5 | E37: 4 | F37: 3 | I37: 3 | J37: 7 | K37: 14 | L37: 35 | M37: 36
A38: ='21MBA221'!A38 -> P18FW21M0023 | B38: ='21MBA221'!B38 -> SHREYAS G A | C38: 4 | D38: 5 | F38: 4 | G38: 2 | I38: 9 | J38: 9 | K38: 7 | L38: 32 | M38: 40
A39: ='21MBA221'!A39 -> P18FW21M0024 | B39: ='21MBA221'!B39 -> SRUJANA S | D39: 4 | E39: 4.5 | F39: 4.5 | I39: 7 | J39: 9 | K39: 15 | L39: 35 | M39: 44
A40: ='21MBA221'!A40 -> P18FW21M0025 | B40: ='21MBA221'!B40 -> PRAJWAL S N | C40: 4.5 | D40: 4 | F40: 4 | I40: 2 | J40: 8 | K40: 12 | L40: 33 | M40: 35
A41: ='21MBA221'!A41 -> P18FW21M0026 | B41: ='21MBA221'!B41 -> SUCHITRA G | C41: 4 | D41: 4.5 | E41: 3 | I41: 7 | J41: 7 | K41: 11 | L41: 32 | M41: 37
A42: ='21MBA221'!A42 -> P18FW21M0027 | B42: ='21MBA221'!B42 -> SANKET SURESH SHIRSAT | C42: 4.5 | D42: 5 | E42: 4.5 | I42: 8 | J42: 9 | K42: 7 | L42: 34 | M42: 38
A43: ='21MBA221'!A43 -> P18FW21M0028 | B43: ='21MBA221'!B43 -> ANIKET SANJAY REVANKAR | C43: 4 | D43: 5 | F43: 4.5 | I43: 10 | J43: 9 | K43: 7 | L43: 35 | M43: 40
A44: ='21MBA221'!A44 -> P18FW21M0029 | B44: ='21MBA221'!B44 -> AKHILA H | D44: 5 | E44: 4 | F44: 3 | I44: 7 | J44: 6 | K44: 9 | L44: 29 | M44: 34
A45: ='21MBA221'!A45 -> P18FW21M0030 | B45: ='21MBA221'!B45 -> M LUQMAN NAWAZ | C45: 4.5 | E45: 4.5 | F45: 4 | I45: 10 | J45: 8 | K45: 6 | L45: 36 | M45: 37
A46: ='21MBA221'!A46 -> P18FW21M0031 | B46: ='21MBA221'!B46 -> MADHURA A | C46: 5 | D46: 4.5 | F46: 4.5 | I46: 10 | J46: 9 | K46: 6 | L46: 41 | M46: 39
A47: ='21MBA221'!A47 -> P18FW21M0032 | B47: ='21MBA221'!B47 -> H V SHREEVATSA | D47: 4 | E47: 4 | G47: 4 | I47: 4 | J47: 8 | K47: 8 | L47: 26 | M47: 32
A48: ='21MBA221'!A48 -> P18FW21M0033 | B48: ='21MBA221'!B48 -> LILIMA DASH | D48: 4 | E48: 3 | G48: 5 | I48: 5 | J48: 8 | K48: 7 | L48: 34 | M48: 32
A49: ='21MBA221'!A49 -> P18FW21M0034 | B49: ='21MBA221'!B49 -> KUMAR ASHUTOSH | C49: 4.5 | D49: 4 | E49: 2 | I49: 2 | J49: 0 | K49: 2 | L49: 25 | M49: 15
A50: ='21MBA221'!A50 -> P18FW21M0035 | B50: ='21MBA221'!B50 -> RAHUL S SANGOLLI | C50: 4 | D50: 3.5 | E50: 4 | G50: 4 | I50: 8 | J50: 8 | K50: 3 | L50: 33 | M50: 35
A51: ='21MBA221'!A51 -> P18FW21M0036 | B51: ='21MBA221'!B51 -> GIRISH N NASHI | C51: 4 | D51: 3 | E51: 4 | H51: 7 | I51: 6 | K51: 14 | L51: 34 | M51: 38
A52: ='21MBA221'!A52 -> P18FW21M0037 | B52: ='21MBA221'!B52 -> ANKITA GAJANAN NAIK | E52: 4 | F52: 4 | G52: 4 | I52: 10 | J52: 9 | K52: 14 | L52: 31 | M52: 45
A53: ='21MBA221'!A53 -> P18FW21M0038 | B53: ='21MBA221'!B53 -> GURUBASAVARAJ K M | C53: 4 | D53: 4 | F53: 4 | I53: 5 | J53: 4 | K53: 4 | L53: 34 | M53: 25
A54: ='21MBA221'!A54 -> P18FW21M0039 | B54: ='21MBA221'!B54 -> ANANYA P HEGDE | C54: 4 | D54: 4 | E54: 4 | I54: 10 | J54: 10 | K54: 14 | L54: 33 | M54: 46
A55: ='21MBA221'!A55 -> P18FW21M0040 | B55: ='21MBA221'!B55 -> NIVEDITHA K SWAMY | C55: 3 | D55: 4 | F55: 3 | H55: 3 | I55: 8 | K55: 11 | L55: 37 | M55: 32
A56: ='21MBA221'!A56 -> P18FW21M0041 | B56: ='21MBA221'!B56 -> LIKHITHA L | C56: 4 | D56: 4 | E56: 4 | I56: 5 | J56: 8 | K56: 10 | L56: 33 | M56: 35
A57: ='21MBA221'!A57 -> P18FW21M0042 | B57: ='21MBA221'!B57 -> RAHUL RAM BHAT | D57: 4 | E57: 4 | F57: 4 | I57: 9 | J57: 8 | K57: 5 | L57: 33 | M57: 34
A58: ='21MBA221'!A58 -> P18FW21M0043 | B58: ='21MBA221'!B58 -> AMIT KAMADOLLISHETTARU | D58: 4 | E58: 3 | F58: 4 | I58: 5 | J58: 8 | K58: 14 | L58: 30 | M58: 38
A59: ='21MBA221'!A59 -> P18FW21M0044 | B59: ='21MBA221'!B59 -> POOJARANI TALAWAR | D59: 4 | E59: 3 | F59: 4 | I59: 5 | J59: 7 | K59: 13 | L59: 33 | M59: 36
A60: ='21MBA221'!A60 -> P18FW21M0045 | B60: ='21MBA221'!B60 -> ABHITHA K | C60: 4 | E60: 4 | F60: 4 | I60: 6 | J60: 0 | K60: 5 | L60: 31 | M60: 23
A61: ='21MBA221'!A61 -> P18FW21M0046 | B61: ='21MBA221'!B61 -> S SHREYAS | D61: 3 | E61: 2 | F61: 3 | I61: 2 | J61: 3 | K61: 9 | L61: 27 | M61: 22
A62: ='21MBA221'!A62 -> P18FW21M0047 | B62: ='21MBA221'!B62 -> ABHISHEK SHENOY | C62: 4 | D62: 4 | E62: 4 | I62: 5 | J62: 8 | K62: 4 | L62: 27 | M62: 29
A63: ='21MBA221'!A63 -> P18FW21M0048 | B63: ='21MBA221'!B63 -> B S SUSHEN | D63: 4 | E63: 4 | G63: 4 | I63: 4 | J63: 6 | K63: 12 | L63: 39 | M63: 34
A64: ='21MBA221'!A64 -> P18FW21M0049 | B64: ='21MBA221'!B64 -> PRAJWALA H | C64: 4 | D64: 4 | E64: 4 | I64: 6 | J64: 8 | K64: 14 | L64: 40 | M64: 40
A65: ='21MBA221'!A65 -> P18FW21M0050 | B65: ='21MBA221'!B65 -> VAISHNAVI N | D65: 4 | E65: 4 | F65: 3 | I65: 6 | J65: 8 | K65: 14 | L65: 40 | M65: 39
A66: ='21MBA221'!A66 -> P18FW21M0051 | B66: ='21MBA221'!B66 -> DEEPAK GIRISH KALYANI | C66: 4 | E66: 4 | G66: 4 | I66: 10 | J66: 9 | K66: 11 | L66: 36 | M66: 42
A67: ='21MBA221'!A67 -> P18FW21M0052 | B67: ='21MBA221'!B67 -> ISAAC JESSE K | D67: 3 | E67: 3 | F67: 3 | I67: 6 | J67: 0 | L67: 23 | M67: 15
A68: ='21MBA221'!A68 -> P18FW21M0053 | B68: ='21MBA221'!B68 -> SUPRIYA GOVIND BELSARE | D68: 5 | E68: 4 | F68: 5 | I68: 8 | J68: 4 | K68: 11 | L68: 27 | M68: 37
A69: ='21MBA221'!A69 -> P18FW21M0054 | B69: ='21MBA221'!B69 -> VINAYAK RAO GAIKWAD K | C69: 5 | E69: 5 | I69: 3 | J69: 0 | K69: 2 | L69: 27 | M69: 15
A70: ='21MBA221'!A70 -> P18FW21M0055 | B70: ='21MBA221'!B70 -> SUTOPA DEB | C70: 4.5 | E70: 5 | G70: 4 | I70: 7 | J70: 3.5 | K70: 7 | L70: 30 | M70: 31
A71: ='21MBA221'!A71 -> P18FW21M0056 | B71: ='21MBA221'!B71 -> M S SUKRUT | C71: 3 | D71: 3 | F71: 4 | I71: 2 | J71: 0 | K71: 14 | L71: AB | M71: 26
A72: ='21MBA221'!A72 -> P18FW21M0057 | B72: ='21MBA221'!B72 -> BHASKARA PRABHU | C72: 4.5 | D72: 4.5 | F72: 4 | I72: 7 | J72: 9 | K72: 13 | L72: 37 | M72: 42
A73: ='21MBA221'!A73 -> P18FW21M0058 | B73: ='21MBA221'!B73 -> PRAKASH SHIVAKUMAR | C73: 4.5 | D73: 4.5 | E73: 3 | I73: 5 | J73: 7 | K73: 8 | L73: 27 | M73: 32
A74: ='21MBA221'!A74 -> P18FW21M0059 | B74: ='21MBA221'!B74 -> AMOGHA Y G | C74: 3 | D74: 3 | E74: 4 | I74: 4 | J74: 6 | K74: 12 | L74: 31 | M74: 32
A75: ='21MBA221'!A75 -> P18FW21M0060 | B75: ='21MBA221'!B75 -> BHARATH K S | D75: 4 | E75: 4 | F75: 2 | G75: 0 | H75: 3 | I75: 6 | J75: 3 | K75: 11 | L75: 30 | M75: 33
A76: ='21MBA221'!A76 -> P18FW21M0061 | B76: ='21MBA221'!B76 -> AKANKSH K G | C76: 4 | F76: 1 | G76: 3 | I76: 5 | J76: 8 | K76: 7 | L76: 30 | M76: 28
A77: ='21MBA221'!A77 -> P18FW21M0062 | B77: ='21MBA221'!B77 -> BERNARD FERNANDES | C77: 4 | D77: 5 | E77: 4 | G77: 0 | I77: 0 | J77: 8 | K77: 4 | L77: 22 | M77: 25
A78: ='21MBA221'!A78 -> P18FW21M0063 | B78: ='21MBA221'!B78 -> AISHWARYA P | C78: 5 | E78: 4 | F78: 3 | I78: 5 | J78: 4 | K78: 6 | L78: 28 | M78: 27
A79: ='21MBA221'!A79 -> P18FW21M0064 | B79: ='21MBA221'!B79 -> VIOLA PINTO | C79: 5 | D79: 5 | F79: 4 | I79: 6 | J79: 8 | K79: 7 | L79: 36 | M79: 35
A80: ='21MBA221'!A80 -> P18FW21M0065 | B80: ='21MBA221'!B80 -> VARSHA | D80: 4.5 | E80: 3 | F80: 3.5 | I80: 6 | J80: 9 | K80: 14 | L80: 32 | M80: 40
A81: ='21MBA221'!A81 -> P18FW21M0066 | B81: ='21MBA221'!B81 -> CHIDRI BALAJI | C81: 4 | D81: 4.5 | E81: 4.5 | I81: 10 | J81: 6 | K81: 13 | L81: 36 | M81: =SUM(C81:K81) -> 42
A82: ='21MBA221'!A82 -> P18FW21M0067 | B82: ='21MBA221'!B82 -> GAGANDEEP V N | C82: 4.5 | D82: 4.5 | E82: 4 | I82: 0 | J82: 7 | K82: 3 | L82: 30 | M82: 23
A83: ='21MBA221'!A83 -> P18FW21M0068 | B83: ='21MBA221'!B83 -> PRAJWALA | C83: 5 | D83: 5 | F83: 4 | H83: 5 | I83: 5 | K83: 14 | L83: 40 | M83: 38
A84: ='21MBA221'!A84 -> P18FW21M0069 | B84: ='21MBA221'!B84 -> POORNIMA L | D84: 5 | E84: 4 | F84: 5 | G84: 5 | I84: 3 | J84: 10 | K84: 13 | L84: 35 | M84: 45
A85: ='21MBA221'!A85 -> P18FW21M0070 | B85: ='21MBA221'!B85 -> SHUBIKSHA S | C85: 4 | D85: 4 | F85: 5 | I85: 6 | J85: 8 | K85: 11 | L85: 32 | M85: 38
A86: ='21MBA221'!A86 -> P18FW21M0071 | B86: ='21MBA221'!B86 -> ANUSHA | C86: 4 | D86: 5 | E86: 5 | I86: 6 | J86: 8 | K86: 6 | L86: 32 | M86: 34
A87: ='21MBA221'!A87 -> P18FW21M0072 | B87: ='21MBA221'!B87 -> P T KIRTI | C87: 4 | D87: 4 | F87: 4 | I87: 6 | J87: 4 | K87: 12 | L87: 33 | M87: 34
A88: ='21MBA221'!A88 -> P18FW21M0073 | B88: ='21MBA221'!B88 -> SAMEEKSHA M P | C88: 4 | D88: 5 | E88: 5 | I88: 5 | J88: 9 | K88: 14 | L88: 37 | M88: 42
A89: ='21MBA221'!A89 -> P18FW21M0074 | B89: ='21MBA221'!B89 -> KAVYAPRIYA J | C89: 4 | D89: 4.5 | E89: 4.5 | I89: 8 | J89: 9 | K89: 13 | L89: 37 | M89: 43
A90: ='21MBA221'!A90 -> P18FW21M0075 | B90: ='21MBA221'!B90 -> RAKSHITH R T | D90: 4 | E90: 4 | F90: 4 | I90: 8 | J90: 8 | K90: 14 | L90: 32 | M90: 42
A91: ='21MBA221'!A91 -> P18FW21M0076 | B91: ='21MBA221'!B91 -> SHUBHA R | D91: 5 | E91: 5 | F91: 5 | I91: 10 | J91: 10 | K91: 15 | L91: 40 | M91: 50
A92: ='21MBA221'!A92 -> P18FW21M0077 | B92: ='21MBA221'!B92 -> BASAVARAJ | C92: 4.5 | D92: 5 | E92: 5 | I92: 2.5 | J92: 8 | K92: 7 | L92: 36 | M92: 32
A93: ='21MBA221'!A93 -> P18FW21M0078 | B93: ='21MBA221'!B93 -> MANOJ RAKSHATH B S | C93: 3 | D93: 3 | E93: 2 | H93: 6 | I93: 6 | K93: 3 | L93: 25 | M93: 23
A94: ='21MBA221'!A94 -> P18FW21M0079 | B94: ='21MBA221'!B94 -> ADITI RANI | D94: 5 | E94: 5 | F94: 5 | I94: 5 | J94: 10 | K94: 15 | L94: 35 | M94: 45
A95: ='21MBA221'!A95 -> P18FW21M0080 | B95: ='21MBA221'!B95 -> DIVYA SHREE M | C95: 4 | E95: 4 | F95: 4 | I95: 5 | J95: 8 | K95: 13 | L95: 37 | M95: 38
A96: ='21MBA221'!A96 -> P18FW21M0081 | B96: ='21MBA221'!B96 -> VARUN S BHARADWAJ | C96: 4 | D96: 4 | E96: 4 | I96: 8 | J96: 6 | K96: 14 | L96: 36 | M96: 40
A97: ='21MBA221'!A97 -> P18FW21M0082 | B97: ='21MBA221'!B97 -> S KARTHIK | C97: 3 | D97: 3 | F97: 4 | I97: 7 | J97: 3 | K97: 13 | L97: 32 | M97: 33
A98: ='21MBA221'!A98 -> P18FW21M0083 | B98: ='21MBA221'!B98 -> NEELAMMA M K | C98: 4 | E98: 5 | F98: 4 | G98: 4 | H98: 3 | I98: 5 | K98: 14 | L98: 36 | M98: 39
A99: ='21MBA221'!A99 -> P18FW21M0084 | B99: ='21MBA221'!B99 -> PRAMOD K L | D99: 3 | E99: 4 | F99: 4 | I99: 9 | J99: 4 | K99: 13 | L99: 36 | M99: 37
A100: ='21MBA221'!A100 -> P18FW21M0085 | B100: ='21MBA221'!B100 -> NAMRATHA N | C100: 3 | D100: 5 | F100: 4 | H100: 6 | I100: 0 | K100: 7 | L100: 36 | M100: 25
A101: ='21MBA221'!A101 -> P18FW21M0086 | B101: ='21MBA221'!B101 -> ANVITH KUMAR | C101: 3.5 | D101: 4.5 | E101: 5 | I101: 10 | J101: 7 | K101: 13 | L101: 33 | M101: 43
A102: ='21MBA221'!A102 -> P18FW21M0087 | B102: ='21MBA221'!B102 -> BHOOMIKA BHAT | D102: 3 | F102: 4 | G102: 3 | I102: 6 | J102: 8 | K102: 12 | L102: 37 | M102: 36
A103: ='21MBA221'!A103 -> P18FW21M0088 | B103: ='21MBA221'!B103 -> SOUMYA GANAPATI HEGDE | D103: 4 | E103: 4 | G103: 3 | I103: 6 | J103: 8 | K103: 12 | L103: 35 | M103: 37
A104: ='21MBA221'!A104 -> P18FW21M0089 | B104: ='21MBA221'!B104 -> SHREEKRISHNA | D104: 4 | E104: 3 | F104: 3 | I104: 8 | J104: 8 | K104: 13 | L104: 35 | M104: 39
A105: ='21MBA221'!A105 -> P18FW21M0090 | B105: ='21MBA221'!B105 -> OLETI SAI SREENITHYA | C105: 5 | D105: 3 | E105: 4 | I105: 10 | J105: 7 | K105: 7 | L105: 32 | M105: 36
A106: ='21MBA221'!A106 -> P18FW21M0091 | B106: ='21MBA221'!B106 -> RAMANUJAM H J | D106: 5 | F106: 4 | G106: 1 | I106: 2 | J106: 5 | K106: 5 | L106: 36 | M106: 22
A107: ='21MBA221'!A107 -> P18FW21M0092 | B107: ='21MBA221'!B107 -> CHAVI JAGADEESH | C107: 4 | E107: 3 | F107: 3 | I107: 0 | J107: 1 | K107: 11 | L107: 28 | M107: 22
A108: ='21MBA221'!A108 -> P18FW21M0093 | B108: ='21MBA221'!B108 -> DESAI JATIN ARUN | C108: 4 | D108: 4 | G108: 1 | H108: 4 | I108: 2 | J108: 1 | K108: 1 | L108: 24 | M108: 17
A109: ='21MBA221'!A109 -> P18FW21M0094 | B109: ='21MBA221'!B109 -> MALLESH S | C109: 3 | D109: 3 | E109: 3 | H109: 4 | I109: 5 | K109: 4 | L109: 30 | M109: 22
A110: ='21MBA221'!A110 -> P18FW21M0095 | B110: ='21MBA221'!B110 -> SRINIDHI K | D110: 5 | E110: 5 | F110: 5 | I110: 5 | J110: 8 | K110: 5 | L110: 37 | M110: 33
A111: ='21MBA221'!A111 -> P18FW21M0096 | B111: ='21MBA221'!B111 -> B SHASHANK | D111: 5 | E111: 5 | F111: 4 | I111: 5 | J111: 8 | K111: 9 | L111: 35 | M111: 36
A112: ='21MBA221'!A112 -> P18FW21M0097 | B112: ='21MBA221'!B112 -> YOGASHREE C N | D112: 4 | E112: 4 | F112: 4 | I112: 5 | J112: 9 | K112: 13 | L112: 39 | M112: 39
A113: ='21MBA221'!A113 -> P18FW21M0098 | B113: ='21MBA221'!B113 -> CHARANA T U | D113: 2 | E113: 3 | F113: 3 | I113: 2 | J113: 4 | K113: 6 | L113: 31 | M113: 20
A114: ='21MBA221'!A114 -> P18FW21M0099 | B114: ='21MBA221'!B114 -> NAGARAJ GAJANAN HEGDE | C114: 4 | D114: 5 | E114: 5 | I114: 8 | J114: 6 | K114: 15 | L114: 33 | M114: 43
A115: ='21MBA221'!A115 -> P18FW21M0100 | B115: ='21MBA221'!B115 -> NIKITHA J SHANBHOG | C115: 4 | D115: 4 | E115: 4 | I115: 4 | J115: 6 | K115: 11 | L115: 32 | M115: 33
A116: ='21MBA221'!A116 -> P18FW21M0101 | B116: ='21MBA221'!B116 -> YASHASWINI P | C116: 4.5 | D116: 3.5 | G116: 5 | H116: 2 | I116: 5 | J116: 1 | K116: 2 | L116: 31 | M116: 23
A117: ='21MBA221'!A117 -> P18FW21M0102 | B117: ='21MBA221'!B117 -> TANUSHREE R | D117: 5 | E117: 5 | F117: 0 | G117: 5 | H117: 2 | I117: 1 | L117: 25 | M117: 18
A118: ='21MBA221'!A118 -> P18FW21M0103 | B118: ='21MBA221'!B118 -> CHETHAN KUMAR V A | D118: 4 | E118: 4 | F118: 5 | I118: 7 | J118: 4 | K118: 12 | L118: 31 | M118: 36
A119: ='21MBA221'!A119 -> P18FW21M0104 | B119: ='21MBA221'!B119 -> NAYAN KUMAR | D119: 4 | E119: 4 | F119: 4 | I119: 2 | J119: 8 | K119: 6 | L119: 37 | M119: 28
A120: ='21MBA221'!A120 -> P18FW21M0105 | B120: ='21MBA221'!B120 -> DEEPAK GOPALAKRISHNAN | D120: 5 | E120: 4 | G120: 2 | I120: 5 | J120: 0 | K120: 1 | L120: 22 | M120: 17
A121: ='21MBA221'!A121 -> P18FW21M0106 | B121: ='21MBA221'!B121 -> POORNAPRAJNYA K MANGALVEDI | D121: 3 | E121: 3 | G121: 2 | H121: 3 | I121: 2 | J121: 0 | K121: 3 | L121: 34 | M121: 16
A122: ='21MBA221'!A122 -> P18FW21M0107 | B122: ='21MBA221'!B122 -> JENISHA MENEZES | C122: 3 | D122: 3 | F122: 4 | G122: 4 | H122: 0 | I122: 5 | J122: 1 | K122: 8 | L122: 32 | M122: 28
A123: ='21MBA221'!A123 -> P18FW21M0108 | B123: ='21MBA221'!B123 -> SRAVANI SUNIL MHALSEKAR | D123: 4 | E123: 5 | F123: 4 | I123: 8 | J123: 6 | K123: 11 | L123: 35 | M123: 38
A124: ='21MBA221'!A124 -> P18FW21M0109 | B124: ='21MBA221'!B124 -> M RITISH | D124: 4 | E124: 4 | F124: 0 | H124: 0 | I124: 9 | K124: 3 | L124: 27 | M124: 20
A125: ='21MBA221'!A125 -> P18FW21M0110 | B125: ='21MBA221'!B125 -> DHANYA S SHARMA | C125: 3 | D125: 2 | E125: 3 | I125: 4 | J125: 8 | K125: 10 | L125: 30 | M125: 30
A126: ='21MBA221'!A126 -> P18FW21M0111 | B126: ='21MBA221'!B126 -> PREETHAM D VARMA | D126: 4 | E126: 2 | F126: 2 | I126: 2.5 | J126: 2.5 | K126: 0 | L126: 22 | M126: 13
A127: ='21MBA221'!A127 -> P18FW21M0112 | B127: ='21MBA221'!B127 -> DHIRAJKUMAR BELAVADI | D127: 4.5 | E127: 4.5 | F127: 1 | I127: 9 | J127: 6 | K127: 11 | L127: 28 | M127: 36
A128: ='21MBA221'!A128 -> P18FW21M0113 | B128: ='21MBA221'!B128 -> FERNANDES RICHA FLORINDA | C128: 4 | D128: 4.5 | E128: 4.5 | G128: 4 | I128: 3 | J128: 9 | K128: 13 | L128: 30 | M128: 42
A129: ='21MBA221'!A129 -> P18FW21M0114 | B129: ='21MBA221'!B129 -> MEGHA U JOSHI | C129: 1 | D129: 5 | E129: 5 | G129: 5 | I129: 5 | J129: 10 | K129: 15 | L129: 35 | M129: 46
A130: ='21MBA221'!A130 -> P18FW21M0116 | B130: ='21MBA221'!B130 -> DINAH NEETHA NORONHA | C130: 4.5 | D130: 4.5 | E130: 2 | I130: 1 | J130: 8 | K130: 13 | L130: 33 | M130: 33
A131: ='21MBA221'!A131 -> P18FW21M0117 | B131: ='21MBA221'!B131 -> HEGDE PAVANA GANAPATHI | C131: 4 | E131: 5 | F131: 5 | H131: 2 | I131: 5 | J131: 7 | K131: 6 | L131: 32 | M131: 34
A132: ='21MBA221'!A132 -> P18FW21M0118 | B132: ='21MBA221'!B132 -> LOYSTON CRASTA | D132: 4.5 | E132: 4.5 | F132: 1 | I132: 5 | J132: 4 | K132: 12 | L132: 23 | M132: 31
A133: ='21MBA221'!A133 -> P18FW21M0119 | B133: ='21MBA221'!B133 -> GANESH HEGDE | D133: 4 | E133: 4 | F133: 4 | I133: 4 | J133: 6 | K133: 11 | L133: 31 | M133: 33
A134: ='21MBA221'!A134 -> P18FW21M0120 | B134: ='21MBA221'!B134 -> ANUSHA PRAKASH | C134: 4 | D134: 4 | E134: 3 | I134: 1 | J134: 3 | K134: 12 | L134: 36 | M134: 27
A135: ='21MBA221'!A135 -> P18FW21M0121 | B135: ='21MBA221'!B135 -> ANJANA KSHIRASAGAR | C135: 0 | D135: 0 | F135: 1 | G135: 1 | H135: 1 | I135: 3 | J135: 0 | K135: 0 | L135: 30 | M135: 6
A136: ='21MBA221'!A136 -> P18FW21M0122 | B136: ='21MBA221'!B136 -> JAGADISH SHENOY R | D136: 3 | E136: 4 | F136: 4 | I136: 7 | J136: 2 | K136: 9 | L136: 32 | M136: 29
A137: ='21MBA221'!A137 -> P18FW21M0123 | B137: ='21MBA221'!B137 -> MADHAN KUMAR C S | D137: 3 | E137: 3 | F137: 3 | I137: 5 | J137: 8 | K137: 11 | L137: 34 | M137: 33
A138: ='21MBA221'!A138 -> P18FW21M0124 | B138: ='21MBA221'!B138 -> TEJAS H P | D138: 4.5 | E138: 1.5 | F138: 3 | I138: 0 | J138: 6 | K138: 1 | L138: 21 | M138: 16
A139: ='21MBA221'!A139 -> P18FW21M0125 | B139: ='21MBA221'!B139 -> DHANUSH K V | C139: 3 | D139: 3 | F139: 2 | I139: 0 | J139: 4 | K139: 12 | L139: 24 | M139: 24
A140: ='21MBA221'!A140 -> P18FW21M0126 | B140: ='21MBA221'!B140 -> SWAMI SAMIKSHA PUSHPARAJ | C140: 3 | D140: 4 | F140: 4 | I140: 5 | J140: 4 | K140: 10 | L140: 32 | M140: 30
A141: ='21MBA221'!A141 -> P18FW21M0127 | B141: ='21MBA221'!B141 -> AMITH BHAT | C141: 3 | D141: 2 | E141: 3 | I141: 5 | J141: 2 | K141: 13 | L141: 25 | M141: 28
A142: ='21MBA221'!A142 -> P18FW21M0128 | B142: ='21MBA221'!B142 -> NUTHANA U | D142: 4 | E142: 5 | F142: 5 | I142: 3 | J142: 7 | K142: 14 | L142: 34 | M142: 38
A143: ='21MBA221'!A143 -> P18FW21M0129 | B143: ='21MBA221'!B143 -> CHETAN SINGH M | C143: 3 | D143: 3 | E143: 2 | H143: 7 | I143: 6 | K143: 5 | L143: 33 | M143: 26
A144: ='21MBA221'!A144 -> P18FW21M0130 | B144: ='21MBA221'!B144 -> KAUSTUBH LACHAPPANAVAR | C144: 3 | D144: 4 | E144: 4.5 | F144: 4.5 | I144: 5 | J144: 8 | K144: 7 | L144: 31 | M144: 36
A145: ='21MBA221'!A145 -> P18FW21M0131 | B145: ='21MBA221'!B145 -> KSHITIJ P L | C145: 2 | D145: 3.5 | G145: 1 | H145: 3.5 | I145: 1 | K145: 1 | L145: 31 | M145: =SUM(C145:K145) -> 12
A146: ='21MBA221'!A146 -> P18FW21M0132 | B146: ='21MBA221'!B146 -> BHUVANES P | C146: 4 | D146: 4 | G146: 4 | I146: 9 | J146: 3 | K146: 1 | L146: 23 | M146: 25
A147: ='21MBA221'!A147 -> P18FW21M0133 | B147: ='21MBA221'!B147 -> NALASANI VARSHITHA | E147: 4 | F147: 4 | G147: 4 | I147: 7 | J147: 8 | K147: 13 | L147: 36 | M147: 40
A148: ='21MBA221'!A148 -> P18FW21M0134 | B148: ='21MBA221'!B148 -> KOKILA K | C148: 4 | D148: 5 | E148: 4.5 | I148: 6.5 | J148: 5 | K148: 14 | L148: 33 | M148: 39
A149: ='21MBA221'!A149 -> P18FW21M0135 | B149: ='21MBA221'!B149 -> KOTHA KEERTHANA | D149: 4 | E149: 4 | F149: 4 | I149: 6 | J149: 7 | K149: 12 | L149: 37 | M149: 37
A150: ='21MBA221'!A150 -> P18FW21M0136 | B150: ='21MBA221'!B150 -> MUCHELI SUBBARAJU | C150: 3 | E150: 4 | F150: 4 | G150: 5 | H150: 3 | I150: 5 | J150: 0 | K150: 13 | L150: 28 | M150: 37
A151: ='21MBA221'!A151 -> P18FW21M0137 | B151: ='21MBA221'!B151 -> NANDAGOPAL B R | D151: 5 | E151: 5 | F151: 5 | I151: 7 | J151: 6 | K151: 14 | L151: 34 | M151: 42
A152: ='21MBA221'!A152 -> P18FW21M0138 | B152: ='21MBA221'!B152 -> VISHAL SHIVARAJ | D152: 5 | E152: 3 | F152: 3 | I152: 5 | J152: 6 | K152: 6 | L152: 29 | M152: 28
A153: ='21MBA221'!A153 -> P18FW21M0139 | B153: ='21MBA221'!B153 -> SHASHI KUMAR R | D153: 3 | E153: 4 | F153: 4 | G153: 4 | I153: 5 | J153: 7 | K153: 12 | L153: 34 | M153: 39
A154: ='21MBA221'!A154 -> P18FW21M0140 | B154: ='21MBA221'!B154 -> YASHWANTH R | D154: 5 | E154: 4 | F154: 4 | H154: 6 | I154: 5 | K154: 13 | L154: 37 | M154: 37
A155: ='21MBA221'!A155 -> P18FW21M0141 | B155: ='21MBA221'!B155 -> M M JABEZ | E155: 4.5 | F155: 4 | G155: 4.5 | I155: 6 | J155: 5 | K155: 3 | L155: 27 | M155: 27
A156: ='21MBA221'!A156 -> P18FW21M0142 | B156: ='21MBA221'!B156 -> KALAVALA ABHISHTA | D156: 4 | E156: 4.5 | F156: 4 | I156: 10 | J156: 9 | K156: 14 | L156: 35 | M156: 46
A157: ='21MBA221'!A157 -> P18FW21M0143 | B157: ='21MBA221'!B157 -> SANKALP V | C157: 0 | D157: 0 | F157: 4 | H157: 2 | I157: 0 | L157: 29 | M157: 6
A158: ='21MBA221'!A158 -> P18FW21M0144 | B158: ='21MBA221'!B158 -> NAVEEN C | D158: 3 | E158: 2 | F158: 4 | I158: 8 | J158: 9 | K158: 13 | L158: 34 | M158: 39
A159: ='21MBA221'!A159 -> P18FW21M0145 | B159: ='21MBA221'!B159 -> PAVAN KUMAR M | C159: 4 | D159: 2 | E159: 3 | I159: 3 | J159: 0 | K159: 11 | L159: 26 | M159: 23
A160: ='21MBA221'!A160 -> P18FW21M0146 | B160: ='21MBA221'!B160 -> KAPARTHI BHAVANA | C160: 4 | D160: 4 | E160: 4.5 | I160: 10 | J160: 9.5 | K160: 8 | L160: 39 | M160: 40
A161: ='21MBA221'!A161 -> P18FW21M0147 | B161: ='21MBA221'!B161 -> MANOJ N S | D161: 4 | E161: 4 | F161: 0 | I161: 6 | J161: 8 | K161: 12 | L161: 33 | M161: 34
A162: ='21MBA221'!A162 -> P18FW21M0149 | B162: ='21MBA221'!B162 -> HEMA S | C162: 5 | D162: 4.5 | F162: 4.5 | I162: 6 | J162: 8.5 | K162: 8 | L162: 33 | M162: 37
A163: ='21MBA221'!A163 -> P18FW21M0150 | B163: ='21MBA221'!B163 -> MADHUSUDAN G | D163: 4 | E163: 4 | F163: 4 | I163: 10 | J163: 8 | K163: 12 | L163: 28 | M163: 42
A164: ='21MBA221'!A164 -> P18FW21M0151 | B164: ='21MBA221'!B164 -> ANNASAGARAM RAGHAVENDRA | C164: 4 | D164: 2 | E164: 4 | H164: 3 | I164: 5 | K164: 8 | L164: 26 | M164: 26
A165: ='21MBA221'!A165 -> P18FW21M0152 | B165: ='21MBA221'!B165 -> SYED MUSSAVEERULLA | C165: 4 | D165: 5 | E165: 5 | I165: 5 | J165: 4 | K165: 8 | L165: 32 | M165: 31
A166: ='21MBA221'!A166 -> P18FW21M0153 | B166: ='21MBA221'!B166 -> SYED SAMEER | C166: 4 | D166: 5 | E166: 4 | F166: 4 | I166: 5 | J166: 0 | K166: 2 | L166: 33 | M166: 24
A167: ='21MBA221'!A167 -> P18FW21M0154 | B167: ='21MBA221'!B167 -> RAMANABOINA ANAND KUMAR | D167: 5 | E167: 4.5 | F167: 4.5 | I167: 6 | J167: 9 | K167: 15 | L167: 38 | M167: 44
A168: ='21MBA221'!A168 -> P18FW21M0155 | B168: ='21MBA221'!B168 -> SHIVAM GANAPATI ANVEKAR | C168: 3 | D168: 4 | F168: 4 | I168: 6 | J168: 5 | K168: 12 | L168: 27 | M168: 34
A169: ='21MBA221'!A169 -> P18FW21M0156 | B169: ='21MBA221'!B169 -> SHUBHAM SINGH | D169: 4 | E169: 4 | F169: 4 | H169: 2 | I169: 6 | K169: 12 | L169: 35 | M169: 32
A170: ='21MBA221'!A170 -> P18FW21M0157 | B170: ='21MBA221'!B170 -> GURU VARUN G | D170: 2 | E170: 3 | F170: 2 | G170: 1 | H170: 5 | I170: 6 | K170: 10 | L170: 28 | M170: 29
A171: ='21MBA221'!A171 -> P18FW21M0158 | B171: ='21MBA221'!B171 -> ABHIJEETH MASHETTY | C171: 3 | D171: 3 | E171: 4 | H171: 6 | I171: 9 | K171: 12 | L171: 31 | M171: 37
A172: ='21MBA221'!A172 -> P18FW21M0159 | B172: ='21MBA221'!B172 -> PRANITH KUMAR S | D172: 4 | E172: 3 | F172: 3 | I172: 8 | J172: 6 | K172: 11 | L172: 33 | M172: 35
A173: ='21MBA221'!A173 -> P18FW21M0160 | B173: ='21MBA221'!B173 -> LIKITHA A | C173: 4 | D173: 4 | E173: 2 | I173: 8 | J173: 9 | K173: 11 | L173: 34 | M173: 38
A174: ='21MBA221'!A174 -> P18FW21M0161 | B174: ='21MBA221'!B174 -> NAVEEN SETTY N A | C174: 3 | D174: 4 | F174: 4 | H174: 7 | I174: 5 | J174: 2 | K174: 13 | L174: 37 | M174: 38
A175: ='21MBA221'!A175 -> P18FW21M0162 | B175: ='21MBA221'!B175 -> REHAN FAISAL QADRI | D175: 5 | E175: 5 | F175: 5 | I175: 5 | J175: 7 | K175: 14 | L175: 28 | M175: 41
A176: ='21MBA221'!A176 -> P18FW21M0163 | B176: ='21MBA221'!B176 -> SMITHA M | D176: 5 | E176: 5 | F176: 5 | G176: 5 | I176: 5 | J176: 8 | K176: 14 | L176: 32 | M176: 47
A177: ='21MBA221'!A177 -> P18FW21M0164 | B177: ='21MBA221'!B177 -> ANIRUDH K | D177: 4 | F177: 4 | G177: 5 | H177: 3 | I177: 0 | K177: 4 | L177: 28 | M177: 20
A178: ='21MBA221'!A178 -> P18FW21M0165 | B178: ='21MBA221'!B178 -> SALMAN FAISAL QADRI | C178: 3 | D178: 4 | F178: 5 | I178: 5 | J178: 4 | K178: 11 | L178: 28 | M178: 32
A179: ='21MBA221'!A179 -> P18FW21M0166 | B179: ='21MBA221'!B179 -> RAVISH RAMACHANDRA HEGDE | D179: 2 | E179: 2 | F179: 3 | G179: 3 | I179: 5 | J179: 0 | K179: 10 | L179: 31 | M179: 25
A180: ='21MBA221'!A180 -> P18FW21M0167 | B180: ='21MBA221'!B180 -> POOJA VALLUR | D180: 5 | E180: 5 | F180: 5 | I180: 5 | J180: 9 | K180: 14 | L180: 31 | M180: 43
A181: ='21MBA221'!A181 -> P18FW21M0169 | B181: ='21MBA221'!B181 -> MAHANTH GOWDA K C | D181: 4 | E181: 5 | F181: 5 | I181: 5 | J181: 9 | K181: 13 | L181: 33 | M181: 41
A182: ='21MBA221'!A182 -> P18FW21M0170 | B182: ='21MBA221'!B182 -> BHUPALI SAURABH PRAKASH | C182: 3 | D182: 3 | G182: 4 | I182: 7 | J182: 7 | K182: 12 | L182: 32 | M182: 36
A183: ='21MBA221'!A183 -> P18FW21M0171 | B183: ='21MBA221'!B183 -> SYED RAIHAN | D183: 4 | E183: 3 | F183: 4 | I183: 5 | J183: 6 | K183: 13 | L183: 32 | M183: 35
A184: ='21MBA221'!A184 -> P18FW21M0172 | B184: ='21MBA221'!B184 -> SHRI HARI L | D184: 4 | E184: 2 | F184: 4 | I184: 8 | J184: 5 | K184: 12 | L184: 30 | M184: 35
A185: ='21MBA221'!A185 -> P18FW21M0173 | B185: ='21MBA221'!B185 -> SNEHA U | D185: 5 | F185: 4 | G185: 0 | I185: 0 | J185: 7 | K185: 14 | L185: 32 | M185: 30
A186: ='21MBA221'!A186 -> P18FW21M0174 | B186: ='21MBA221'!B186 -> SHAH VINIT SIDDHARTH | D186: 4 | F186: 4 | G186: 5 | I186: 8 | J186: 3 | K186: 13 | L186: 35 | M186: 37
A187: ='21MBA221'!A187 -> P18FW21M0175 | B187: ='21MBA221'!B187 -> NAYANA G C | C187: 3 | D187: 4 | E187: 4 | H187: 3 | I187: 6 | K187: 13 | L187: 33 | M187: 33
A188: ='21MBA221'!A188 -> P18FW21M0176 | B188: ='21MBA221'!B188 -> D SURIYA PRIYASREE | C188: 1 | D188: 4 | E188: 0 | I188: 6 | J188: 9 | K188: 9 | L188: 29 | M188: 29
A189: ='21MBA221'!A189 -> P18FW21M0177 | B189: ='21MBA221'!B189 -> SATHYA B NAYAKA | D189: 4 | E189: 4 | F189: 4 | I189: 8 | J189: 6 | K189: 11 | L189: 30 | M189: 37
A190: ='21MBA221'!A190 -> P18FW21M0178 | B190: ='21MBA221'!B190 -> NEHA H V | C190: 4 | D190: 3 | G190: 2 | I190: 2 | J190: 4 | K190: 10 | L190: 26 | M190: 25
A191: ='21MBA221'!A191 -> P18FW21M0179 | B191: ='21MBA221'!B191 -> SAAHIL SRIKANT KULLOLI | C191: 3 | D191: 4 | E191: 4 | I191: 10 | J191: 9 | K191: 12 | L191: 33 | M191: 42
A192: ='21MBA221'!A192 -> P18FW21M0180 | B192: ='21MBA221'!B192 -> SIMRANJIT KAUR | C192: 4 | D192: 4 | F192: 4 | I192: 8 | J192: 9 | K192: 8 | L192: 38 | M192: 37
A193: ='21MBA221'!A193 -> P18FW21M0181 | B193: ='21MBA221'!B193 -> NIRANJAN JANARDHAN HEGDE | D193: 5 | E193: 4 | F193: 3 | I193: 2.5 | J193: 2.5 | K193: 12 | L193: 36 | M193: 29
A194: ='21MBA221'!A194 -> P18FW21M0182 | B194: ='21MBA221'!B194 -> TEJAS N | C194: 0 | D194: 0 | E194: 0 | I194: 0 | J194: 0 | M194: 0
A195: ='21MBA221'!A195 -> P18FW21M0184 | B195: ='21MBA221'!B195 -> AGAMYA A KINHAL | C195: 3 | E195: 4 | F195: 3 | I195: 3 | J195: 9 | K195: 10 | L195: 32 | M195: 32
A196: No. of students attended | C196: =COUNTA(C16:C195) -> 104 | D196: 161 | E196: 137 | F196: 110 | G196: 46 | H196: 32 | I196: 179 | J196: 158 | K196: 176 | L196: =COUNT(L16:L195) -> 178
A197: No. of Students attained CO | C197: =COUNTIF(C16:C195,">"&C15) -> 70 | D197: 126 | E197: 102 | F197: 78 | G197: 28 | H197: 3 | I197: 60 | J197: 84 | K197: 111 | L197: 178
A198: CO Attainment percentage | C198: =ROUND(C197*100/C196,0) -> 67 | D198: 78 | E198: 74 | F198: 71 | G198: 61 | H198: 9 | I198: 34 | J198: 53 | K198: 63 | L198: =ROUND(L197*100/L196,0) -> 100
A199: Level | C199: =IF(C198>=80,"3",IF(C198>=70,"2",IF(C198>=60,"1","-"))) -> 1 | D199: =IF(D198>=80,"3",IF(D198>=70,"2",IF(D198>=60,"1","-"))) -> 2 | E199: 2 | F199: 2 | G199: 1 | H199: - | I199: - | J199: - | K199: 1 | L199: 3
C200: CO1 | D200: CO1 | E200: CO3 | F200: CO4 | G200: CO2 | H200: CO2 | I200: CO2 | J200: CO3 | K200: CO4
H201: Internals | J201: Final CO Attainment
... 6 more rows

Sheet 21MBA521-Attainment
A1: ='21MBA521'!A5:M5 -> Introduction to Business Analytics
D3: Internals | F3: Final CO Attainment
C4: CO | D4: Percentage | E4: Level | F4: Percentage | G4: Level
C5: CO1 | D5: ='21MBA521'!H203 -> 73 | E5: ='21MBA521'!I203 -> 2 | F5: ='21MBA521'!J203 -> 92 | G5: ='21MBA521'!K203 -> 3
C6: CO2 | D6: ='21MBA521'!H204 -> 42 | E6: ='21MBA521'!I204 -> - | F6: ='21MBA521'!J204 -> 83 | G6: ='21MBA521'!K204 -> 3
C7: CO3 | D7: ='21MBA521'!H205 -> 58 | E7: ='21MBA521'!I205 -> - | F7: ='21MBA521'!J205 -> 87 | G7: ='21MBA521'!K205 -> 3
C8: CO4 | D8: ='21MBA521'!H206 -> 55 | E8: ='21MBA521'!I206 -> - | F8: ='21MBA521'!J206 -> 87 | G8: ='21MBA521'!K206 -> 3
C9: CO5 | D9: ='21MBA521'!H207 -> 69 | E9: ='21MBA521'!I207 -> 1 | F9: ='21MBA521'!J207 -> 91 | G9: ='21MBA521'!K207 -> 3
C12: PO1 | D12: PO2 | E12: PO3 | F12: PO4 | G12: PO5 | H12: PO6 | I12: PO7 | J12: PO8 | K12: PO9 | L12: PO10 | M12: PO11
B13: C01 | D13: 2 | E13: 1 | F13: 1 | H13: 1 | I13: 2 | J13: 2 | K13: 2 | L13: 1
B14: C02 | D14: 2 | E14: 1 | F14: 1 | G14: 1 | H14: 2 | I14: 2 | J14: 2 | K14: 2 | M14: 1
B15: C03 | D15: 2 | H15: 2 | I15: 2 | J15: 1 | K15: 1
B16: C04 | D16: 2 | H16: 1 | I16: 2 | J16: 1 | K16: 1
B17: C05 | D17: 2 | H17: 1 | I17: 2 | J17: 2 | K17: 2
C18: LEVEL | D18: 3-Substantial | E18: 2-Moderate | F18: 1-Slight | G18: "-" No Co-relation
A21: Final CO | C21: PO1 | D21: PO2 | E21: PO3 | F21: PO4 | G21: PO5 | H21: PO6 | I21: PO7 | J21: PO8 | K21: PO9 | L21: PO10 | M21: PO11
A22: ATTAINMENT
A23: C01 | B23: =F5 -> 91.75 | C23: =C13*$B$23/3 -> 0.00 | D23: 61.17 | E23: 30.58 | F23: 30.58 | G23: 0.00 | H23: 30.58 | I23: 61.17 | J23: 61.17 | K23: 61.17 | L23: =L13*$B$23/3 -> 30.58 | M23: 0.00
A24: C02 | B24: =F6 -> 82.53 | C24: =C14*$B$24/3 -> 0.00 | D24: 55.02 | E24: 27.51 | F24: 27.51 | G24: 27.51 | H24: 55.02 | I24: 55.02 | J24: 55.02 | K24: 55.02 | L24: =L14*$B$24/3 -> 0.00 | M24: 27.51
A25: C03 | B25: =F7 -> 87.40 | C25: =C15*$B$25/3 -> 0.00 | D25: 58.27 | E25: 0.00 | F25: 0.00 | G25: 0.00 | H25: 58.27 | I25: 58.27 | J25: 29.13 | K25: 29.13 | L25: =L15*$B$25/3 -> 0.00 | M25: 0.00
A26: C04 | B26: =F8 -> 86.58 | C26: =C17*$B$26/3 -> 0.00 | D26: 57.72 | E26: 0.00 | F26: 0.00 | G26: 0.00 | H26: 28.86 | I26: 57.72 | J26: 57.72 | K26: 57.72 | L26: 0.00 | M26: 0.00
A27: C05 | B27: =F9 -> 90.70 | C27: =C17*$B$27/3 -> 0.00 | D27: =D17*$B$27/3 -> 60.47 | E27: 0.00 | F27: 0.00 | G27: 0.00 | H27: 30.23 | I27: 60.47 | J27: 60.47 | K27: 60.47 | L27: 0.00 | M27: 0.00
A28: Average | B28: =AVERAGE(B23:B27) -> 87.79 | C28: =AVERAGE(C23:C27) -> 0.00 | D28: 58.53 | E28: 11.62 | F28: 11.62 | G28: 5.50 | H28: 40.59 | I28: 58.53 | J28: 52.70 | K28: 52.70 | L28: 6.12 | M28: 5.50

Sheet 21MBA621
A1: RV Institute of Management
A2: Autonomous Institution Affiliated to BCU
A3: MBA Programme II Semester
A4: Course Outcome Report
A5: Human Resource Management
A6: Name of the Course Teacher: | I6: Sub. Code: | L6: 21MBA621
A7: Prof.Sowmya D S, Dr.Rashmi Shetty, Dr. Noor Firdoos Jahan | J7: Sec: | L7: ABC
D8: Semester II
D9: Batch 2021-23
C11: Section A | H11: Section B | K11: Sec-C
A12: Question number | C12: 1 | D12: 2 | E12: 3 | F12: 4 | G12: 5 | H12: 6 | I12: 7 | J12: 8 | K12: 9 | L12: External Exam | M12: Mid Term Exam
A13: Course outcome | C13: CO1 | D13: CO4 | E13: CO3 | F13: CO3 | G13: CO2 | H13: CO1 | I13: CO4 | J13: CO3 | K13: CO2 | L13: Marks | M13: Marks
A14: Maximum marks | C14: 5 | D14: 5 | E14: 5 | F14: 5 | G14: 5 | H14: 10 | I14: 10 | J14: 10 | K14: 15 | L14: 50 | M14: 50
A15: Student Reg. No | B15: Student Name | C15: =C14*0.64 -> 3.2 | D15: =D14*0.64 -> 3.2 | E15: 3.2 | F15: 3.2 | G15: 3.2 | H15: 6.4 | I15: 6.4 | J15: 6.4 | K15: 9.6 | L15: =L14*0.357142 -> 18
A16: ='21MBA221'!A16 -> P18FW21M0001 | B16: ='21MBA221'!B16 -> VIPUL VILAS NAIK | C16: 4 | E16: 4 | G16: 3 | H16: 7 | I16: 8 | K16: 11 | L16: 31 | M16: =SUM(C16:K16) -> 37
A17: ='21MBA221'!A17 -> P18FW21M0002 | B17: ='21MBA221'!B17 -> M PRANEETH KUMAR REDDY | D17: 3 | E17: 3 | F17: 4 | H17: 8 | I17: 8 | K17: 11 | L17: 29 | M17: =SUM(C17:K17) -> 37
A18: ='21MBA221'!A18 -> P18FW21M0003 | B18: ='21MBA221'!B18 -> NIKHIL S ANJANALLI | D18: 3.5 | E18: 4 | F18: 4 | H18: 8.5 | I18: 8 | K18: 7 | L18: 30 | M18: 35
A19: ='21MBA221'!A19 -> P18FW21M0004 | B19: ='21MBA221'!B19 -> KARTHIK P SHETTY | C19: 2.5 | D19: 3 | E19: 4 | I19: 5 | J19: 7 | K19: 10 | L19: 25 | M19: 32
A20: ='21MBA221'!A20 -> P18FW21M0005 | B20: ='21MBA221'!B20 -> AMITH C | D20: 3 | E20: 4 | F20: 0 | H20: 9 | J20: 8.5 | K20: 10 | L20: 27 | M20: 35
A21: ='21MBA221'!A21 -> P18FW21M0006 | B21: ='21MBA221'!B21 -> AISHWARYA G | D21: 3 | E21: 1 | F21: 1 | H21: 3 | J21: 8 | K21: 6 | L21: 29 | M21: 22
A22: ='21MBA221'!A22 -> P18FW21M0007 | B22: ='21MBA221'!B22 -> AKANKSH P | C22: 4 | E22: 4 | F22: 4 | I22: 8.5 | J22: 8 | K22: 11 | L22: 36 | M22: 40
A23: ='21MBA221'!A23 -> P18FW21M0008 | B23: ='21MBA221'!B23 -> SACHITH B K | D23: 3 | E23: 4 | F23: 4 | I23: 8 | J23: 8 | K23: 5 | L23: 35 | M23: 32
A24: ='21MBA221'!A24 -> P18FW21M0009 | B24: ='21MBA221'!B24 -> CHAITANYA KAMATAGI B | D24: 4 | E24: 5 | F24: 4 | H24: 9 | J24: 9 | K24: 12 | L24: 38 | M24: 43
A25: ='21MBA221'!A25 -> P18FW21M0010 | B25: ='21MBA221'!B25 -> AKASH RACHAPPA KHANAGAVI | D25: 4 | E25: 4 | F25: 3 | H25: 9 | J25: 9 | K25: 8 | L25: 30 | M25: 37
A26: ='21MBA221'!A26 -> P18FW21M0011 | B26: ='21MBA221'!B26 -> SOURAV SADANAND SWAR | C26: 3 | E26: 2 | G26: 2 | H26: 6 | J26: 7 | K26: 3 | L26: 30 | M26: 23
A27: ='21MBA221'!A27 -> P18FW21M0012 | B27: ='21MBA221'!B27 -> NISHANTH KRISHNA | C27: 4 | D27: 4 | E27: 4 | I27: 9 | J27: 9 | K27: 11 | L27: 28 | M27: 41
A28: ='21MBA221'!A28 -> P18FW21M0013 | B28: ='21MBA221'!B28 -> MEHUL V BHASKAR | C28: 3 | E28: 4 | F28: 3 | I28: 6 | J28: 5 | K28: 9 | L28: 31 | M28: 30
A29: ='21MBA221'!A29 -> P18FW21M0014 | B29: ='21MBA221'!B29 -> SHUBHAM RAJENDRA REVANKAR | C29: 4 | D29: 4 | E29: 4 | I29: 8 | J29: 8 | K29: 9 | L29: 29 | M29: 37
A30: ='21MBA221'!A30 -> P18FW21M0015 | B30: ='21MBA221'!B30 -> SHETTY TRUPTHI CHANDRAHAS | C30: 3 | E30: 4 | G30: 3 | H30: 6 | J30: 8 | K30: 11 | L30: 33 | M30: 35
A31: ='21MBA221'!A31 -> P18FW21M0016 | B31: ='21MBA221'!B31 -> SHEEBAL M S | D31: 4 | E31: 4 | F31: 4 | H31: 8 | J31: 8 | K31: 10 | L31: 32 | M31: 38
A32: ='21MBA221'!A32 -> P18FW21M0017 | B32: ='21MBA221'!B32 -> VISHNU KUMAR | C32: 4 | D32: 3 | E32: 3 | H32: 9 | J32: 8 | K32: 10 | L32: 37 | M32: 37
A33: ='21MBA221'!A33 -> P18FW21M0018 | B33: ='21MBA221'!B33 -> HARSHITHA SRINIVAS | C33: 3 | D33: 3 | E33: 4 | I33: 8 | J33: 7 | K33: 10 | L33: 39 | M33: 35
A34: ='21MBA221'!A34 -> P18FW21M0019 | B34: ='21MBA221'!B34 -> SAGI SAMPI | C34: 4 | D34: 4 | G34: 4 | I34: 9 | J34: 9 | K34: 13 | L34: 40 | M34: 43
A35: ='21MBA221'!A35 -> P18FW21M0020 | B35: ='21MBA221'!B35 -> PAULOMEE BARUAH | C35: 3 | D35: 3 | E35: 3 | I35: 8 | J35: 8 | K35: 12 | L35: 35 | M35: 37
A36: ='21MBA221'!A36 -> P18FW21M0021 | B36: ='21MBA221'!B36 -> NEETHA KAMATH | D36: 3 | E36: 3 | G36: 4 | I36: 7 | J36: 8 | K36: 11 | L36: 34 | M36: 36
A37: ='21MBA221'!A37 -> P18FW21M0022 | B37: ='21MBA221'!B37 -> ADITYA UDAY HEGDE | D37: 3 | E37: 2 | G37: 3 | H37: 6 | J37: 7 | K37: 10 | L37: 33 | M37: 31
A38: ='21MBA221'!A38 -> P18FW21M0023 | B38: ='21MBA221'!B38 -> SHREYAS G A | C38: 4 | D38: 3 | F38: 3 | I38: 8 | J38: 8 | K38: 10 | L38: 31 | M38: 36
A39: ='21MBA221'!A39 -> P18FW21M0024 | B39: ='21MBA221'!B39 -> SRUJANA S | D39: 3 | E39: 5 | F39: 3 | H39: 5 | I39: 8 | K39: 13 | L39: 35 | M39: 37
A40: ='21MBA221'!A40 -> P18FW21M0025 | B40: ='21MBA221'!B40 -> PRAJWAL S N | C40: 2 | D40: 3 | E40: 3 | G40: 2 | I40: 8 | J40: 6 | K40: 10 | L40: 35 | M40: 34
A41: ='21MBA221'!A41 -> P18FW21M0026 | B41: ='21MBA221'!B41 -> SUCHITRA G | D41: 2 | E41: 3 | F41: 1 | G41: 0 | H41: 8 | I41: 8 | K41: 11 | L41: 31 | M41: 33
A42: ='21MBA221'!A42 -> P18FW21M0027 | B42: ='21MBA221'!B42 -> SANKET SURESH SHIRSAT | C42: 3 | D42: 4 | E42: 3 | I42: 8 | J42: 8 | K42: 10 | L42: 33 | M42: 36
A43: ='21MBA221'!A43 -> P18FW21M0028 | B43: ='21MBA221'!B43 -> ANIKET SANJAY REVANKAR | C43: 3 | D43: 4 | E43: 4 | I43: 9 | J43: 9 | K43: 12 | L43: 33 | M43: 41
A44: ='21MBA221'!A44 -> P18FW21M0029 | B44: ='21MBA221'!B44 -> AKHILA H | C44: 3 | D44: 2 | E44: 3 | H44: 8 | I44: 8 | K44: 13 | L44: 30 | M44: 37
A45: ='21MBA221'!A45 -> P18FW21M0030 | B45: ='21MBA221'!B45 -> M LUQMAN NAWAZ | C45: 3 | E45: 3 | G45: 3 | I45: 8 | J45: 8 | K45: 10 | L45: 35 | M45: 35
A46: ='21MBA221'!A46 -> P18FW21M0031 | B46: ='21MBA221'!B46 -> MADHURA A | C46: 3 | E46: 3 | G46: 3 | I46: 8 | J46: 8 | K46: 11 | L46: 35 | M46: 36
A47: ='21MBA221'!A47 -> P18FW21M0032 | B47: ='21MBA221'!B47 -> H V SHREEVATSA | C47: 3 | D47: 3 | E47: 2 | I47: 7 | J47: 6 | K47: 10 | L47: 30 | M47: 31
A48: ='21MBA221'!A48 -> P18FW21M0033 | B48: ='21MBA221'!B48 -> LILIMA DASH | E48: 2 | F48: 3 | G48: 3 | I48: 8 | J48: 7 | K48: 10 | L48: 32 | M48: 33
A49: ='21MBA221'!A49 -> P18FW21M0034 | B49: ='21MBA221'!B49 -> KUMAR ASHUTOSH | D49: 2 | E49: 2 | G49: 3 | I49: 8 | J49: 8 | K49: 10 | L49: 26 | M49: 33
A50: ='21MBA221'!A50 -> P18FW21M0035 | B50: ='21MBA221'!B50 -> RAHUL S SANGOLLI | C50: 2 | E50: 3 | F50: 2 | I50: 7 | J50: 8 | K50: 10 | L50: 33 | M50: 32
A51: ='21MBA221'!A51 -> P18FW21M0036 | B51: ='21MBA221'!B51 -> GIRISH N NASHI | C51: 3 | E51: 2 | G51: 3 | I51: 8 | J51: 9 | K51: 11 | L51: 31 | M51: 36
A52: ='21MBA221'!A52 -> P18FW21M0037 | B52: ='21MBA221'!B52 -> ANKITA GAJANAN NAIK | D52: 3 | F52: 3 | G52: 3 | H52: 7 | J52: 7 | K52: 7 | L52: 33 | M52: 30
A53: ='21MBA221'!A53 -> P18FW21M0038 | B53: ='21MBA221'!B53 -> GURUBASAVARAJ K M | C53: 3 | D53: 3 | F53: 3 | I53: 7 | J53: 6 | K53: 11 | L53: 33 | M53: 33
A54: ='21MBA221'!A54 -> P18FW21M0039 | B54: ='21MBA221'!B54 -> ANANYA P HEGDE | D54: 3 | E54: 4 | F54: 4 | H54: 8 | I54: 8 | K54: 9 | L54: 28 | M54: 36
A55: ='21MBA221'!A55 -> P18FW21M0040 | B55: ='21MBA221'!B55 -> NIVEDITHA K SWAMY | C55: 4.5 | D55: 4.5 | F55: 4 | H55: 9 | J55: 9 | K55: 12 | L55: 35 | M55: 43
A56: ='21MBA221'!A56 -> P18FW21M0041 | B56: ='21MBA221'!B56 -> LIKHITHA L | C56: 3 | F56: 3 | G56: 4 | I56: 8 | J56: 8 | K56: 9 | L56: 32 | M56: 35
A57: ='21MBA221'!A57 -> P18FW21M0042 | B57: ='21MBA221'!B57 -> RAHUL RAM BHAT | C57: 4 | D57: 3 | E57: 3 | I57: 8 | J57: 7 | K57: 10 | L57: 31 | M57: 35
A58: ='21MBA221'!A58 -> P18FW21M0043 | B58: ='21MBA221'!B58 -> AMIT KAMADOLLISHETTARU | E58: 3 | F58: 1 | G58: 3 | I58: 5 | J58: 7 | K58: 10 | L58: 31 | M58: 29
A59: ='21MBA221'!A59 -> P18FW21M0044 | B59: ='21MBA221'!B59 -> POOJARANI TALAWAR | D59: 4 | E59: 3 | G59: 3 | I59: 9 | J59: 8 | K59: 10 | L59: 31 | M59: 37
A60: ='21MBA221'!A60 -> P18FW21M0045 | B60: ='21MBA221'!B60 -> ABHITHA K | C60: 3 | D60: 3 | F60: 1 | I60: 8 | J60: 8 | K60: 7 | L60: 35 | M60: 30
A61: ='21MBA221'!A61 -> P18FW21M0046 | B61: ='21MBA221'!B61 -> S SHREYAS | C61: 3 | D61: 4 | F61: 3 | I61: 6 | J61: 8 | K61: 8 | L61: 22 | M61: 32
A62: ='21MBA221'!A62 -> P18FW21M0047 | B62: ='21MBA221'!B62 -> ABHISHEK SHENOY | D62: 3 | E62: 4 | F62: 3 | I62: 7 | J62: 7 | K62: 8 | L62: 32 | M62: 32
A63: ='21MBA221'!A63 -> P18FW21M0048 | B63: ='21MBA221'!B63 -> B S SUSHEN | C63: 4 | E63: 4 | G63: 4 | I63: 9 | J63: 9 | K63: 13 | L63: 38 | M63: 43
A64: ='21MBA221'!A64 -> P18FW21M0049 | B64: ='21MBA221'!B64 -> PRAJWALA H | C64: 4.5 | E64: 4.5 | F64: 4.5 | I64: 9 | J64: 9 | K64: 11 | L64: 38 | M64: 43
A65: ='21MBA221'!A65 -> P18FW21M0050 | B65: ='21MBA221'!B65 -> VAISHNAVI N | C65: 4 | E65: 4.5 | G65: 4.5 | I65: 9 | J65: 9 | K65: 12 | L65: 39 | M65: 43
A66: ='21MBA221'!A66 -> P18FW21M0051 | B66: ='21MBA221'!B66 -> DEEPAK GIRISH KALYANI | D66: 4 | E66: 4 | G66: 4 | I66: 8 | J66: 8 | K66: 11 | L66: 35 | M66: 39
A67: ='21MBA221'!A67 -> P18FW21M0052 | B67: ='21MBA221'!B67 -> ISAAC JESSE K | D67: 1 | F67: 3 | G67: 3 | I67: 7 | J67: 7 | K67: 0 | L67: 24 | M67: 21
A68: ='21MBA221'!A68 -> P18FW21M0053 | B68: ='21MBA221'!B68 -> SUPRIYA GOVIND BELSARE | D68: 3 | E68: 4 | G68: 3 | I68: 7 | J68: 7 | K68: 6 | L68: 32 | M68: 30
A69: ='21MBA221'!A69 -> P18FW21M0054 | B69: ='21MBA221'!B69 -> VINAYAK RAO GAIKWAD K | C69: 3 | D69: 3 | E69: 3 | I69: 2 | J69: 0 | K69: 10 | L69: 26 | M69: 21
A70: ='21MBA221'!A70 -> P18FW21M0055 | B70: ='21MBA221'!B70 -> SUTOPA DEB | C70: 3 | E70: 2 | G70: 2 | I70: 3 | J70: 7 | K70: 9 | L70: 32 | M70: 26
A71: ='21MBA221'!A71 -> P18FW21M0056 | B71: ='21MBA221'!B71 -> M S SUKRUT | C71: 4 | E71: 3 | G71: 4 | I71: 8 | J71: 8 | K71: 12 | L71: AB | M71: 39
A72: ='21MBA221'!A72 -> P18FW21M0057 | B72: ='21MBA221'!B72 -> BHASKARA PRABHU | C72: 3 | D72: 3 | G72: 3 | I72: 8 | J72: 8 | K72: 9 | L72: 33 | M72: 34
A73: ='21MBA221'!A73 -> P18FW21M0058 | B73: ='21MBA221'!B73 -> PRAKASH SHIVAKUMAR | D73: 2 | E73: 3 | G73: 0 | I73: 9 | J73: 6 | K73: 7 | L73: 33 | M73: 27
A74: ='21MBA221'!A74 -> P18FW21M0059 | B74: ='21MBA221'!B74 -> AMOGHA Y G | C74: 4 | D74: 3 | E74: 3 | I74: 8.5 | J74: 9 | K74: 10 | L74: 27 | M74: 38
A75: ='21MBA221'!A75 -> P18FW21M0060 | B75: ='21MBA221'!B75 -> BHARATH K S | C75: 4 | D75: 3 | E75: 4 | I75: 8 | J75: 8 | K75: 12 | L75: 30 | M75: 39
A76: ='21MBA221'!A76 -> P18FW21M0061 | B76: ='21MBA221'!B76 -> AKANKSH K G | C76: 0 | D76: 3 | F76: 3 | I76: 7 | J76: 5 | K76: 12 | L76: 34 | M76: 30
A77: ='21MBA221'!A77 -> P18FW21M0062 | B77: ='21MBA221'!B77 -> BERNARD FERNANDES | C77: 2 | D77: 2 | G77: 2 | I77: 3 | J77: 3 | K77: 9 | L77: 27 | M77: 21
A78: ='21MBA221'!A78 -> P18FW21M0063 | B78: ='21MBA221'!B78 -> AISHWARYA P | C78: 2 | D78: 4 | E78: 4 | H78: 2 | J78: 4 | K78: 5 | L78: 30 | M78: 21
A79: ='21MBA221'!A79 -> P18FW21M0064 | B79: ='21MBA221'!B79 -> VIOLA PINTO | D79: 3 | E79: 4 | F79: 3 | I79: 8 | J79: 8 | K79: 11 | L79: 37 | M79: 37
A80: ='21MBA221'!A80 -> P18FW21M0065 | B80: ='21MBA221'!B80 -> VARSHA | D80: 1 | E80: 3 | F80: 3 | I80: 8 | J80: 8 | K80: 8 | L80: 33 | M80: 31
A81: ='21MBA221'!A81 -> P18FW21M0066 | B81: ='21MBA221'!B81 -> CHIDRI BALAJI | D81: 4 | E81: 4 | F81: 4 | I81: 9 | J81: 9 | K81: 10 | L81: 32 | M81: =SUM(C81:K81) -> 40
A82: ='21MBA221'!A82 -> P18FW21M0067 | B82: ='21MBA221'!B82 -> GAGANDEEP V N | D82: 2 | E82: 3 | F82: 3 | I82: 8 | J82: 8 | K82: 10 | L82: 32 | M82: 34
A83: ='21MBA221'!A83 -> P18FW21M0068 | B83: ='21MBA221'!B83 -> PRAJWALA | C83: 4 | D83: 5 | F83: 5 | I83: 10 | J83: 8 | K83: 13 | L83: 39 | M83: 45
A84: ='21MBA221'!A84 -> P18FW21M0069 | B84: ='21MBA221'!B84 -> POORNIMA L | D84: 3 | E84: 3 | F84: 3 | I84: 9 | J84: 9 | K84: 9 | L84: 32 | M84: 36
A85: ='21MBA221'!A85 -> P18FW21M0070 | B85: ='21MBA221'!B85 -> SHUBIKSHA S | C85: 3 | D85: 4 | E85: 4.5 | I85: 9 | J85: 8.5 | K85: 13 | L85: 34 | M85: 42
A86: ='21MBA221'!A86 -> P18FW21M0071 | B86: ='21MBA221'!B86 -> ANUSHA | D86: 3 | E86: 3 | F86: 4 | I86: 6 | J86: 7 | K86: 9 | L86: 32 | M86: 32
A87: ='21MBA221'!A87 -> P18FW21M0072 | B87: ='21MBA221'!B87 -> P T KIRTI | C87: 4 | D87: 4 | E87: 4 | I87: 8 | J87: 8 | K87: 9 | L87: 31 | M87: 37
A88: ='21MBA221'!A88 -> P18FW21M0073 | B88: ='21MBA221'!B88 -> SAMEEKSHA M P | C88: 4 | D88: 3 | E88: 3 | I88: 8 | J88: 7 | K88: 8 | L88: 36 | M88: 33
A89: ='21MBA221'!A89 -> P18FW21M0074 | B89: ='21MBA221'!B89 -> KAVYAPRIYA J | D89: 3 | E89: 3 | F89: 4 | I89: 8 | J89: 8 | K89: 10 | L89: 29 | M89: 36
A90: ='21MBA221'!A90 -> P18FW21M0075 | B90: ='21MBA221'!B90 -> RAKSHITH R T | D90: 3 | F90: 3 | G90: 3 | H90: 5 | I90: 7 | K90: 10 | L90: 33 | M90: 31
A91: ='21MBA221'!A91 -> P18FW21M0076 | B91: ='21MBA221'!B91 -> SHUBHA R | C91: 3 | D91: 3 | E91: 3 | I91: 8 | J91: 9 | K91: 10 | L91: 35 | M91: 36
A92: ='21MBA221'!A92 -> P18FW21M0077 | B92: ='21MBA221'!B92 -> BASAVARAJ | C92: 3 | D92: 3 | E92: 3 | G92: 3 | I92: 7 | J92: 7 | K92: 10 | L92: 32 | M92: 36
A93: ='21MBA221'!A93 -> P18FW21M0078 | B93: ='21MBA221'!B93 -> MANOJ RAKSHATH B S | C93: 2.5 | D93: 3 | G93: 3 | I93: 6 | J93: 6 | K93: 7 | L93: 21 | M93: 28
A94: ='21MBA221'!A94 -> P18FW21M0079 | B94: ='21MBA221'!B94 -> ADITI RANI | D94: 4 | E94: 3 | F94: 3 | I94: 8 | J94: 8 | K94: 8 | L94: 24 | M94: 34
A95: ='21MBA221'!A95 -> P18FW21M0080 | B95: ='21MBA221'!B95 -> DIVYA SHREE M | C95: 4 | D95: 4.5 | E95: 4 | I95: 9 | J95: 9 | K95: 12 | L95: 39 | M95: 43
A96: ='21MBA221'!A96 -> P18FW21M0081 | B96: ='21MBA221'!B96 -> VARUN S BHARADWAJ | C96: 4 | D96: 2 | E96: 4 | I96: 9 | J96: 8 | K96: 10 | L96: 34 | M96: 37
A97: ='21MBA221'!A97 -> P18FW21M0082 | B97: ='21MBA221'!B97 -> S KARTHIK | C97: 3 | E97: 4 | G97: 3 | H97: 8.5 | I97: 8.5 | K97: 12 | L97: 29 | M97: 39
A98: ='21MBA221'!A98 -> P18FW21M0083 | B98: ='21MBA221'!B98 -> NEELAMMA M K | C98: 4 | D98: 2 | E98: 4 | F98: 3 | H98: 8 | J98: 7 | K98: 10 | L98: 34 | M98: 38
A99: ='21MBA221'!A99 -> P18FW21M0084 | B99: ='21MBA221'!B99 -> PRAMOD K L | C99: 4 | D99: 4 | E99: 4 | I99: 8.5 | J99: 8 | K99: 11 | L99: 32 | M99: 40
A100: ='21MBA221'!A100 -> P18FW21M0085 | B100: ='21MBA221'!B100 -> NAMRATHA N | C100: 4 | E100: 3 | G100: 5 | I100: 9 | J100: 9 | K100: 11 | L100: 37 | M100: 41
A101: ='21MBA221'!A101 -> P18FW21M0086 | B101: ='21MBA221'!B101 -> ANVITH KUMAR | C101: 3 | D101: 3 | E101: 4 | I101: 8 | J101: 8 | K101: 10 | L101: 33 | M101: 36
A102: ='21MBA221'!A102 -> P18FW21M0087 | B102: ='21MBA221'!B102 -> BHOOMIKA BHAT | D102: 4 | E102: 4 | F102: 3.5 | I102: 8 | J102: 8 | K102: 12 | L102: 30 | M102: 40
A103: ='21MBA221'!A103 -> P18FW21M0088 | B103: ='21MBA221'!B103 -> SOUMYA GANAPATI HEGDE | D103: 2 | F103: 2.5 | G103: 3 | I103: 8 | J103: 8 | K103: 11 | L103: 33 | M103: 35
A104: ='21MBA221'!A104 -> P18FW21M0089 | B104: ='21MBA221'!B104 -> SHREEKRISHNA | C104: 4 | D104: 4 | E104: 4 | I104: 8 | J104: 7 | K104: 10 | L104: 36 | M104: 37
A105: ='21MBA221'!A105 -> P18FW21M0090 | B105: ='21MBA221'!B105 -> OLETI SAI SREENITHYA | C105: 3 | D105: 3 | E105: 4 | I105: 9 | J105: 9 | K105: 10 | L105: 36 | M105: 38
A106: ='21MBA221'!A106 -> P18FW21M0091 | B106: ='21MBA221'!B106 -> RAMANUJAM H J | D106: 4 | F106: 4 | G106: 4 | I106: 8 | J106: 8 | K106: 10 | L106: 32 | M106: 38
A107: ='21MBA221'!A107 -> P18FW21M0092 | B107: ='21MBA221'!B107 -> CHAVI JAGADEESH | D107: 3 | E107: 3 | G107: 2 | H107: 5 | J107: 6 | K107: 6 | L107: 24 | M107: 25
A108: ='21MBA221'!A108 -> P18FW21M0093 | B108: ='21MBA221'!B108 -> DESAI JATIN ARUN | C108: 1 | D108: 2 | F108: 2 | I108: 4 | J108: 2 | K108: 6 | L108: 19 | M108: 17
A109: ='21MBA221'!A109 -> P18FW21M0094 | B109: ='21MBA221'!B109 -> MALLESH S | C109: 2 | E109: 3 | G109: 3 | I109: 2 | J109: 6 | K109: 8 | L109: 26 | M109: 24
A110: ='21MBA221'!A110 -> P18FW21M0095 | B110: ='21MBA221'!B110 -> SRINIDHI K | C110: 3 | F110: 3 | G110: 4 | I110: 8 | J110: 8 | K110: 11 | L110: 35 | M110: 37
A111: ='21MBA221'!A111 -> P18FW21M0096 | B111: ='21MBA221'!B111 -> B SHASHANK | C111: 5 | D111: 4 | G111: 4 | H111: 4 | I111: 10 | J111: 1 | K111: 10 | L111: 37 | M111: 38
A112: ='21MBA221'!A112 -> P18FW21M0097 | B112: ='21MBA221'!B112 -> YOGASHREE C N | C112: 4.5 | D112: 4 | E112: 4.5 | I112: 9 | J112: 9 | K112: 14 | L112: 31 | M112: 45
A113: ='21MBA221'!A113 -> P18FW21M0098 | B113: ='21MBA221'!B113 -> CHARANA T U | C113: 3 | E113: 2.5 | G113: 3 | I113: 7 | J113: 7 | K113: 8 | L113: 28 | M113: 31
A114: ='21MBA221'!A114 -> P18FW21M0099 | B114: ='21MBA221'!B114 -> NAGARAJ GAJANAN HEGDE | E114: 3 | F114: 3 | G114: 3 | I114: 7 | J114: 7 | K114: 8 | L114: 27 | M114: 31
A115: ='21MBA221'!A115 -> P18FW21M0100 | B115: ='21MBA221'!B115 -> NIKITHA J SHANBHOG | C115: 3 | D115: 4 | E115: 4 | I115: 9 | J115: 8.5 | K115: 8 | L115: 27 | M115: 37
A116: ='21MBA221'!A116 -> P18FW21M0101 | B116: ='21MBA221'!B116 -> YASHASWINI P | C116: 3 | E116: 3 | G116: 4 | I116: 4 | J116: 6 | K116: 10 | L116: 30 | M116: 30
A117: ='21MBA221'!A117 -> P18FW21M0102 | B117: ='21MBA221'!B117 -> TANUSHREE R | D117: 3 | E117: 3 | F117: 4 | I117: 2 | J117: 3 | K117: 10 | L117: 26 | M117: 25
A118: ='21MBA221'!A118 -> P18FW21M0103 | B118: ='21MBA221'!B118 -> CHETHAN KUMAR V A | C118: 3 | D118: 3 | E118: 2 | I118: 3 | J118: 5 | K118: 7 | L118: 29 | M118: 23
A119: ='21MBA221'!A119 -> P18FW21M0104 | B119: ='21MBA221'!B119 -> NAYAN KUMAR | C119: 3 | E119: 3 | G119: 4 | I119: 6 | J119: 6 | K119: 5 | L119: 31 | M119: 27
A120: ='21MBA221'!A120 -> P18FW21M0105 | B120: ='21MBA221'!B120 -> DEEPAK GOPALAKRISHNAN | D120: 2 | E120: 2 | F120: 1 | H120: 2 | I120: 0 | J120: 3 | K120: 6 | L120: 17 | M120: 16
A121: ='21MBA221'!A121 -> P18FW21M0106 | B121: ='21MBA221'!B121 -> POORNAPRAJNYA K MANGALVEDI | D121: 1 | E121: 2 | G121: 1 | H121: 0 | J121: 2 | K121: 10 | L121: 27 | M121: 16
A122: ='21MBA221'!A122 -> P18FW21M0107 | B122: ='21MBA221'!B122 -> JENISHA MENEZES | C122: 4 | D122: 3 | E122: 4 | I122: 9 | J122: 8 | K122: 7 | L122: 31 | M122: 35
A123: ='21MBA221'!A123 -> P18FW21M0108 | B123: ='21MBA221'!B123 -> SRAVANI SUNIL MHALSEKAR | D123: 4 | E123: 5 | G123: 4 | I123: 10 | J123: 8 | K123: 11 | L123: 33 | M123: 42
A124: ='21MBA221'!A124 -> P18FW21M0109 | B124: ='21MBA221'!B124 -> M RITISH | C124: 3 | E124: 4 | F124: 4 | I124: 7 | J124: 8 | K124: 9 | L124: 28 | M124: 35
A125: ='21MBA221'!A125 -> P18FW21M0110 | B125: ='21MBA221'!B125 -> DHANYA S SHARMA | D125: 4 | E125: 4 | F125: 3 | I125: 7 | J125: 0 | K125: 10 | L125: 23 | M125: 28
A126: ='21MBA221'!A126 -> P18FW21M0111 | B126: ='21MBA221'!B126 -> PREETHAM D VARMA | D126: 3 | F126: 1 | G126: 2 | I126: 2 | J126: 7 | K126: 6 | L126: 22 | M126: 21
A127: ='21MBA221'!A127 -> P18FW21M0112 | B127: ='21MBA221'!B127 -> DHIRAJKUMAR BELAVADI | D127: 4 | E127: 3 | G127: 4 | I127: 2 | J127: 8 | K127: 9 | L127: 25 | M127: 30
A128: ='21MBA221'!A128 -> P18FW21M0113 | B128: ='21MBA221'!B128 -> FERNANDES RICHA FLORINDA | C128: 3 | D128: 3 | E128: 3 | G128: 3 | I128: 8 | J128: 0 | K128: 10 | L128: 28 | M128: 30
A129: ='21MBA221'!A129 -> P18FW21M0114 | B129: ='21MBA221'!B129 -> MEGHA U JOSHI | D129: 5 | E129: 4 | F129: 4 | G129: 2 | I129: 9 | J129: 9 | K129: 9 | L129: 35 | M129: 42
A130: ='21MBA221'!A130 -> P18FW21M0116 | B130: ='21MBA221'!B130 -> DINAH NEETHA NORONHA | D130: 3 | E130: 3 | F130: 3 | I130: 6 | J130: 6 | K130: 10 | L130: 28 | M130: 31
A131: ='21MBA221'!A131 -> P18FW21M0117 | B131: ='21MBA221'!B131 -> HEGDE PAVANA GANAPATHI | D131: 3 | E131: 3 | G131: 4 | H131: 3 | J131: 8 | K131: 9 | L131: 36 | M131: 30
A132: ='21MBA221'!A132 -> P18FW21M0118 | B132: ='21MBA221'!B132 -> LOYSTON CRASTA | D132: 3 | E132: 3 | G132: 0 | I132: 7 | J132: 7 | K132: 8 | L132: 21 | M132: 28
A133: ='21MBA221'!A133 -> P18FW21M0119 | B133: ='21MBA221'!B133 -> GANESH HEGDE | D133: 3 | E133: 4 | G133: 2.5 | I133: 7 | J133: 8 | K133: 6 | L133: 32 | M133: 31
A134: ='21MBA221'!A134 -> P18FW21M0120 | B134: ='21MBA221'!B134 -> ANUSHA PRAKASH | C134: 4 | D134: 4.5 | E134: 4 | I134: 8 | J134: 9 | K134: 10 | L134: 26 | M134: 40
A135: ='21MBA221'!A135 -> P18FW21M0121 | B135: ='21MBA221'!B135 -> ANJANA KSHIRASAGAR | C135: 4 | D135: 3 | F135: 1 | I135: 7 | J135: 8 | K135: 5 | L135: 29 | M135: 28
A136: ='21MBA221'!A136 -> P18FW21M0122 | B136: ='21MBA221'!B136 -> JAGADISH SHENOY R | D136: 4 | E136: 4 | G136: 4 | I136: 8 | J136: 8.5 | K136: 12 | L136: 29 | M136: 41
A137: ='21MBA221'!A137 -> P18FW21M0123 | B137: ='21MBA221'!B137 -> MADHAN KUMAR C S | C137: 4 | E137: 4 | F137: 3 | I137: 7 | J137: 8 | K137: 8 | L137: 31 | M137: 34
A138: ='21MBA221'!A138 -> P18FW21M0124 | B138: ='21MBA221'!B138 -> TEJAS H P | C138: 0 | D138: 4 | E138: 3 | I138: 8 | J138: 8 | K138: 2 | L138: 21 | M138: 25
A139: ='21MBA221'!A139 -> P18FW21M0125 | B139: ='21MBA221'!B139 -> DHANUSH K V | C139: 2.5 | E139: 3 | G139: 2 | I139: 8 | J139: 7 | K139: 8 | L139: 25 | M139: 31
A140: ='21MBA221'!A140 -> P18FW21M0126 | B140: ='21MBA221'!B140 -> SWAMI SAMIKSHA PUSHPARAJ | C140: 2.5 | D140: 4 | F140: 4 | I140: 7 | J140: 9 | K140: 6 | L140: 28 | M140: 33
A141: ='21MBA221'!A141 -> P18FW21M0127 | B141: ='21MBA221'!B141 -> AMITH BHAT | D141: 4 | F141: 4 | G141: 3 | I141: 8 | J141: 8 | K141: 10 | L141: 32 | M141: 37
A142: ='21MBA221'!A142 -> P18FW21M0128 | B142: ='21MBA221'!B142 -> NUTHANA U | E142: 3 | F142: 3 | G142: 3 | I142: 8 | J142: 8 | K142: 9 | L142: 34 | M142: 34
A143: ='21MBA221'!A143 -> P18FW21M0129 | B143: ='21MBA221'!B143 -> CHETAN SINGH M | C143: 2 | D143: 2 | E143: 2 | G143: 3 | I143: 5 | J143: 5 | K143: 8 | L143: 27 | M143: 27
A144: ='21MBA221'!A144 -> P18FW21M0130 | B144: ='21MBA221'!B144 -> KAUSTUBH LACHAPPANAVAR | C144: 3 | E144: 3 | G144: 4 | H144: 7 | J144: 7 | K144: 10 | L144: 31 | M144: 34
A145: ='21MBA221'!A145 -> P18FW21M0131 | B145: ='21MBA221'!B145 -> KSHITIJ P L | E145: 3 | F145: 3 | G145: 3 | H145: 5 | J145: 5 | K145: 10 | L145: 30 | M145: =SUM(C145:K145) -> 29
A146: ='21MBA221'!A146 -> P18FW21M0132 | B146: ='21MBA221'!B146 -> BHUVANES P | C146: 3 | D146: 3 | E146: 4 | I146: 7 | J146: 6 | K146: 5 | L146: 24 | M146: 28
A147: ='21MBA221'!A147 -> P18FW21M0133 | B147: ='21MBA221'!B147 -> NALASANI VARSHITHA | E147: 4.5 | F147: 3 | G147: 4 | H147: 7 | J147: 8 | K147: 11 | L147: 33 | M147: 38
A148: ='21MBA221'!A148 -> P18FW21M0134 | B148: ='21MBA221'!B148 -> KOKILA K | C148: 2 | D148: 3 | E148: 5 | I148: 8 | J148: 8 | K148: 10 | L148: 35 | M148: 36
A149: ='21MBA221'!A149 -> P18FW21M0135 | B149: ='21MBA221'!B149 -> KOTHA KEERTHANA | D149: 4 | E149: 4.5 | G149: 3 | I149: 8.5 | J149: 8 | K149: 12 | L149: 33 | M149: 40
A150: ='21MBA221'!A150 -> P18FW21M0136 | B150: ='21MBA221'!B150 -> MUCHELI SUBBARAJU | C150: 3 | E150: 2 | F150: 1 | G150: 2 | I150: 6 | J150: 6 | K150: 8 | L150: 32 | M150: 28
A151: ='21MBA221'!A151 -> P18FW21M0137 | B151: ='21MBA221'!B151 -> NANDAGOPAL B R | D151: 5 | E151: 4 | F151: 4 | I151: 9 | J151: 9 | K151: 8 | L151: 36 | M151: 39
A152: ='21MBA221'!A152 -> P18FW21M0138 | B152: ='21MBA221'!B152 -> VISHAL SHIVARAJ | C152: 4 | D152: 4 | E152: 4 | I152: 9 | J152: 9 | K152: 12 | L152: 34 | M152: 42
A153: ='21MBA221'!A153 -> P18FW21M0139 | B153: ='21MBA221'!B153 -> SHASHI KUMAR R | D153: 4 | E153: 4 | F153: 4 | I153: 9 | J153: 8 | K153: 8 | L153: 32 | M153: 37
A154: ='21MBA221'!A154 -> P18FW21M0140 | B154: ='21MBA221'!B154 -> YASHWANTH R | D154: 3 | E154: 4 | F154: 3 | I154: 8 | J154: 8 | K154: 9 | L154: 31 | M154: 35
A155: ='21MBA221'!A155 -> P18FW21M0141 | B155: ='21MBA221'!B155 -> M M JABEZ | C155: 3 | E155: 3 | F155: 3 | I155: 6 | J155: 6 | K155: 10 | L155: 34 | M155: 31
A156: ='21MBA221'!A156 -> P18FW21M0142 | B156: ='21MBA221'!B156 -> KALAVALA ABHISHTA | C156: 3 | D156: 3 | G156: 3 | I156: 8 | J156: 8 | K156: 11 | L156: 35 | M156: 36
A157: ='21MBA221'!A157 -> P18FW21M0143 | B157: ='21MBA221'!B157 -> SANKALP V | C157: 3 | D157: 4 | G157: 3.5 | H157: 8 | J157: 1 | K157: 10 | L157: 33 | M157: 30
A158: ='21MBA221'!A158 -> P18FW21M0144 | B158: ='21MBA221'!B158 -> NAVEEN C | C158: 3 | D158: 2 | F158: 4 | I158: 6 | J158: 8 | K158: 8 | L158: 34 | M158: 31
A159: ='21MBA221'!A159 -> P18FW21M0145 | B159: ='21MBA221'!B159 -> PAVAN KUMAR M | C159: 2 | E159: 2 | G159: 2 | I159: 5 | J159: 7 | K159: 7 | L159: 24 | M159: 25
A160: ='21MBA221'!A160 -> P18FW21M0146 | B160: ='21MBA221'!B160 -> KAPARTHI BHAVANA | D160: 4 | F160: 4 | G160: 4 | I160: 6 | J160: 8 | K160: 10 | L160: 38 | M160: 36
A161: ='21MBA221'!A161 -> P18FW21M0147 | B161: ='21MBA221'!B161 -> MANOJ N S | E161: 2 | F161: 3 | G161: 2.5 | H161: 8.5 | I161: 7 | K161: 10 | L161: 32 | M161: 33
A162: ='21MBA221'!A162 -> P18FW21M0149 | B162: ='21MBA221'!B162 -> HEMA S | C162: 2 | D162: 2 | F162: 2 | I162: 8 | J162: 7 | K162: 10 | L162: 31 | M162: 31
A163: ='21MBA221'!A163 -> P18FW21M0150 | B163: ='21MBA221'!B163 -> MADHUSUDAN G | D163: 3 | E163: 5 | F163: 4 | I163: 8 | J163: 8 | K163: 9 | L163: 29 | M163: 37
A164: ='21MBA221'!A164 -> P18FW21M0151 | B164: ='21MBA221'!B164 -> ANNASAGARAM RAGHAVENDRA | D164: 0 | E164: 2 | G164: 2 | I164: 2 | J164: 5 | K164: 7 | L164: 27 | M164: 18
A165: ='21MBA221'!A165 -> P18FW21M0152 | B165: ='21MBA221'!B165 -> SYED MUSSAVEERULLA | C165: 2 | D165: 3 | E165: 3 | I165: 6 | J165: 4 | K165: 10 | L165: 34 | M165: 28
A166: ='21MBA221'!A166 -> P18FW21M0153 | B166: ='21MBA221'!B166 -> SYED SAMEER | C166: 3 | E166: 3 | G166: 3 | I166: 8 | J166: 8 | K166: 10 | L166: 29 | M166: 35
A167: ='21MBA221'!A167 -> P18FW21M0154 | B167: ='21MBA221'!B167 -> RAMANABOINA ANAND KUMAR | D167: 3 | F167: 2 | G167: 4 | I167: 10 | J167: 10 | K167: 11 | L167: 35 | M167: 40
A168: ='21MBA221'!A168 -> P18FW21M0155 | B168: ='21MBA221'!B168 -> SHIVAM GANAPATI ANVEKAR | D168: 4 | E168: 3 | F168: 0 | I168: 7.5 | J168: 8.5 | K168: 5 | L168: 31 | M168: 28
A169: ='21MBA221'!A169 -> P18FW21M0156 | B169: ='21MBA221'!B169 -> SHUBHAM SINGH | D169: 4.5 | E169: 4 | F169: 0 | H169: 8 | J169: 9 | K169: 11 | L169: 31 | M169: 37
A170: ='21MBA221'!A170 -> P18FW21M0157 | B170: ='21MBA221'!B170 -> GURU VARUN G | C170: 4 | E170: 5 | F170: 4 | H170: 7 | J170: 8 | K170: 8 | L170: 25 | M170: 36
A171: ='21MBA221'!A171 -> P18FW21M0158 | B171: ='21MBA221'!B171 -> ABHIJEETH MASHETTY | C171: 3 | D171: 3 | E171: 3.5 | I171: 9 | J171: 9 | K171: 12 | L171: 33 | M171: 40
A172: ='21MBA221'!A172 -> P18FW21M0159 | B172: ='21MBA221'!B172 -> PRANITH KUMAR S | C172: 4 | D172: 4 | E172: 4 | I172: 9 | J172: 8.5 | K172: 13 | L172: 33 | M172: 43
A173: ='21MBA221'!A173 -> P18FW21M0160 | B173: ='21MBA221'!B173 -> LIKITHA A | C173: 2.5 | D173: 3 | E173: 3 | H173: 8 | J173: 8.5 | K173: 8 | L173: 30 | M173: 33
A174: ='21MBA221'!A174 -> P18FW21M0161 | B174: ='21MBA221'!B174 -> NAVEEN SETTY N A | C174: 4 | D174: 4 | F174: 4 | I174: 8 | J174: 8 | K174: 10 | L174: 31 | M174: 38
A175: ='21MBA221'!A175 -> P18FW21M0162 | B175: ='21MBA221'!B175 -> REHAN FAISAL QADRI | C175: 4 | D175: 3 | E175: 3 | I175: 6 | J175: 7 | K175: 10 | L175: 26 | M175: 33
A176: ='21MBA221'!A176 -> P18FW21M0163 | B176: ='21MBA221'!B176 -> SMITHA M | C176: 4 | D176: 4 | F176: 4 | I176: 9 | J176: 9 | K176: 12 | L176: 33 | M176: 42
A177: ='21MBA221'!A177 -> P18FW21M0164 | B177: ='21MBA221'!B177 -> ANIRUDH K | C177: 1 | D177: 2 | G177: 3 | I177: 1 | J177: 6 | K177: 8 | L177: 22 | M177: 21
A178: ='21MBA221'!A178 -> P18FW21M0165 | B178: ='21MBA221'!B178 -> SALMAN FAISAL QADRI | C178: 3 | D178: 3 | G178: 4 | I178: 6 | J178: 7 | K178: 8 | L178: 29 | M178: 31
A179: ='21MBA221'!A179 -> P18FW21M0166 | B179: ='21MBA221'!B179 -> RAVISH RAMACHANDRA HEGDE | C179: 2 | D179: 2 | E179: 2 | I179: 7 | J179: 7 | K179: 5 | L179: 26 | M179: 25
A180: ='21MBA221'!A180 -> P18FW21M0167 | B180: ='21MBA221'!B180 -> POOJA VALLUR | C180: 4 | D180: 4 | E180: 4 | I180: 7 | J180: 8 | K180: 9 | L180: 33 | M180: 36
A181: ='21MBA221'!A181 -> P18FW21M0169 | B181: ='21MBA221'!B181 -> MAHANTH GOWDA K C | E181: 4 | F181: 3 | G181: 3 | I181: 9 | J181: 9 | K181: 12 | L181: 32 | M181: 40
A182: ='21MBA221'!A182 -> P18FW21M0170 | B182: ='21MBA221'!B182 -> BHUPALI SAURABH PRAKASH | E182: 3 | F182: 3 | G182: 2.5 | H182: 9 | J182: 8 | K182: 12 | L182: 34 | M182: 38
A183: ='21MBA221'!A183 -> P18FW21M0171 | B183: ='21MBA221'!B183 -> SYED RAIHAN | C183: 3 | D183: 2.5 | E183: 2.5 | I183: 7 | J183: 6 | K183: 12 | L183: 27 | M183: 33
A184: ='21MBA221'!A184 -> P18FW21M0172 | B184: ='21MBA221'!B184 -> SHRI HARI L | D184: 4 | E184: 3 | G184: 3.5 | H184: 7 | I184: 7 | K184: 8 | L184: 32 | M184: 33
A185: ='21MBA221'!A185 -> P18FW21M0173 | B185: ='21MBA221'!B185 -> SNEHA U | D185: 3 | E185: 2 | F185: 4 | I185: 8 | J185: 8 | K185: 0 | L185: 30 | M185: 25
A186: ='21MBA221'!A186 -> P18FW21M0174 | B186: ='21MBA221'!B186 -> SHAH VINIT SIDDHARTH | D186: 3 | E186: 4 | F186: 4 | I186: 9 | J186: 8 | K186: 12 | L186: 27 | M186: 40
A187: ='21MBA221'!A187 -> P18FW21M0175 | B187: ='21MBA221'!B187 -> NAYANA G C | E187: 5 | F187: 4 | G187: 5 | I187: 8 | J187: 9 | K187: 11 | L187: 32 | M187: 42
A188: ='21MBA221'!A188 -> P18FW21M0176 | B188: ='21MBA221'!B188 -> D SURIYA PRIYASREE | D188: 2 | E188: 2 | G188: 0 | I188: 8 | J188: 7 | K188: 10 | L188: 33 | M188: 29
A189: ='21MBA221'!A189 -> P18FW21M0177 | B189: ='21MBA221'!B189 -> SATHYA B NAYAKA | C189: 4 | D189: 3 | E189: 3 | I189: 9 | J189: 7 | K189: 10 | L189: 30 | M189: 36
A190: ='21MBA221'!A190 -> P18FW21M0178 | B190: ='21MBA221'!B190 -> NEHA H V | E190: 4 | F190: 4 | G190: 2.5 | H190: 8 | I190: 7 | K190: 6 | L190: 22 | M190: 32
A191: ='21MBA221'!A191 -> P18FW21M0179 | B191: ='21MBA221'!B191 -> SAAHIL SRIKANT KULLOLI | D191: 3 | E191: 4 | F191: 4 | H191: 6 | J191: 8 | K191: 9.5 | L191: 30 | M191: 35
A192: ='21MBA221'!A192 -> P18FW21M0180 | B192: ='21MBA221'!B192 -> SIMRANJIT KAUR | D192: 2.5 | E192: 3 | F192: 4 | H192: 9 | J192: 8 | K192: 10 | L192: 32 | M192: 37
A193: ='21MBA221'!A193 -> P18FW21M0181 | B193: ='21MBA221'!B193 -> NIRANJAN JANARDHAN HEGDE | D193: 4 | E193: 3 | G193: 3 | I193: 9 | J193: 0 | K193: 6 | L193: 24 | M193: 25
A194: ='21MBA221'!A194 -> P18FW21M0182 | B194: ='21MBA221'!B194 -> TEJAS N | M194: 0
A195: ='21MBA221'!A195 -> P18FW21M0184 | B195: ='21MBA221'!B195 -> AGAMYA A KINHAL | C195: 1 | E195: 3 | G195: 2.5 | I195: 9 | J195: 9 | K195: 10 | L195: 24 | M195: 35
A196: No. of students attended | C196: =COUNTA(C16:C195) -> 103 | D196: 136 | E196: 145 | F196: 82 | G196: 79 | H196: 40 | I196: 153 | J196: 167 | K196: 179 | L196: =COUNT(L16:L195) -> 178
A197: No. of Students attained CO | C197: =COUNTIF(C16:C195,">"&C15) -> 38 | D197: 50 | E197: 68 | F197: 34 | G197: 25 | H197: 26 | I197: 123 | J197: 133 | K197: 107 | L197: 177
A198: CO Attainment percentage | C198: =ROUND(C197*100/C196,0) -> 37 | D198: 37 | E198: 47 | F198: 41 | G198: 32 | H198: 65 | I198: 80 | J198: 80 | K198: 60 | L198: =ROUND(L197*100/L196,0) -> 99
A199: Level | C199: =IF(C198>=80,"3",IF(C198>=70,"2",IF(C198>=60,"1","-"))) -> - | D199: =IF(D198>=80,"3",IF(D198>=70,"2",IF(D198>=60,"1","-"))) -> - | E199: - | F199: - | G199: - | H199: 1 | I199: 3 | J199: 3 | K199: 1 | L199: 3
C200: CO1 | D200: CO4 | E200: CO3 | F200: CO3 | G200: CO2 | H200: CO1 | I200: CO4 | J200: CO3 | K200: CO2
H201: Internals | J201: Final CO Attainment
... 6 more rows

Sheet 21MBA621-Attainment
A1: ='21MBA621'!A5:M5 -> Human Resource Management
D3: Internals | F3: Final CO Attainment
C4: CO | D4: Percentage | E4: Level | F4: Percentage | G4: Level
C5: CO1 | D5: ='21MBA621'!H203 -> 34 | E5: ='21MBA621'!I203 -> - | F5: ='21MBA621'!J203 -> 80 | G5: ='21MBA621'!K203 -> 2
C6: CO2 | D6: ='21MBA621'!H204 -> 44 | E6: ='21MBA621'!I204 -> - | F6: ='21MBA621'!J204 -> 83 | G6: ='21MBA621'!K204 -> 3
C7: CO3 | D7: ='21MBA621'!H205 -> 51 | E7: ='21MBA621'!I205 -> - | F7: ='21MBA621'!J205 -> 85 | G7: ='21MBA621'!K205 -> 3
C8: CO4 | D8: ='21MBA621'!H206 -> 39 | E8: ='21MBA621'!I206 -> - | F8: ='21MBA621'!J206 -> 81 | G8: ='21MBA621'!K206 -> 3
C9: CO5 | D9: ='21MBA621'!H207 -> 48 | E9: ='21MBA621'!I207 -> - | F9: ='21MBA621'!J207 -> 84 | G9: ='21MBA621'!K207 -> 3
C11: PO1 | D11: PO2 | E11: PO3 | F11: PO4 | G11: PO5 | H11: PO6 | I11: PO7 | J11: PO8 | K11: PO9 | L11: PO10 | M11: PO11
B12: C01 | C12: 3 | D12: 2 | E12: 2 | F12: 3 | G12: 3 | H12: 2 | I12: 2 | J12: 3 | K12: 2 | L12: 1 | M12: 3
B13: C02 | C13: 3 | D13: 3 | E13: 3 | F13: 2 | G13: 3 | H13: 3 | I13: 2 | J13: 3 | K13: 2 | L13: 2 | M13: 3
B14: C03 | C14: 3 | D14: 3 | E14: 3 | F14: 2 | G14: 3 | H14: 3 | I14: 3 | J14: 3 | K14: 1 | L14: 2 | M14: 3
B15: C04 | C15: 3 | D15: 3 | E15: 3 | F15: 2 | G15: 3 | H15: 2 | I15: 3 | J15: 3 | K15: 2 | L15: 2 | M15: 3
B16: C05 | C16: 3 | D16: 3 | E16: 1 | F16: 3 | G16: 2 | H16: 3 | I16: 3 | J16: 3 | K16: 1 | L16: 1 | M16: 2
C17: LEVEL | D17: 3-Substantial | E17: 2-Moderate | F17: 1-Slight | G17: "-" No Co-relation
A20: Final CO | C20: PO1 | D20: PO2 | E20: PO3 | F20: PO4 | G20: PO5 | H20: PO6 | I20: PO7 | J20: PO8 | K20: PO9 | L20: PO10 | M20: PO11
A21: ATTAINMENT
A22: C01 | B22: =F5 -> 79.50 | C22: =C12*$B$22/3 -> 79.50 | D22: 53.00 | E22: 53.00 | F22: 79.50 | G22: 79.50 | H22: 53.00 | I22: 53.00 | J22: 79.50 | K22: 53.00 | L22: 26.50 | M22: 79.50
A23: C02 | B23: =F6 -> 82.60 | C23: =C13*$B$23/3 -> 82.60 | D23: 82.60 | E23: 82.60 | F23: 55.07 | G23: 82.60 | H23: 82.60 | I23: 55.07 | J23: 82.60 | K23: 55.07 | L23: 55.07 | M23: 82.60
A24: C03 | B24: =F7 -> 84.68 | C24: =C14*$B$24/3 -> 84.68 | D24: 84.68 | E24: 84.68 | F24: 56.45 | G24: 84.68 | H24: 84.68 | I24: 84.68 | J24: 84.68 | K24: 28.23 | L24: 56.45 | M24: 84.68
A25: C04 | B25: =F8 -> 81.00 | C25: =C16*$B$25/3 -> 81.00 | D25: =D16*$B$25/3 -> 81.00 | E25: 27.00 | F25: 81.00 | G25: 54.00 | H25: 81.00 | I25: 81.00 | J25: 81.00 | K25: 27.00 | L25: 27.00 | M25: 54.00
A26: C05 | B26: =F9 -> 83.55 | C26: =C16*$B$26/3 -> 83.55 | D26: =D16*$B$26/3 -> 83.55 | E26: 27.85 | F26: 83.55 | G26: 55.70 | H26: 83.55 | I26: 83.55 | J26: 83.55 | K26: 27.85 | L26: 27.85 | M26: 55.70
A27: Average | B27: =AVERAGE(B22:B25) -> 81.94 | C27: 81.94 | D27: 75.32 | E27: 61.82 | F27: 68.00 | G27: 75.19 | H27: 75.32 | I27: 68.44 | J27: 81.94 | K27: 40.82 | L27: 41.25 | M27: 75.19

Sheet 21MBA321
A1: RV Institute of Management
A2: Autonomous Institution Affiliated to BCU
A3: MBA Programme II Semester
A4: Course Outcome Report
A5: Financial Management
A6: Name of the Course Teacher: | I6: Sub. Code: | L6: 21MBA321
A7: Prof. Dileep, Prof. Vidyadhar Hegde, Prof. Pooja T | J7: Sec: | L7: ABC
D8: Semester II
D9: Batch 2021-23
C11: Section A | J11: Section B
C12: 1 | D12: 2 | E12: 3 | F12: 4 | G12: 5 | H12: 6 | I12: 7 | J12: 8 | K12: 9 | L12: External Exam | M12: Mid Term Exam
C13: CO1 | D13: CO5 | E13: CO6 | F13: CO3 | G13: CO2 | H13: CO4 | I13: CO1 | J13: CO6 | K13: CO4 | L13: Marks | M13: Marks
C14: 5 | D14: 5 | E14: 5 | F14: 5 | G14: 5 | H14: 5 | I14: 5 | J14: 10 | K14: 10 | L14: 50 | M14: 50
C15: =C14*0.64 -> 3.2 | D15: =D14*0.64 -> 3.2 | E15: 3.2 | F15: 3.2 | G15: 3.2 | H15: 3.2 | I15: 3.2 | J15: 6.4 | K15: 6.4 | L15: =L14*0.357142 -> 18
A16: ='21MBA221'!A16 -> P18FW21M0001 | B16: ='21MBA221'!B16 -> VIPUL VILAS NAIK | C16: 5 | E16: 2 | F16: 0 | H16: 3 | I16: 3 | K16: 5 | L16: 26 | M16: =SUM(C16:K16) -> 18
A17: ='21MBA221'!A17 -> P18FW21M0002 | B17: ='21MBA221'!B17 -> M PRANEETH KUMAR REDDY | C17: 5 | D17: 3 | E17: 1 | I17: 4 | J17: 6 | K17: 2 | L17: 16 | M17: =SUM(C17:K17) -> 21
A18: ='21MBA221'!A18 -> P18FW21M0003 | B18: ='21MBA221'!B18 -> NIKHIL S ANJANALLI | D18: 5 | E18: 2 | G18: 3 | I18: 6 | J18: 8 | K18: 10 | L18: 37 | M18: 34
A19: ='21MBA221'!A19 -> P18FW21M0004 | B19: ='21MBA221'!B19 -> KARTHIK P SHETTY | D19: 3 | E19: 2 | F19: 0 | H19: 10 | J19: 5 | K19: 5 | L19: 16 | M19: 25
A20: ='21MBA221'!A20 -> P18FW21M0005 | B20: ='21MBA221'!B20 -> AMITH C | C20: 5 | D20: 3 | G20: 0 | H20: 8 | J20: 5 | K20: 4 | L20: 32 | M20: 25
A21: ='21MBA221'!A21 -> P18FW21M0006 | B21: ='21MBA221'!B21 -> AISHWARYA G | C21: 1 | D21: 3.5 | E21: 1.5 | H21: 0 | I21: 0 | K21: 1 | L21: 12 | M21: 7
A22: ='21MBA221'!A22 -> P18FW21M0007 | B22: ='21MBA221'!B22 -> AKANKSH P | C22: 5 | D22: 4 | E22: 4 | H22: 10 | J22: 9 | K22: 5 | L22: 21 | M22: 37
A23: ='21MBA221'!A23 -> P18FW21M0008 | B23: ='21MBA221'!B23 -> SACHITH B K | C23: 5 | D23: 4 | G23: 0 | H23: 5 | I23: 0 | J23: 0 | K23: 0 | L23: 29 | M23: 14
A24: ='21MBA221'!A24 -> P18FW21M0009 | B24: ='21MBA221'!B24 -> CHAITANYA KAMATAGI B | C24: 5 | D24: 4 | E24: 3 | H24: 5 | I24: 10 | K24: 10 | L24: 43 | M24: 37
A25: ='21MBA221'!A25 -> P18FW21M0010 | B25: ='21MBA221'!B25 -> AKASH RACHAPPA KHANAGAVI | C25: 5 | E25: 2 | F25: 3 | I25: 10 | J25: 10 | K25: 4 | L25: 33 | M25: 34
A26: ='21MBA221'!A26 -> P18FW21M0011 | B26: ='21MBA221'!B26 -> SOURAV SADANAND SWAR | D26: 4 | E26: 2 | F26: 0 | I26: 0 | J26: 6 | K26: 1 | L26: 13 | M26: 13
A27: ='21MBA221'!A27 -> P18FW21M0012 | B27: ='21MBA221'!B27 -> NISHANTH KRISHNA | C27: 5 | D27: 1 | G27: 1 | H27: 9 | J27: 10 | K27: 9 | L27: 31 | M27: 35
A28: ='21MBA221'!A28 -> P18FW21M0013 | B28: ='21MBA221'!B28 -> MEHUL V BHASKAR | C28: 5 | D28: 3 | F28: 0.5 | H28: 2 | J28: 3 | K28: 0 | L28: 13 | M28: 14
A29: ='21MBA221'!A29 -> P18FW21M0014 | B29: ='21MBA221'!B29 -> SHUBHAM RAJENDRA REVANKAR | C29: 0 | D29: 0 | F29: 0 | H29: 4 | J29: 5 | K29: 5 | L29: 17 | M29: 14
A30: ='21MBA221'!A30 -> P18FW21M0015 | B30: ='21MBA221'!B30 -> SHETTY TRUPTHI CHANDRAHAS | C30: 5 | D30: 3 | E30: 3.5 | H30: 1 | I30: 8 | K30: 3 | L30: 23 | M30: 24
A31: ='21MBA221'!A31 -> P18FW21M0016 | B31: ='21MBA221'!B31 -> SHEEBAL M S | C31: 5 | D31: 3 | E31: 3 | H31: 10 | J31: 9 | K31: 5 | L31: 20 | M31: 35
A32: ='21MBA221'!A32 -> P18FW21M0017 | B32: ='21MBA221'!B32 -> VISHNU KUMAR | C32: 5 | D32: 4 | E32: 4 | H32: 10 | J32: 10 | K32: 4 | L32: 40 | M32: 37
A33: ='21MBA221'!A33 -> P18FW21M0018 | B33: ='21MBA221'!B33 -> HARSHITHA SRINIVAS | C33: 5 | D33: 4 | G33: 3 | H33: 10 | I33: 5 | K33: 7 | L33: 34 | M33: 34
A34: ='21MBA221'!A34 -> P18FW21M0019 | B34: ='21MBA221'!B34 -> SAGI SAMPI | C34: 5 | D34: 4 | F34: 4 | H34: 7 | I34: 10 | K34: 8 | L34: 43 | M34: 38
A35: ='21MBA221'!A35 -> P18FW21M0020 | B35: ='21MBA221'!B35 -> PAULOMEE BARUAH | C35: 2 | D35: 2.5 | E35: 4 | H35: 6 | I35: 6 | K35: 0 | L35: 31 | M35: 21
A36: ='21MBA221'!A36 -> P18FW21M0021 | B36: ='21MBA221'!B36 -> NEETHA KAMATH | C36: 2 | D36: 2 | F36: 4 | H36: 10 | I36: 10 | K36: 9 | L36: 24 | M36: 37
A37: ='21MBA221'!A37 -> P18FW21M0022 | B37: ='21MBA221'!B37 -> ADITYA UDAY HEGDE | C37: 5 | D37: 4 | E37: 1 | H37: 10 | J37: 6 | K37: 5 | L37: 34 | M37: 31
A38: ='21MBA221'!A38 -> P18FW21M0023 | B38: ='21MBA221'!B38 -> SHREYAS G A | C38: 5 | D38: 4 | F38: 3 | H38: 10 | I38: 10 | K38: 8 | L38: 36 | M38: 40
A39: ='21MBA221'!A39 -> P18FW21M0024 | B39: ='21MBA221'!B39 -> SRUJANA S | C39: 5 | D39: 4 | E39: 3 | H39: 10 | I39: 10 | K39: 10 | L39: 40 | M39: 42
A40: ='21MBA221'!A40 -> P18FW21M0025 | B40: ='21MBA221'!B40 -> PRAJWAL S N | C40: 5 | D40: 4 | E40: 3 | H40: 10 | J40: 7 | K40: 4 | L40: 35 | M40: 33
A41: ='21MBA221'!A41 -> P18FW21M0026 | B41: ='21MBA221'!B41 -> SUCHITRA G | C41: 5 | D41: 3 | E41: 3 | H41: 10 | J41: 3 | K41: 4 | L41: 26 | M41: 28
A42: ='21MBA221'!A42 -> P18FW21M0027 | B42: ='21MBA221'!B42 -> SANKET SURESH SHIRSAT | C42: 5 | D42: 3 | E42: 3 | H42: 10 | J42: 10 | K42: 4 | L42: 41 | M42: 35
A43: ='21MBA221'!A43 -> P18FW21M0028 | B43: ='21MBA221'!B43 -> ANIKET SANJAY REVANKAR | C43: 5 | D43: 4 | E43: 4 | H43: 10 | J43: 10 | K43: 6 | L43: 42 | M43: 39
A44: ='21MBA221'!A44 -> P18FW21M0029 | B44: ='21MBA221'!B44 -> AKHILA H | C44: 5 | D44: 4 | E44: 3 | I44: 0 | J44: 0 | L44: 21 | M44: 12
A45: ='21MBA221'!A45 -> P18FW21M0030 | B45: ='21MBA221'!B45 -> M LUQMAN NAWAZ | C45: 5 | D45: 4 | F45: 4 | H45: 10 | I45: 8 | K45: 0 | L45: 29 | M45: 31
A46: ='21MBA221'!A46 -> P18FW21M0031 | B46: ='21MBA221'!B46 -> MADHURA A | C46: 5 | D46: 4 | E46: 3 | H46: 10 | I46: 8 | K46: 5 | L46: 33 | M46: 35
A47: ='21MBA221'!A47 -> P18FW21M0032 | B47: ='21MBA221'!B47 -> H V SHREEVATSA | C47: 5 | E47: 2 | G47: 0 | H47: 4 | I47: 10 | K47: 9 | L47: 27 | M47: 30
A48: ='21MBA221'!A48 -> P18FW21M0033 | B48: ='21MBA221'!B48 -> LILIMA DASH | C48: 5 | D48: 3 | E48: 3 | H48: 6 | I48: 7 | K48: 5 | L48: 29 | M48: 29
A49: ='21MBA221'!A49 -> P18FW21M0034 | B49: ='21MBA221'!B49 -> KUMAR ASHUTOSH | C49: 5 | F49: 0 | G49: 0 | H49: 9 | J49: 6 | L49: 23 | M49: 20
A50: ='21MBA221'!A50 -> P18FW21M0035 | B50: ='21MBA221'!B50 -> RAHUL S SANGOLLI | C50: 5 | D50: 4 | G50: 0 | H50: 8 | J50: 8 | K50: 5 | L50: 23 | M50: 30
A51: ='21MBA221'!A51 -> P18FW21M0036 | B51: ='21MBA221'!B51 -> GIRISH N NASHI | C51: 5 | D51: 1 | E51: 1 | H51: 10 | J51: 10 | K51: 6 | L51: 35 | M51: 33
A52: ='21MBA221'!A52 -> P18FW21M0037 | B52: ='21MBA221'!B52 -> ANKITA GAJANAN NAIK | C52: 5 | F52: 0 | G52: 0 | H52: 10 | J52: 9 | K52: 8 | L52: 39 | M52: 32
A53: ='21MBA221'!A53 -> P18FW21M0038 | B53: ='21MBA221'!B53 -> GURUBASAVARAJ K M | C53: 5 | F53: 3 | G53: 2 | H53: 10 | J53: 10 | K53: 8 | L53: 40 | M53: 38
A54: ='21MBA221'!A54 -> P18FW21M0039 | B54: ='21MBA221'!B54 -> ANANYA P HEGDE | C54: 5 | E54: 2 | F54: 3 | H54: 5 | I54: 0 | K54: 2 | L54: 29 | M54: 17
A55: ='21MBA221'!A55 -> P18FW21M0040 | B55: ='21MBA221'!B55 -> NIVEDITHA K SWAMY | C55: 5 | E55: 1 | G55: 3 | I55: 10 | J55: 10 | K55: 13 | L55: 44 | M55: 42
A56: ='21MBA221'!A56 -> P18FW21M0041 | B56: ='21MBA221'!B56 -> LIKHITHA L | C56: 5 | D56: 3 | E56: 3 | H56: 10 | I56: 6 | L56: 30 | M56: 27
A57: ='21MBA221'!A57 -> P18FW21M0042 | B57: ='21MBA221'!B57 -> RAHUL RAM BHAT | C57: 5 | F57: 2 | G57: 3 | H57: 10 | J57: 10 | K57: 8 | L57: 41 | M57: 38
A58: ='21MBA221'!A58 -> P18FW21M0043 | B58: ='21MBA221'!B58 -> AMIT KAMADOLLISHETTARU | C58: 5 | F58: 3 | G58: 3 | H58: 10 | J58: 8 | K58: 9 | L58: 41 | M58: 38
A59: ='21MBA221'!A59 -> P18FW21M0044 | B59: ='21MBA221'!B59 -> POOJARANI TALAWAR | C59: 5 | D59: 1 | F59: 3 | H59: 10 | I59: 8 | K59: 8 | L59: 25 | M59: 35
A60: ='21MBA221'!A60 -> P18FW21M0045 | B60: ='21MBA221'!B60 -> ABHITHA K | C60: 3 | D60: 2 | F60: 2 | I60: 8 | J60: 6 | K60: 7 | L60: 31 | M60: 28
A61: ='21MBA221'!A61 -> P18FW21M0046 | B61: ='21MBA221'!B61 -> S SHREYAS | C61: 5 | D61: 1 | E61: 2 | H61: 4 | J61: 2 | K61: 2 | L61: 17 | M61: 16
A62: ='21MBA221'!A62 -> P18FW21M0047 | B62: ='21MBA221'!B62 -> ABHISHEK SHENOY | C62: 5 | F62: 0 | G62: 2 | I62: 1 | J62: 7 | K62: 7 | L62: 26 | M62: 22
A63: ='21MBA221'!A63 -> P18FW21M0048 | B63: ='21MBA221'!B63 -> B S SUSHEN | C63: 5 | E63: 3 | F63: 0 | H63: 3 | I63: 6 | K63: 8 | L63: 28 | M63: 25
A64: ='21MBA221'!A64 -> P18FW21M0049 | B64: ='21MBA221'!B64 -> PRAJWALA H | C64: 5 | E64: 4 | G64: 4 | I64: 10 | J64: 10 | K64: 8 | L64: 35 | M64: 41
A65: ='21MBA221'!A65 -> P18FW21M0050 | B65: ='21MBA221'!B65 -> VAISHNAVI N | C65: 5 | E65: 4 | G65: 2 | H65: 0 | I65: 10 | J65: 10 | K65: 10 | L65: 36 | M65: 41
A66: ='21MBA221'!A66 -> P18FW21M0051 | B66: ='21MBA221'!B66 -> DEEPAK GIRISH KALYANI | C66: 5 | E66: 3 | F66: 3 | H66: 10 | J66: 10 | K66: 7 | L66: 41 | M66: 38
A67: ='21MBA221'!A67 -> P18FW21M0052 | B67: ='21MBA221'!B67 -> ISAAC JESSE K | E67: 2 | F67: 0 | G67: 0 | I67: 1 | J67: 0 | K67: 0 | L67: 12 | M67: 3
A68: ='21MBA221'!A68 -> P18FW21M0053 | B68: ='21MBA221'!B68 -> SUPRIYA GOVIND BELSARE | C68: 5 | D68: 0 | G68: 2 | I68: 10 | J68: 10 | K68: 8 | L68: 31 | M68: 35
A69: ='21MBA221'!A69 -> P18FW21M0054 | B69: ='21MBA221'!B69 -> VINAYAK RAO GAIKWAD K | C69: 3 | D69: 4 | G69: 0 | H69: 10 | J69: 10 | K69: 2 | L69: 20 | M69: 29
A70: ='21MBA221'!A70 -> P18FW21M0055 | B70: ='21MBA221'!B70 -> SUTOPA DEB | C70: 5 | D70: 3 | E70: 3 | H70: 8 | J70: 1 | L70: 21 | M70: 20
A71: ='21MBA221'!A71 -> P18FW21M0056 | B71: ='21MBA221'!B71 -> M S SUKRUT | C71: 5 | D71: 4 | E71: 3 | H71: 2 | J71: 1 | L71: AB | M71: 15
A72: ='21MBA221'!A72 -> P18FW21M0057 | B72: ='21MBA221'!B72 -> BHASKARA PRABHU | C72: 5 | F72: 0 | G72: 0 | H72: 6 | J72: 10 | K72: 4 | L72: 42 | M72: 25
A73: ='21MBA221'!A73 -> P18FW21M0058 | B73: ='21MBA221'!B73 -> PRAKASH SHIVAKUMAR | C73: 5 | F73: 2 | G73: 0 | H73: 10 | I73: 10 | K73: 8 | L73: 34 | M73: 35
A74: ='21MBA221'!A74 -> P18FW21M0059 | B74: ='21MBA221'!B74 -> AMOGHA Y G | C74: 5 | F74: 1 | G74: 2 | H74: 0 | I74: 10 | J74: 10 | K74: 7 | L74: 35 | M74: 35
A75: ='21MBA221'!A75 -> P18FW21M0060 | B75: ='21MBA221'!B75 -> BHARATH K S | E75: 1 | F75: 0 | G75: 0 | I75: 3 | J75: 8 | K75: 9 | L75: 29 | M75: 21
A76: ='21MBA221'!A76 -> P18FW21M0061 | B76: ='21MBA221'!B76 -> AKANKSH K G | C76: 5 | D76: 2 | G76: 2 | H76: 4 | I76: 5 | K76: 4 | L76: 24 | M76: 22
A77: ='21MBA221'!A77 -> P18FW21M0062 | B77: ='21MBA221'!B77 -> BERNARD FERNANDES | C77: 1 | D77: 2 | E77: 3 | H77: 6 | J77: 1 | K77: 0 | L77: 17 | M77: 13
A78: ='21MBA221'!A78 -> P18FW21M0063 | B78: ='21MBA221'!B78 -> AISHWARYA P | C78: 4 | E78: 3 | G78: 0 | I78: 4 | J78: 5 | L78: 28 | M78: 16
A79: ='21MBA221'!A79 -> P18FW21M0064 | B79: ='21MBA221'!B79 -> VIOLA PINTO | C79: 1 | D79: 4 | E79: 3 | I79: 5 | J79: 7 | K79: 5 | L79: 36 | M79: 25
A80: ='21MBA221'!A80 -> P18FW21M0065 | B80: ='21MBA221'!B80 -> VARSHA | C80: 5 | E80: 1 | F80: 2 | H80: 3 | J80: 8 | K80: 8 | L80: 38 | M80: 27
A81: ='21MBA221'!A81 -> P18FW21M0066 | B81: ='21MBA221'!B81 -> CHIDRI BALAJI | C81: 5 | D81: 3 | E81: 3 | H81: 8 | J81: 3 | K81: 8 | L81: 35 | M81: =SUM(C81:K81) -> 30
A82: ='21MBA221'!A82 -> P18FW21M0067 | B82: ='21MBA221'!B82 -> GAGANDEEP V N | C82: 5 | D82: 2 | G82: 0 | I82: 7 | J82: 4 | K82: 4 | L82: 27 | M82: 22
A83: ='21MBA221'!A83 -> P18FW21M0068 | B83: ='21MBA221'!B83 -> PRAJWALA | C83: 5 | F83: 1 | G83: 3 | I83: 7 | J83: 6 | K83: 8 | L83: 34 | M83: 30
A84: ='21MBA221'!A84 -> P18FW21M0069 | B84: ='21MBA221'!B84 -> POORNIMA L | C84: 5 | D84: 0 | E84: 0 | H84: 10 | J84: 10 | K84: 13 | L84: 39 | M84: 38
A85: ='21MBA221'!A85 -> P18FW21M0070 | B85: ='21MBA221'!B85 -> SHUBIKSHA S | C85: 5 | D85: 1 | E85: 4 | I85: 10 | J85: 8 | K85: 9 | L85: 33 | M85: 37
A86: ='21MBA221'!A86 -> P18FW21M0071 | B86: ='21MBA221'!B86 -> ANUSHA | C86: 5 | F86: 3 | G86: 0 | I86: 5 | J86: 8 | K86: 5 | L86: 35 | M86: 26
A87: ='21MBA221'!A87 -> P18FW21M0072 | B87: ='21MBA221'!B87 -> P T KIRTI | C87: 5 | D87: 3 | E87: 3 | H87: 8 | I87: 7 | K87: 0 | L87: 34 | M87: 26
A88: ='21MBA221'!A88 -> P18FW21M0073 | B88: ='21MBA221'!B88 -> SAMEEKSHA M P | C88: 5 | D88: 0 | E88: 0 | H88: 10 | I88: 8 | J88: 4 | K88: 8 | L88: 33 | M88: 35
A89: ='21MBA221'!A89 -> P18FW21M0074 | B89: ='21MBA221'!B89 -> KAVYAPRIYA J | C89: 5 | D89: 2 | E89: 2 | H89: 10 | J89: 9 | K89: 5 | L89: 28 | M89: 33
A90: ='21MBA221'!A90 -> P18FW21M0075 | B90: ='21MBA221'!B90 -> RAKSHITH R T | C90: 5 | D90: 2 | E90: 2 | H90: 10 | J90: 4 | K90: 7 | L90: 41 | M90: 30
A91: ='21MBA221'!A91 -> P18FW21M0076 | B91: ='21MBA221'!B91 -> SHUBHA R | C91: 4 | F91: 3 | G91: 3 | H91: 10 | J91: 8 | K91: 6 | L91: 36 | M91: 34
A92: ='21MBA221'!A92 -> P18FW21M0077 | B92: ='21MBA221'!B92 -> BASAVARAJ | C92: 5 | D92: 3 | F92: 4 | H92: 10 | J92: 6 | K92: 7 | L92: 27 | M92: 35
A93: ='21MBA221'!A93 -> P18FW21M0078 | B93: ='21MBA221'!B93 -> MANOJ RAKSHATH B S | C93: 0 | E93: 3 | F93: 2 | I93: 0 | J93: 0 | K93: 0 | L93: 12 | M93: 5
A94: ='21MBA221'!A94 -> P18FW21M0079 | B94: ='21MBA221'!B94 -> ADITI RANI | C94: 4 | E94: 3 | F94: 0 | H94: 10 | J94: 9 | K94: 3 | L94: 22 | M94: 29
A95: ='21MBA221'!A95 -> P18FW21M0080 | B95: ='21MBA221'!B95 -> DIVYA SHREE M | C95: 5 | F95: 3 | G95: 2 | I95: 6 | J95: 9 | K95: 10 | L95: 30 | M95: 35
A96: ='21MBA221'!A96 -> P18FW21M0081 | B96: ='21MBA221'!B96 -> VARUN S BHARADWAJ | C96: 5 | D96: 0 | E96: 1 | H96: 1 | J96: 10 | K96: 3 | L96: 33 | M96: 20
A97: ='21MBA221'!A97 -> P18FW21M0082 | B97: ='21MBA221'!B97 -> S KARTHIK | C97: 5 | E97: 2 | G97: 0 | H97: 1 | J97: 4 | K97: 3 | L97: 30 | M97: 15
A98: ='21MBA221'!A98 -> P18FW21M0083 | B98: ='21MBA221'!B98 -> NEELAMMA M K | C98: 5 | D98: 4 | E98: 3 | H98: 8 | I98: 6 | J98: 2 | K98: 9 | L98: 38 | M98: 37
A99: ='21MBA221'!A99 -> P18FW21M0084 | B99: ='21MBA221'!B99 -> PRAMOD K L | C99: 5 | D99: 0 | E99: 3 | H99: 5 | J99: 9 | K99: 6 | L99: 35 | M99: 28
A100: ='21MBA221'!A100 -> P18FW21M0085 | B100: ='21MBA221'!B100 -> NAMRATHA N | C100: 5 | D100: 3 | E100: 3 | H100: 9 | J100: 2 | K100: 4 | L100: 21 | M100: 26
A101: ='21MBA221'!A101 -> P18FW21M0086 | B101: ='21MBA221'!B101 -> ANVITH KUMAR | C101: 5 | D101: 3 | E101: 3 | H101: 10 | I101: 10 | K101: 8 | L101: 30 | M101: 39
A102: ='21MBA221'!A102 -> P18FW21M0087 | B102: ='21MBA221'!B102 -> BHOOMIKA BHAT | C102: 5 | E102: 2 | F102: 0 | H102: 5 | J102: 10 | K102: 3 | L102: 30 | M102: 25
A103: ='21MBA221'!A103 -> P18FW21M0088 | B103: ='21MBA221'!B103 -> SOUMYA GANAPATI HEGDE | C103: 1 | F103: 1 | G103: 1 | H103: 1 | J103: 9 | K103: 3 | L103: 41 | M103: 16
A104: ='21MBA221'!A104 -> P18FW21M0089 | B104: ='21MBA221'!B104 -> SHREEKRISHNA | D104: 2 | E104: 0 | F104: 1 | I104: 4 | J104: 5 | K104: 2 | L104: 30 | M104: 14
A105: ='21MBA221'!A105 -> P18FW21M0090 | B105: ='21MBA221'!B105 -> OLETI SAI SREENITHYA | C105: 5 | D105: 4 | E105: 3 | H105: 8 | J105: 3 | K105: 1 | L105: 26 | M105: 24
A106: ='21MBA221'!A106 -> P18FW21M0091 | B106: ='21MBA221'!B106 -> RAMANUJAM H J | C106: 1 | D106: 0 | E106: 2 | H106: 8 | I106: 2 | J106: 6 | K106: 1 | L106: 17 | M106: 20
A107: ='21MBA221'!A107 -> P18FW21M0092 | B107: ='21MBA221'!B107 -> CHAVI JAGADEESH | C107: 5 | D107: 0 | G107: 0 | H107: 1 | J107: 3 | K107: 5 | L107: 12 | M107: 14
A108: ='21MBA221'!A108 -> P18FW21M0093 | B108: ='21MBA221'!B108 -> DESAI JATIN ARUN | C108: 4 | D108: 2 | E108: 2 | H108: 4 | I108: 4 | K108: 1 | L108: 16 | M108: 17
A109: ='21MBA221'!A109 -> P18FW21M0094 | B109: ='21MBA221'!B109 -> MALLESH S | C109: 5 | D109: 1 | E109: 3 | H109: 10 | I109: 0 | L109: 20 | M109: 19
A110: ='21MBA221'!A110 -> P18FW21M0095 | B110: ='21MBA221'!B110 -> SRINIDHI K | C110: 5 | D110: 0 | E110: 2 | H110: 9 | J110: 7 | K110: 5 | L110: 32 | M110: 28
A111: ='21MBA221'!A111 -> P18FW21M0096 | B111: ='21MBA221'!B111 -> B SHASHANK | C111: 5 | D111: 3 | E111: 3 | F111: 0 | H111: 9 | I111: 2 | J111: 6 | L111: 37 | M111: 28
A112: ='21MBA221'!A112 -> P18FW21M0097 | B112: ='21MBA221'!B112 -> YOGASHREE C N | C112: 0 | D112: 3 | F112: 2 | I112: 9 | J112: 10 | K112: 4 | L112: 32 | M112: 28
A113: ='21MBA221'!A113 -> P18FW21M0098 | B113: ='21MBA221'!B113 -> CHARANA T U | C113: 0 | D113: 3 | E113: 3 | H113: 3 | J113: 5 | K113: 1 | L113: 30 | M113: 15
A114: ='21MBA221'!A114 -> P18FW21M0099 | B114: ='21MBA221'!B114 -> NAGARAJ GAJANAN HEGDE | C114: 5 | D114: 4 | E114: 0 | H114: 9 | I114: 7 | J114: 6 | K114: 2 | L114: 33 | M114: 33
A115: ='21MBA221'!A115 -> P18FW21M0100 | B115: ='21MBA221'!B115 -> NIKITHA J SHANBHOG | C115: 1 | E115: 3 | G115: 0 | H115: 3 | J115: 0 | K115: 4 | L115: 21 | M115: 11
A116: ='21MBA221'!A116 -> P18FW21M0101 | B116: ='21MBA221'!B116 -> YASHASWINI P | C116: 5 | D116: 4 | E116: 3 | H116: 1 | I116: 0 | K116: 1 | L116: 26 | M116: 14
A117: ='21MBA221'!A117 -> P18FW21M0102 | B117: ='21MBA221'!B117 -> TANUSHREE R | C117: 5 | D117: 2 | E117: 2 | H117: 1 | I117: 0 | L117: 7 | M117: 10
A118: ='21MBA221'!A118 -> P18FW21M0103 | B118: ='21MBA221'!B118 -> CHETHAN KUMAR V A | C118: 5 | D118: 0 | E118: 1 | H118: 3 | I118: 0 | J118: 2 | K118: 4 | L118: 25 | M118: 15
A119: ='21MBA221'!A119 -> P18FW21M0104 | B119: ='21MBA221'!B119 -> NAYAN KUMAR | C119: 5 | D119: 3 | G119: 1 | H119: 10 | I119: 7 | L119: 30 | M119: 26
A120: ='21MBA221'!A120 -> P18FW21M0105 | B120: ='21MBA221'!B120 -> DEEPAK GOPALAKRISHNAN | C120: 5 | D120: 1 | E120: 1 | H120: 0 | J120: 0 | K120: 4 | L120: 9 | M120: 11
A121: ='21MBA221'!A121 -> P18FW21M0106 | B121: ='21MBA221'!B121 -> POORNAPRAJNYA K MANGALVEDI | C121: 2 | D121: 2 | E121: 0 | H121: 1 | J121: 0 | K121: 2 | L121: 19 | M121: 7
A122: ='21MBA221'!A122 -> P18FW21M0107 | B122: ='21MBA221'!B122 -> JENISHA MENEZES | C122: 2 | E122: 2 | G122: 2 | I122: 2 | J122: 2 | K122: 2 | L122: 29 | M122: 12
A123: ='21MBA221'!A123 -> P18FW21M0108 | B123: ='21MBA221'!B123 -> SRAVANI SUNIL MHALSEKAR | C123: 5 | E123: 1 | F123: 0 | H123: 7 | I123: 10 | L123: 29 | M123: 23
A124: ='21MBA221'!A124 -> P18FW21M0109 | B124: ='21MBA221'!B124 -> M RITISH | C124: 1 | D124: 0 | G124: 2 | H124: 3 | I124: 4 | K124: 6 | L124: 17 | M124: 16
A125: ='21MBA221'!A125 -> P18FW21M0110 | B125: ='21MBA221'!B125 -> DHANYA S SHARMA | C125: 0 | D125: 1 | E125: 0 | I125: 3 | J125: 5 | K125: 3 | L125: 24 | M125: 12
A126: ='21MBA221'!A126 -> P18FW21M0111 | B126: ='21MBA221'!B126 -> PREETHAM D VARMA | D126: 0 | E126: 2 | G126: 1 | H126: 1 | J126: 0 | L126: 21 | M126: 4
A127: ='21MBA221'!A127 -> P18FW21M0112 | B127: ='21MBA221'!B127 -> DHIRAJKUMAR BELAVADI | C127: 0 | D127: 4 | E127: 2 | I127: 8 | J127: 3 | K127: 1 | L127: 27 | M127: 18
A128: ='21MBA221'!A128 -> P18FW21M0113 | B128: ='21MBA221'!B128 -> FERNANDES RICHA FLORINDA | C128: 2 | D128: 3 | E128: 3 | H128: 3 | I128: 0 | J128: 0 | L128: 22 | M128: 11
A129: ='21MBA221'!A129 -> P18FW21M0114 | B129: ='21MBA221'!B129 -> MEGHA U JOSHI | C129: 2 | E129: 2 | G129: 0 | I129: 10 | J129: 10 | K129: 9 | L129: 38 | M129: 33
A130: ='21MBA221'!A130 -> P18FW21M0116 | B130: ='21MBA221'!B130 -> DINAH NEETHA NORONHA | D130: 4 | E130: 4 | G130: 1 | I130: 6 | J130: 7 | K130: 6 | L130: 25 | M130: 28
A131: ='21MBA221'!A131 -> P18FW21M0117 | B131: ='21MBA221'!B131 -> HEGDE PAVANA GANAPATHI | C131: 2 | D131: 3 | E131: 3 | H131: 6 | I131: 2 | L131: 24 | M131: 16
A132: ='21MBA221'!A132 -> P18FW21M0118 | B132: ='21MBA221'!B132 -> LOYSTON CRASTA | C132: 1 | D132: 0 | E132: 0 | I132: 1 | J132: 7 | K132: 3 | L132: 25 | M132: 12
A133: ='21MBA221'!A133 -> P18FW21M0119 | B133: ='21MBA221'!B133 -> GANESH HEGDE | D133: 1 | E133: 1 | F133: 0 | I133: 6 | J133: 10 | K133: 2 | L133: 35 | M133: 20
A134: ='21MBA221'!A134 -> P18FW21M0120 | B134: ='21MBA221'!B134 -> ANUSHA PRAKASH | C134: 0 | E134: 3 | G134: 1 | I134: 5 | J134: 0 | K134: 3 | L134: 24 | M134: 12
A135: ='21MBA221'!A135 -> P18FW21M0121 | B135: ='21MBA221'!B135 -> ANJANA KSHIRASAGAR | C135: 3 | D135: 1 | E135: 4 | H135: 1 | J135: 1 | K135: 0 | L135: 21 | M135: 10
A136: ='21MBA221'!A136 -> P18FW21M0122 | B136: ='21MBA221'!B136 -> JAGADISH SHENOY R | C136: 0 | D136: 0 | E136: 2 | H136: 9 | J136: 8 | K136: 0 | L136: 26 | M136: 19
A137: ='21MBA221'!A137 -> P18FW21M0123 | B137: ='21MBA221'!B137 -> MADHAN KUMAR C S | C137: 5 | D137: 0 | E137: 0 | H137: 7 | J137: 7.5 | K137: 9 | L137: 38 | M137: 29
A138: ='21MBA221'!A138 -> P18FW21M0124 | B138: ='21MBA221'!B138 -> TEJAS H P | C138: 5 | D138: 0 | F138: 0 | H138: 0 | J138: 7 | K138: 1 | L138: 12 | M138: 13
A139: ='21MBA221'!A139 -> P18FW21M0125 | B139: ='21MBA221'!B139 -> DHANUSH K V | C139: 5 | D139: 1 | G139: 0 | I139: 0 | J139: 3 | K139: 0 | L139: 22 | M139: 9
A140: ='21MBA221'!A140 -> P18FW21M0126 | B140: ='21MBA221'!B140 -> SWAMI SAMIKSHA PUSHPARAJ | C140: 1 | D140: 1 | F140: 1 | H140: 0 | I140: 2 | J140: 2 | K140: 0 | L140: 26 | M140: 7
A141: ='21MBA221'!A141 -> P18FW21M0127 | B141: ='21MBA221'!B141 -> AMITH BHAT | C141: 4 | D141: 3 | E141: 3 | H141: 10 | I141: 9 | K141: 2 | L141: 31 | M141: 31
A142: ='21MBA221'!A142 -> P18FW21M0128 | B142: ='21MBA221'!B142 -> NUTHANA U | C142: 4 | D142: 2 | F142: 0 | H142: 2 | I142: 1 | J142: 5 | K142: 9 | L142: 35 | M142: 23
A143: ='21MBA221'!A143 -> P18FW21M0129 | B143: ='21MBA221'!B143 -> CHETAN SINGH M | C143: 1 | E143: 2 | G143: 0.5 | H143: 10 | I143: 3 | J143: 7 | K143: 1 | L143: 22 | M143: 25
A144: ='21MBA221'!A144 -> P18FW21M0130 | B144: ='21MBA221'!B144 -> KAUSTUBH LACHAPPANAVAR | C144: 5 | F144: 0 | G144: 0 | H144: 8 | I144: 8 | K144: 2 | L144: 31 | M144: 23
A145: ='21MBA221'!A145 -> P18FW21M0131 | B145: ='21MBA221'!B145 -> KSHITIJ P L | C145: 5 | D145: 4 | E145: 3 | H145: 5 | J145: 4 | L145: 25 | M145: =SUM(C145:K145) -> 21
A146: ='21MBA221'!A146 -> P18FW21M0132 | B146: ='21MBA221'!B146 -> BHUVANES P | C146: 5 | E146: 2 | F146: 1 | H146: 1 | J146: 5 | L146: 35 | M146: 14
A147: ='21MBA221'!A147 -> P18FW21M0133 | B147: ='21MBA221'!B147 -> NALASANI VARSHITHA | C147: 5 | D147: 4 | E147: 4 | H147: 0 | I147: 7 | J147: 10 | K147: 3 | L147: 30 | M147: 33
A148: ='21MBA221'!A148 -> P18FW21M0134 | B148: ='21MBA221'!B148 -> KOKILA K | C148: 5 | D148: 4 | E148: 4 | H148: 10 | J148: 6 | K148: 8 | L148: 34 | M148: 37
A149: ='21MBA221'!A149 -> P18FW21M0135 | B149: ='21MBA221'!B149 -> KOTHA KEERTHANA | C149: 5 | D149: 4 | F149: 3 | H149: 10 | J149: 9 | K149: 5 | L149: 28 | M149: 36
A150: ='21MBA221'!A150 -> P18FW21M0136 | B150: ='21MBA221'!B150 -> MUCHELI SUBBARAJU | D150: 3 | E150: 3 | F150: 1 | H150: 3 | J150: 4 | K150: 3 | L150: 25 | M150: 17
A151: ='21MBA221'!A151 -> P18FW21M0137 | B151: ='21MBA221'!B151 -> NANDAGOPAL B R | C151: 5 | D151: 0 | E151: 0 | H151: 1 | J151: 9 | K151: 6 | L151: 33 | M151: 21
A152: ='21MBA221'!A152 -> P18FW21M0138 | B152: ='21MBA221'!B152 -> VISHAL SHIVARAJ | C152: 5 | D152: 0 | E152: 0 | H152: 10 | I152: 5 | J152: 0 | K152: 2 | L152: 33 | M152: 22
A153: ='21MBA221'!A153 -> P18FW21M0139 | B153: ='21MBA221'!B153 -> SHASHI KUMAR R | C153: 5 | D153: 4 | E153: 4 | H153: 10 | J153: 8 | K153: 3 | L153: 35 | M153: 34
A154: ='21MBA221'!A154 -> P18FW21M0140 | B154: ='21MBA221'!B154 -> YASHWANTH R | D154: 5 | F154: 5 | G154: 4 | H154: 5 | I154: 10 | K154: 13 | L154: 29 | M154: 42
A155: ='21MBA221'!A155 -> P18FW21M0141 | B155: ='21MBA221'!B155 -> M M JABEZ | C155: 5 | D155: 3 | E155: 3 | I155: 2 | J155: 0 | L155: 13 | M155: 13
A156: ='21MBA221'!A156 -> P18FW21M0142 | B156: ='21MBA221'!B156 -> KALAVALA ABHISHTA | C156: 5 | D156: 4 | E156: 2 | H156: 10 | I156: 6 | K156: 9 | L156: 29 | M156: 36
A157: ='21MBA221'!A157 -> P18FW21M0143 | B157: ='21MBA221'!B157 -> SANKALP V | D157: 0 | E157: 2 | G157: 0 | H157: 6 | J157: 0 | L157: 10 | M157: 8
A158: ='21MBA221'!A158 -> P18FW21M0144 | B158: ='21MBA221'!B158 -> NAVEEN C | C158: 5 | D158: 0 | G158: 2 | H158: 8 | J158: 9 | K158: 9 | L158: 34 | M158: 33
A159: ='21MBA221'!A159 -> P18FW21M0145 | B159: ='21MBA221'!B159 -> PAVAN KUMAR M | C159: 5 | D159: 3 | E159: 0 | H159: 9 | J159: 3 | K159: 7 | L159: 22 | M159: 27
A160: ='21MBA221'!A160 -> P18FW21M0146 | B160: ='21MBA221'!B160 -> KAPARTHI BHAVANA | C160: 5 | D160: 4 | E160: 3 | H160: 9 | J160: 10 | K160: 6 | L160: 23 | M160: 37
A161: ='21MBA221'!A161 -> P18FW21M0147 | B161: ='21MBA221'!B161 -> MANOJ N S | C161: 0 | D161: 0 | E161: 1 | G161: 1 | I161: 6 | J161: 4.5 | L161: 23 | M161: 13
A162: ='21MBA221'!A162 -> P18FW21M0149 | B162: ='21MBA221'!B162 -> HEMA S | C162: 5 | D162: 4 | E162: 1 | I162: 10 | J162: 4 | K162: 5 | L162: 29 | M162: 29
A163: ='21MBA221'!A163 -> P18FW21M0150 | B163: ='21MBA221'!B163 -> MADHUSUDAN G | C163: 5 | D163: 0 | E163: 0 | H163: 9 | I163: 10 | K163: 6 | L163: 25 | M163: 30
A164: ='21MBA221'!A164 -> P18FW21M0151 | B164: ='21MBA221'!B164 -> ANNASAGARAM RAGHAVENDRA | C164: 2 | D164: 1 | E164: 2 | H164: 3 | J164: 1 | K164: 4 | L164: 8 | M164: 13
A165: ='21MBA221'!A165 -> P18FW21M0152 | B165: ='21MBA221'!B165 -> SYED MUSSAVEERULLA | C165: 5 | D165: 3 | E165: 2 | H165: 3 | J165: 0 | K165: 7 | L165: 27 | M165: 20
A166: ='21MBA221'!A166 -> P18FW21M0153 | B166: ='21MBA221'!B166 -> SYED SAMEER | C166: 5 | E166: 2 | F166: 1 | H166: 7 | I166: 2 | J166: 0 | L166: 22 | M166: 17
A167: ='21MBA221'!A167 -> P18FW21M0154 | B167: ='21MBA221'!B167 -> RAMANABOINA ANAND KUMAR | C167: 5 | D167: 3 | E167: 4 | I167: 10 | J167: 10 | K167: 6 | L167: 40 | M167: 38
A168: ='21MBA221'!A168 -> P18FW21M0155 | B168: ='21MBA221'!B168 -> SHIVAM GANAPATI ANVEKAR | C168: 0 | D168: 0 | F168: 0 | I168: 3 | J168: 1 | K168: 3 | L168: 27 | M168: 7
A169: ='21MBA221'!A169 -> P18FW21M0156 | B169: ='21MBA221'!B169 -> SHUBHAM SINGH | D169: 3 | E169: 3 | G169: 0 | H169: 0 | J169: 8 | K169: 1 | L169: 21 | M169: 15
A170: ='21MBA221'!A170 -> P18FW21M0157 | B170: ='21MBA221'!B170 -> GURU VARUN G | C170: 3 | E170: 0 | G170: 3 | I170: 1 | J170: 3 | K170: 1 | L170: 19 | M170: 11
A171: ='21MBA221'!A171 -> P18FW21M0158 | B171: ='21MBA221'!B171 -> ABHIJEETH MASHETTY | C171: 5 | D171: 3 | E171: 2 | I171: 9 | J171: 10 | K171: 4 | L171: 26 | M171: 33
A172: ='21MBA221'!A172 -> P18FW21M0159 | B172: ='21MBA221'!B172 -> PRANITH KUMAR S | D172: 4 | E172: 1 | G172: 0 | I172: 0 | J172: 8 | K172: 0 | L172: 27 | M172: 13
A173: ='21MBA221'!A173 -> P18FW21M0160 | B173: ='21MBA221'!B173 -> LIKITHA A | C173: 5 | D173: 3 | E173: 1 | H173: 0 | I173: 8 | J173: 8.5 | K173: 3.5 | L173: 26 | M173: 29
A174: ='21MBA221'!A174 -> P18FW21M0161 | B174: ='21MBA221'!B174 -> NAVEEN SETTY N A | C174: 3 | D174: 3 | E174: 2 | H174: 1 | I174: 5 | J174: 8 | K174: 9 | L174: 42 | M174: 31
A175: ='21MBA221'!A175 -> P18FW21M0162 | B175: ='21MBA221'!B175 -> REHAN FAISAL QADRI | C175: 5 | E175: 3 | F175: 0 | H175: 9 | I175: 0 | J175: 2 | K175: 10 | L175: 30 | M175: 29
A176: ='21MBA221'!A176 -> P18FW21M0163 | B176: ='21MBA221'!B176 -> SMITHA M | C176: 5 | D176: 3 | G176: 0 | H176: 10 | I176: 6 | K176: 8 | L176: 35 | M176: 32
A177: ='21MBA221'!A177 -> P18FW21M0164 | B177: ='21MBA221'!B177 -> ANIRUDH K | C177: 0 | D177: 0 | E177: 0 | H177: 1 | J177: 5 | K177: 10 | L177: 13 | M177: 16
A178: ='21MBA221'!A178 -> P18FW21M0165 | B178: ='21MBA221'!B178 -> SALMAN FAISAL QADRI | C178: 2 | D178: 3 | E178: 3 | H178: 3 | J178: 2 | K178: 4 | L178: 22 | M178: 17
A179: ='21MBA221'!A179 -> P18FW21M0166 | B179: ='21MBA221'!B179 -> RAVISH RAMACHANDRA HEGDE | C179: 5 | D179: 2 | E179: 2 | H179: 10 | J179: 5 | K179: 5 | L179: 20 | M179: 29
A180: ='21MBA221'!A180 -> P18FW21M0167 | B180: ='21MBA221'!B180 -> POOJA VALLUR | C180: 5 | D180: 0 | E180: 0 | H180: 8 | I180: 7 | J180: 3 | K180: 9 | L180: 39 | M180: 32
A181: ='21MBA221'!A181 -> P18FW21M0169 | B181: ='21MBA221'!B181 -> MAHANTH GOWDA K C | C181: 5 | D181: 3 | E181: 0 | H181: 8 | J181: 7 | K181: 7 | L181: 40 | M181: 30
A182: ='21MBA221'!A182 -> P18FW21M0170 | B182: ='21MBA221'!B182 -> BHUPALI SAURABH PRAKASH | C182: 1 | E182: 2 | F182: 1 | I182: 7 | J182: 8 | K182: 4 | L182: 27 | M182: 23
A183: ='21MBA221'!A183 -> P18FW21M0171 | B183: ='21MBA221'!B183 -> SYED RAIHAN | C183: 3 | D183: 3 | E183: 3 | H183: 3 | J183: 2 | L183: 26 | M183: 14
A184: ='21MBA221'!A184 -> P18FW21M0172 | B184: ='21MBA221'!B184 -> SHRI HARI L | C184: 5 | D184: 3 | E184: 3 | H184: 2 | J184: 2.5 | K184: 0.5 | L184: 23 | M184: 16
A185: ='21MBA221'!A185 -> P18FW21M0173 | B185: ='21MBA221'!B185 -> SNEHA U | C185: 5 | D185: 4 | F185: 3 | I185: 6 | J185: 6 | L185: 15 | M185: 24
A186: ='21MBA221'!A186 -> P18FW21M0174 | B186: ='21MBA221'!B186 -> SHAH VINIT SIDDHARTH | C186: 5 | D186: 1 | E186: 2 | H186: 5 | J186: 4 | K186: 8 | L186: 22 | M186: 25
A187: ='21MBA221'!A187 -> P18FW21M0175 | B187: ='21MBA221'!B187 -> NAYANA G C | C187: 4 | E187: 0 | F187: 0 | G187: 3 | I187: 10 | J187: 1 | K187: 6 | L187: 18 | M187: 24
A188: ='21MBA221'!A188 -> P18FW21M0176 | B188: ='21MBA221'!B188 -> D SURIYA PRIYASREE | D188: 3 | E188: 3 | F188: 3 | I188: 6 | J188: 10 | L188: 25 | M188: 25
A189: ='21MBA221'!A189 -> P18FW21M0177 | B189: ='21MBA221'!B189 -> SATHYA B NAYAKA | C189: 0 | E189: 2 | G189: 1 | I189: 3 | J189: 0 | L189: 20 | M189: 6
A190: ='21MBA221'!A190 -> P18FW21M0178 | B190: ='21MBA221'!B190 -> NEHA H V | D190: 3 | E190: 3 | F190: 2 | H190: 0 | I190: 0 | L190: 17 | M190: 8
A191: ='21MBA221'!A191 -> P18FW21M0179 | B191: ='21MBA221'!B191 -> SAAHIL SRIKANT KULLOLI | C191: 5 | E191: 0 | F191: 0 | I191: 7 | J191: 9 | K191: 6 | L191: 29 | M191: 27
A192: ='21MBA221'!A192 -> P18FW21M0180 | B192: ='21MBA221'!B192 -> SIMRANJIT KAUR | C192: 5 | D192: 2 | E192: 2 | H192: 2 | J192: 10 | K192: 8 | L192: 22 | M192: 29
A193: ='21MBA221'!A193 -> P18FW21M0181 | B193: ='21MBA221'!B193 -> NIRANJAN JANARDHAN HEGDE | C193: 1 | D193: 3 | G193: 2 | H193: 3 | J193: 2 | K193: 1 | L193: 11 | M193: 12
A194: ='21MBA221'!A194 -> P18FW21M0182 | B194: ='21MBA221'!B194 -> TEJAS N | M194: 0
A195: ='21MBA221'!A195 -> P18FW21M0184 | B195: ='21MBA221'!B195 -> AGAMYA A KINHAL | C195: 0 | E195: 1 | F195: 0 | H195: 0 | J195: 2 | L195: 13 | M195: 3
A196: No. of students attended | C196: =COUNTA(C16:C195) -> 163 | D196: 132 | E196: 131 | F196: 59 | G196: 55 | H196: 134 | I196: 102 | J196: 142 | K196: 153 | L196: =COUNT(L16:L195) -> 178
A197: No. of Students attained CO | C197: =COUNTIF(C16:C195,">"&C15) -> 123 | D197: 38 | E197: 14 | F197: 5 | G197: 2 | H197: 90 | I197: 69 | J197: 65 | K197: 53 | L197: 153
A198: CO Attainment percentage | C198: =ROUND(C197*100/C196,0) -> 75 | D198: 29 | E198: 11 | F198: 8 | G198: 4 | H198: 67 | I198: 68 | J198: 46 | K198: 35 | L198: =ROUND(L197*100/L196,0) -> 86
A199: Level | C199: =IF(C198>=80,"3",IF(C198>=70,"2",IF(C198>=60,"1","-"))) -> 2 | D199: =IF(D198>=80,"3",IF(D198>=70,"2",IF(D198>=60,"1","-"))) -> - | E199: - | F199: - | G199: - | H199: 1 | I199: 1 | J199: - | K199: - | L199: 3
C200: CO1 | D200: CO5 | E200: CO6 | F200: CO3 | G200: CO2 | H200: CO4 | I200: CO1 | J200: CO6 | K200: CO4
H201: Internals | J201: Final CO Attainment
... 6 more rows

Sheet 21MBA321-Attainment
A1: ='21MBA321'!A5:M5 -> Financial Management
D3: Internals | F3: Final CO Attainment
C4: CO | D4: Percentage | E4: Level | F4: Percentage | G4: Level
C5: CO1 | D5: ='21MBA321'!H203 -> 55 | E5: ='21MBA321'!I203 -> - | F5: ='21MBA321'!J203 -> 77 | G5: ='21MBA321'!K203 -> 2
C6: CO2 | D6: ='21MBA321'!H204 -> 46 | E6: ='21MBA321'!I204 -> - | F6: ='21MBA321'!J204 -> 74 | G6: ='21MBA321'!K204 -> 2
C7: CO3 | D7: ='21MBA321'!H205 -> 37 | E7: ='21MBA321'!I205 -> - | F7: ='21MBA321'!J205 -> 71 | G7: ='21MBA321'!K205 -> 2
C8: CO4 | D8: ='21MBA321'!H206 -> 38 | E8: ='21MBA321'!I206 -> - | F8: ='21MBA321'!J206 -> 72 | G8: ='21MBA321'!K206 -> 2
C9: CO5 | D9: ='21MBA321'!H207 -> 29 | E9: ='21MBA321'!I207 -> - | F9: ='21MBA321'!J207 -> 69 | G9: ='21MBA321'!K207 -> 1
C11: PO1 | D11: PO2 | E11: PO3 | F11: PO4 | G11: PO5 | H11: PO6 | I11: PO7 | J11: PO8 | K11: PO9 | L11: PO10 | M11: PO11
B12: C01 | C12: 3 | D12: 2 | E12: 1 | G12: 1 | H12: 1 | I12: 2 | J12: 2 | K12: 2 | M12: 1
B13: C02 | C13: 3 | D13: 1 | F13: 1 | G13: 2 | H13: 2 | I13: 1 | J13: 3 | K13: 2 | L13: 1 | M13: 2
B14: C03 | C14: 3 | D14: 2 | E14: 1 | F14: 2 | G14: 1 | H14: 2 | I14: 1 | J14: 3 | K14: 1 | L14: 1 | M14: 1
B15: C04 | C15: 3 | D15: 1 | F15: 1 | H15: 2 | I15: 1 | J15: 2 | K15: 2 | L15: 1 | M15: 2
B16: C05 | C16: 3 | D16: 1 | F16: 1 | G16: 1 | I16: 1 | J16: 2 | K16: 1 | M16: 1
C17: LEVEL | D17: 3-Substantial | E17: 2-Moderate | F17: 1-Slight | G17: "-" No Co-relation
A20: Final CO | C20: PO1 | D20: PO2 | E20: PO3 | F20: PO4 | G20: PO5 | H20: PO6 | I20: PO7 | J20: PO8 | K20: PO9 | L20: PO10 | M20: PO11
A21: ATTAINMENT
A22: C01 | B22: =F5 -> 76.78 | C22: =C12*$B$22/3 -> 76.78 | D22: 51.18 | E22: 25.59 | F22: 0.00 | G22: 25.59 | H22: 25.59 | I22: 51.18 | J22: 51.18 | K22: 51.18 | L22: 0.00 | M22: 25.59
A23: C02 | B23: =F6 -> 74.08 | C23: =C13*$B$23/3 -> 74.08 | D23: 24.69 | E23: 0.00 | F23: 24.69 | G23: 49.38 | H23: 49.38 | I23: 24.69 | J23: 74.08 | K23: 49.38 | L23: 24.69 | M23: 49.38
A24: C03 | B24: =F7 -> 71.30 | C24: =C14*$B$24/3 -> 71.30 | D24: 47.53 | E24: 23.77 | F24: 47.53 | G24: 23.77 | H24: 47.53 | I24: 23.77 | J24: 71.30 | K24: 23.77 | L24: 23.77 | M24: 23.77
A25: C04 | B25: =F8 -> 71.50 | C25: =C15*$B$25/3 -> 71.50 | D25: 23.83 | E25: 0.00 | F25: 23.83 | G25: 0.00 | H25: 47.67 | I25: 23.83 | J25: 47.67 | K25: 47.67 | L25: 23.83 | M25: 47.67
A26: C05 | B26: =F9 -> 68.90 | C26: =C16*$B$26/3 -> 68.90 | D26: 22.97 | E26: 0.00 | F26: 22.97 | G26: 22.97 | H26: 0.00 | I26: 22.97 | J26: 45.93 | K26: 22.97 | L26: 0.00 | M26: 22.97
A27: Average | C27: =AVERAGE(C22:C26) -> 72.51 | D27: 34.04 | E27: 9.87 | F27: 23.81 | G27: 24.34 | H27: 34.04 | I27: 29.29 | J27: 58.03 | K27: 38.99 | L27: 14.46 | M27: 33.88

Sheet 21MBA222
A1: RV Institute of Management
A2: Autonomous Institution Affiliated to BCU
A3: MBA Programme II Semester
A4: Course Outcome Report
A5: Entrepreneurship and Start Up Management
A6: Name of the Course Teacher: | I6: Sub. Code: | L6: 21MBA222
A7: Prof. Anitha BM D'Silva, Prof. Uma Sharma, Dr.Rashmi Shetty | J7: Sec: | L7: ABC
D8: Semester II
D9: Batch 2021-23
C11: Section A | H11: Section B | K11: Sec-C
A12: Question number | C12: 1 | D12: 2 | E12: 3 | F12: 4 | G12: 5 | H12: 6 | I12: 7 | J12: 8 | K12: 9 | L12: External Exam | M12: Mid Term Exam
A13: Course outcome | C13: CO3 | D13: CO5 | E13: CO1 | F13: CO3 | G13: CO2 | H13: CO2 | I13: CO3 | J13: CO4 | K13: CO3 | L13: Marks | M13: Marks
A14: Maximum marks | C14: 5 | D14: 5 | E14: 5 | F14: 5 | G14: 5 | H14: 10 | I14: 10 | J14: 10 | K14: 15 | L14: 50 | M14: 50
A15: Student Reg. No | B15: Student Name | C15: =C14*0.64 -> 3.2 | D15: =D14*0.64 -> 3.2 | E15: 3.2 | F15: 3.2 | G15: 3.2 | H15: 6.4 | I15: 6.4 | J15: 6.4 | K15: 9.6 | L15: =L14*0.357142 -> 18
A16: ='21MBA221'!A16 -> P18FW21M0001 | B16: ='21MBA221'!B16 -> VIPUL VILAS NAIK | E16: 4 | F16: 5 | G16: 4 | I16: 5 | J16: 6 | K16: 9 | L16: 35 | M16: =SUM(C16:K16) -> 33
A17: ='21MBA221'!A17 -> P18FW21M0002 | B17: ='21MBA221'!B17 -> M PRANEETH KUMAR REDDY | E17: 0 | F17: 5 | G17: 5 | H17: 3 | I17: 4 | K17: 5 | L17: 30 | M17: =SUM(C17:K17) -> 22
A18: ='21MBA221'!A18 -> P18FW21M0003 | B18: ='21MBA221'!B18 -> NIKHIL S ANJANALLI | C18: 5 | E18: 4 | F18: 2 | I18: 9 | J18: 7 | K18: 8 | L18: 36 | M18: 35
A19: ='21MBA221'!A19 -> P18FW21M0004 | B19: ='21MBA221'!B19 -> KARTHIK P SHETTY | C19: 4 | D19: 5 | G19: 5 | H19: 8 | J19: 9 | K19: 4 | L19: 32 | M19: 35
A20: ='21MBA221'!A20 -> P18FW21M0005 | B20: ='21MBA221'!B20 -> AMITH C | D20: 3 | F20: 5 | G20: 5 | H20: 2 | I20: 0 | K20: 9 | L20: 32 | M20: 24
A21: ='21MBA221'!A21 -> P18FW21M0006 | B21: ='21MBA221'!B21 -> AISHWARYA G | C21: 0 | F21: 3 | G21: 3.5 | H21: 1 | J21: 6 | K21: 4.5 | L21: 30 | M21: 18
A22: ='21MBA221'!A22 -> P18FW21M0007 | B22: ='21MBA221'!B22 -> AKANKSH P | D22: 3 | E22: 3 | F22: 5 | H22: 7 | J22: 2 | K22: 11 | L22: 38 | M22: 31
A23: ='21MBA221'!A23 -> P18FW21M0008 | B23: ='21MBA221'!B23 -> SACHITH B K | E23: 1 | F23: 0 | G23: 0 | H23: 2 | I23: 9 | K23: 8 | L23: 36 | M23: 20
A24: ='21MBA221'!A24 -> P18FW21M0009 | B24: ='21MBA221'!B24 -> CHAITANYA KAMATAGI B | C24: 4.5 | E24: 4.5 | G24: 4 | H24: 8 | I24: 8 | K24: 14 | L24: 40 | M24: 43
A25: ='21MBA221'!A25 -> P18FW21M0010 | B25: ='21MBA221'!B25 -> AKASH RACHAPPA KHANAGAVI | C25: 4 | E25: 0 | F25: 3 | H25: 7 | I25: 8.5 | K25: 9 | L25: 35 | M25: 32
A26: ='21MBA221'!A26 -> P18FW21M0011 | B26: ='21MBA221'!B26 -> SOURAV SADANAND SWAR | C26: 5 | D26: 4 | G26: 5 | H26: 0 | I26: 1 | K26: 6 | L26: 27 | M26: 21
A27: ='21MBA221'!A27 -> P18FW21M0012 | B27: ='21MBA221'!B27 -> NISHANTH KRISHNA | C27: 5 | E27: 5 | F27: 5 | I27: 8 | J27: 6 | K27: 12 | L27: 31 | M27: 41
A28: ='21MBA221'!A28 -> P18FW21M0013 | B28: ='21MBA221'!B28 -> MEHUL V BHASKAR | D28: 1 | E28: 3 | F28: 4 | I28: 7 | J28: 7 | K28: 8 | L28: 29 | M28: 30
A29: ='21MBA221'!A29 -> P18FW21M0014 | B29: ='21MBA221'!B29 -> SHUBHAM RAJENDRA REVANKAR | C29: 5 | D29: 0 | G29: 4 | H29: 7 | I29: 7 | K29: 9 | L29: 32 | M29: 32
A30: ='21MBA221'!A30 -> P18FW21M0015 | B30: ='21MBA221'!B30 -> SHETTY TRUPTHI CHANDRAHAS | C30: 4.5 | D30: 4 | E30: 4 | H30: 0 | I30: 6 | K30: 11 | L30: 39 | M30: 30
A31: ='21MBA221'!A31 -> P18FW21M0016 | B31: ='21MBA221'!B31 -> SHEEBAL M S | C31: 2 | E31: 0 | F31: 0 | H31: 8 | I31: 9 | K31: 12 | L31: 30 | M31: 31
A32: ='21MBA221'!A32 -> P18FW21M0017 | B32: ='21MBA221'!B32 -> VISHNU KUMAR | D32: 2 | F32: 2 | G32: 0 | H32: 0 | I32: 9 | K32: 11 | L32: 35 | M32: 24
A33: ='21MBA221'!A33 -> P18FW21M0018 | B33: ='21MBA221'!B33 -> HARSHITHA SRINIVAS | C33: 4 | F33: 3 | G33: 4 | H33: 9.5 | I33: 9 | K33: 13.5 | L33: 42 | M33: 43
A34: ='21MBA221'!A34 -> P18FW21M0019 | B34: ='21MBA221'!B34 -> SAGI SAMPI | D34: 4.5 | E34: 4 | F34: 4.5 | H34: 8.5 | J34: 9.5 | K34: 12 | L34: 42 | M34: 43
A35: ='21MBA221'!A35 -> P18FW21M0020 | B35: ='21MBA221'!B35 -> PAULOMEE BARUAH | C35: 4 | D35: 4 | F35: 4 | H35: 2 | J35: 1 | K35: 12 | L35: 39 | M35: 27
A36: ='21MBA221'!A36 -> P18FW21M0021 | B36: ='21MBA221'!B36 -> NEETHA KAMATH | C36: 4 | E36: 4 | F36: 4 | H36: 5 | J36: 6 | K36: 9 | L36: 34 | M36: 32
A37: ='21MBA221'!A37 -> P18FW21M0022 | B37: ='21MBA221'!B37 -> ADITYA UDAY HEGDE | C37: 4 | F37: 4 | G37: 4 | H37: 3 | I37: 9 | K37: 9 | L37: 36 | M37: 33
A38: ='21MBA221'!A38 -> P18FW21M0023 | B38: ='21MBA221'!B38 -> SHREYAS G A | C38: 3 | E38: 4 | G38: 3 | H38: 8 | J38: 6 | K38: 11 | L38: 39 | M38: 35
A39: ='21MBA221'!A39 -> P18FW21M0024 | B39: ='21MBA221'!B39 -> SRUJANA S | C39: 4 | D39: 4.5 | G39: 4 | I39: 8 | J39: 7 | K39: 13 | L39: 41 | M39: 41
A40: ='21MBA221'!A40 -> P18FW21M0025 | B40: ='21MBA221'!B40 -> PRAJWAL S N | C40: 3.5 | F40: 4 | G40: 4 | I40: 8.5 | J40: 7 | K40: 11 | L40: 36 | M40: 38
A41: ='21MBA221'!A41 -> P18FW21M0026 | B41: ='21MBA221'!B41 -> SUCHITRA G | C41: 4 | F41: 1 | G41: 3 | H41: 3 | J41: 3 | K41: 8 | L41: 32 | M41: 22
A42: ='21MBA221'!A42 -> P18FW21M0027 | B42: ='21MBA221'!B42 -> SANKET SURESH SHIRSAT | C42: 5 | E42: 3 | F42: 4 | H42: 7 | I42: 8 | K42: 12 | L42: 34 | M42: 39
A43: ='21MBA221'!A43 -> P18FW21M0028 | B43: ='21MBA221'!B43 -> ANIKET SANJAY REVANKAR | D43: 4 | E43: 4 | G43: 4 | H43: 3 | I43: 8 | K43: 8 | L43: 38 | M43: 31
A44: ='21MBA221'!A44 -> P18FW21M0029 | B44: ='21MBA221'!B44 -> AKHILA H | C44: 4 | E44: 3 | F44: 5 | H44: 3 | I44: 1 | K44: 10 | L44: 29 | M44: 26
A45: ='21MBA221'!A45 -> P18FW21M0030 | B45: ='21MBA221'!B45 -> M LUQMAN NAWAZ | C45: 4 | E45: 4 | G45: 4.5 | H45: 8 | I45: 8.5 | K45: 14 | L45: 41 | M45: 43
A46: ='21MBA221'!A46 -> P18FW21M0031 | B46: ='21MBA221'!B46 -> MADHURA A | C46: 4 | F46: 4.5 | G46: 4.5 | H46: 9 | I46: 8 | K46: 13 | L46: 39 | M46: 43
A47: ='21MBA221'!A47 -> P18FW21M0032 | B47: ='21MBA221'!B47 -> H V SHREEVATSA | C47: 4 | D47: 4.5 | E47: 4 | H47: 8.5 | J47: 9 | K47: 6 | L47: 32 | M47: 36
A48: ='21MBA221'!A48 -> P18FW21M0033 | B48: ='21MBA221'!B48 -> LILIMA DASH | C48: 4 | F48: 3 | G48: 4 | H48: 6 | I48: 8 | K48: 10 | L48: 28 | M48: 35
A49: ='21MBA221'!A49 -> P18FW21M0034 | B49: ='21MBA221'!B49 -> KUMAR ASHUTOSH | C49: 4 | D49: 0 | E49: 0 | H49: 7.5 | I49: 8 | K49: 2 | L49: 28 | M49: 22
A50: ='21MBA221'!A50 -> P18FW21M0035 | B50: ='21MBA221'!B50 -> RAHUL S SANGOLLI | C50: 4 | E50: 4.5 | F50: 4 | H50: 5 | I50: 6 | K50: 7 | L50: 29 | M50: 31
A51: ='21MBA221'!A51 -> P18FW21M0036 | B51: ='21MBA221'!B51 -> GIRISH N NASHI | C51: 4 | D51: 0 | G51: 4 | H51: 8 | I51: 8 | K51: 10 | L51: 32 | M51: 34
A52: ='21MBA221'!A52 -> P18FW21M0037 | B52: ='21MBA221'!B52 -> ANKITA GAJANAN NAIK | C52: 4 | D52: 0 | F52: 4 | H52: 7 | I52: 0 | K52: 11 | L52: 27 | M52: 26
A53: ='21MBA221'!A53 -> P18FW21M0038 | B53: ='21MBA221'!B53 -> GURUBASAVARAJ K M | C53: 4.5 | F53: 3.5 | G53: 4.5 | H53: 8 | I53: 8.5 | K53: 12 | L53: 37 | M53: 41
A54: ='21MBA221'!A54 -> P18FW21M0039 | B54: ='21MBA221'!B54 -> ANANYA P HEGDE | E54: 3 | F54: 0 | G54: 0 | H54: 5 | I54: 7 | K54: 8 | L54: 28 | M54: 23
A55: ='21MBA221'!A55 -> P18FW21M0040 | B55: ='21MBA221'!B55 -> NIVEDITHA K SWAMY | E55: 0 | F55: 2 | G55: 5 | H55: 7 | J55: 6 | K55: 11 | L55: 38 | M55: 31
A56: ='21MBA221'!A56 -> P18FW21M0041 | B56: ='21MBA221'!B56 -> LIKHITHA L | C56: 4 | F56: 4 | G56: 4.5 | H56: 6 | I56: 3 | K56: 13 | L56: 31 | M56: 35
A57: ='21MBA221'!A57 -> P18FW21M0042 | B57: ='21MBA221'!B57 -> RAHUL RAM BHAT | C57: 3 | E57: 0 | G57: 2 | H57: 8 | I57: 9 | K57: 14 | L57: 35 | M57: 36
A58: ='21MBA221'!A58 -> P18FW21M0043 | B58: ='21MBA221'!B58 -> AMIT KAMADOLLISHETTARU | C58: 3.5 | D58: 4.5 | F58: 4 | H58: 7 | I58: 8.5 | K58: 12 | L58: 32 | M58: 40
A59: ='21MBA221'!A59 -> P18FW21M0044 | B59: ='21MBA221'!B59 -> POOJARANI TALAWAR | C59: 3 | F59: 4 | G59: 4.5 | H59: 8 | I59: 9 | K59: 6 | L59: 30 | M59: 35
A60: ='21MBA221'!A60 -> P18FW21M0045 | B60: ='21MBA221'!B60 -> ABHITHA K | C60: 4.5 | E60: 4.5 | G60: 4 | H60: 6 | I60: 0 | K60: 10 | L60: 26 | M60: 29
A61: ='21MBA221'!A61 -> P18FW21M0046 | B61: ='21MBA221'!B61 -> S SHREYAS | C61: 5 | E61: 5 | F61: 3 | H61: 5 | J61: 6 | K61: 7 | L61: 20 | M61: 31
A62: ='21MBA221'!A62 -> P18FW21M0047 | B62: ='21MBA221'!B62 -> ABHISHEK SHENOY | C62: 4 | E62: 4 | G62: 5 | H62: 8 | J62: 8 | K62: 7 | L62: 27 | M62: 36
A63: ='21MBA221'!A63 -> P18FW21M0048 | B63: ='21MBA221'!B63 -> B S SUSHEN | C63: 4 | F63: 2 | G63: 5 | H63: 7 | J63: 1 | K63: 13 | L63: 37 | M63: 32
A64: ='21MBA221'!A64 -> P18FW21M0049 | B64: ='21MBA221'!B64 -> PRAJWALA H | C64: 4 | D64: 3 | F64: 5 | H64: 7 | J64: 7 | K64: 12 | L64: 34 | M64: 38
A65: ='21MBA221'!A65 -> P18FW21M0050 | B65: ='21MBA221'!B65 -> VAISHNAVI N | D65: 5 | F65: 3 | G65: 5 | I65: 7 | J65: 7 | K65: 11 | L65: 37 | M65: 38
A66: ='21MBA221'!A66 -> P18FW21M0051 | B66: ='21MBA221'!B66 -> DEEPAK GIRISH KALYANI | C66: 4.5 | D66: 5 | E66: 4.5 | H66: 8 | J66: 8 | K66: 13 | L66: 39 | M66: 43
A67: ='21MBA221'!A67 -> P18FW21M0052 | B67: ='21MBA221'!B67 -> ISAAC JESSE K | C67: 4 | F67: 4 | G67: 5 | H67: 0 | I67: 0 | K67: 12 | L67: 23 | M67: 25
A68: ='21MBA221'!A68 -> P18FW21M0053 | B68: ='21MBA221'!B68 -> SUPRIYA GOVIND BELSARE | C68: 4 | E68: 4 | G68: 4 | H68: 6 | J68: 0 | K68: 11 | L68: 30 | M68: 29
A69: ='21MBA221'!A69 -> P18FW21M0054 | B69: ='21MBA221'!B69 -> VINAYAK RAO GAIKWAD K | C69: 3 | F69: 4 | G69: 4 | H69: 0 | I69: 0 | K69: 11 | L69: 26 | M69: 22
A70: ='21MBA221'!A70 -> P18FW21M0055 | B70: ='21MBA221'!B70 -> SUTOPA DEB | C70: 4 | D70: 0 | E70: 0 | H70: 3 | I70: 8 | K70: 10 | L70: 35 | M70: 25
A71: ='21MBA221'!A71 -> P18FW21M0056 | B71: ='21MBA221'!B71 -> M S SUKRUT | C71: 5 | D71: 5 | E71: 0 | H71: 4 | J71: 0 | K71: 10 | L71: AB | M71: 24
A72: ='21MBA221'!A72 -> P18FW21M0057 | B72: ='21MBA221'!B72 -> BHASKARA PRABHU | C72: 0 | D72: 4 | F72: 4 | H72: 8 | I72: 7 | K72: 7.5 | L72: 39 | M72: 31
A73: ='21MBA221'!A73 -> P18FW21M0058 | B73: ='21MBA221'!B73 -> PRAKASH SHIVAKUMAR | C73: 0 | D73: 4 | F73: 4 | H73: 5 | I73: 5 | K73: 12 | L73: 32 | M73: 30
A74: ='21MBA221'!A74 -> P18FW21M0059 | B74: ='21MBA221'!B74 -> AMOGHA Y G | C74: 5 | D74: 1 | E74: 0 | H74: 0 | J74: 3 | K74: 11 | L74: 29 | M74: 20
A75: ='21MBA221'!A75 -> P18FW21M0060 | B75: ='21MBA221'!B75 -> BHARATH K S | C75: 5 | F75: 1 | G75: 5 | I75: 2 | J75: 6 | K75: 11 | L75: 33 | M75: 30
A76: ='21MBA221'!A76 -> P18FW21M0061 | B76: ='21MBA221'!B76 -> AKANKSH K G | C76: 0 | D76: 2 | F76: 2.5 | H76: 8 | I76: 8 | K76: 15 | L76: 34 | M76: 36
A77: ='21MBA221'!A77 -> P18FW21M0062 | B77: ='21MBA221'!B77 -> BERNARD FERNANDES | D77: 0 | E77: 0 | G77: 1 | H77: 5 | I77: 7 | K77: 9 | L77: 29 | M77: 22
A78: ='21MBA221'!A78 -> P18FW21M0063 | B78: ='21MBA221'!B78 -> AISHWARYA P | C78: 3 | E78: 4 | G78: 0 | I78: 6 | J78: 4 | K78: 7 | L78: 29 | M78: 24
A79: ='21MBA221'!A79 -> P18FW21M0064 | B79: ='21MBA221'!B79 -> VIOLA PINTO | C79: 3.5 | D79: 2 | F79: 4 | H79: 7 | I79: 8.5 | K79: 13 | L79: 37 | M79: 38
A80: ='21MBA221'!A80 -> P18FW21M0065 | B80: ='21MBA221'!B80 -> VARSHA | C80: 0 | D80: 0 | F80: 4 | H80: 5 | I80: 6 | K80: 11 | L80: 34 | M80: 26
A81: ='21MBA221'!A81 -> P18FW21M0066 | B81: ='21MBA221'!B81 -> CHIDRI BALAJI | C81: 3 | E81: 4 | G81: 4 | I81: 4 | J81: 5 | K81: 10 | L81: 35 | M81: =SUM(C81:K81) -> 30
A82: ='21MBA221'!A82 -> P18FW21M0067 | B82: ='21MBA221'!B82 -> GAGANDEEP V N | C82: 0 | D82: 2 | F82: 1 | H82: 7 | I82: 8 | K82: 10 | L82: 35 | M82: 28
A83: ='21MBA221'!A83 -> P18FW21M0068 | B83: ='21MBA221'!B83 -> PRAJWALA | C83: 4 | F83: 5 | G83: 4 | I83: 7.5 | J83: 8 | K83: 12 | L83: 39 | M83: 41
A84: ='21MBA221'!A84 -> P18FW21M0069 | B84: ='21MBA221'!B84 -> POORNIMA L | C84: 2 | D84: 4 | F84: 3.5 | H84: 8 | I84: 8 | K84: 12 | L84: 37 | M84: 38
A85: ='21MBA221'!A85 -> P18FW21M0070 | B85: ='21MBA221'!B85 -> SHUBIKSHA S | C85: 5 | D85: 4 | G85: 5 | H85: 6 | J85: 1 | K85: 11 | L85: 34 | M85: 32
A86: ='21MBA221'!A86 -> P18FW21M0071 | B86: ='21MBA221'!B86 -> ANUSHA | C86: 4 | D86: 3.5 | F86: 4 | H86: 7 | I86: 4 | K86: 11 | L86: 35 | M86: 34
A87: ='21MBA221'!A87 -> P18FW21M0072 | B87: ='21MBA221'!B87 -> P T KIRTI | C87: 5 | E87: 4 | G87: 5 | H87: 0 | I87: 8 | K87: 7 | L87: 36 | M87: 29
A88: ='21MBA221'!A88 -> P18FW21M0073 | B88: ='21MBA221'!B88 -> SAMEEKSHA M P | C88: 4 | F88: 4 | G88: 4 | H88: 7 | J88: 7 | K88: 10 | L88: 39 | M88: 36
A89: ='21MBA221'!A89 -> P18FW21M0074 | B89: ='21MBA221'!B89 -> KAVYAPRIYA J | C89: 4 | D89: 2.5 | F89: 3 | H89: 8 | I89: 8 | K89: 13 | L89: 36 | M89: 39
A90: ='21MBA221'!A90 -> P18FW21M0075 | B90: ='21MBA221'!B90 -> RAKSHITH R T | C90: 4 | E90: 4 | G90: 3 | H90: 7 | I90: 7 | K90: 11 | L90: 35 | M90: 36
A91: ='21MBA221'!A91 -> P18FW21M0076 | B91: ='21MBA221'!B91 -> SHUBHA R | C91: 4 | E91: 4 | F91: 4 | H91: 7 | J91: 7 | K91: 9.5 | L91: 35 | M91: 36
A92: ='21MBA221'!A92 -> P18FW21M0077 | B92: ='21MBA221'!B92 -> BASAVARAJ | C92: 4 | D92: 4 | E92: 4 | H92: 8 | I92: 8 | K92: 11 | L92: 34 | M92: 39
A93: ='21MBA221'!A93 -> P18FW21M0078 | B93: ='21MBA221'!B93 -> MANOJ RAKSHATH B S | C93: 5 | D93: 0 | E93: 2 | H93: 9 | I93: 5 | K93: 12 | L93: 30 | M93: 33
A94: ='21MBA221'!A94 -> P18FW21M0079 | B94: ='21MBA221'!B94 -> ADITI RANI | C94: 3 | D94: 3 | G94: 3 | H94: 7 | I94: 5 | K94: 9.5 | L94: 34 | M94: 31
A95: ='21MBA221'!A95 -> P18FW21M0080 | B95: ='21MBA221'!B95 -> DIVYA SHREE M | C95: 5 | F95: 3 | G95: 5 | I95: 8 | J95: 5 | K95: 9 | L95: 40 | M95: 35
A96: ='21MBA221'!A96 -> P18FW21M0081 | B96: ='21MBA221'!B96 -> VARUN S BHARADWAJ | C96: 5 | E96: 4 | F96: 0 | H96: 7 | J96: 2 | K96: 10 | L96: 38 | M96: 28
A97: ='21MBA221'!A97 -> P18FW21M0082 | B97: ='21MBA221'!B97 -> S KARTHIK | C97: 5 | D97: 4 | F97: 5 | I97: 8 | J97: 0 | K97: 12 | L97: 28 | M97: 34
A98: ='21MBA221'!A98 -> P18FW21M0083 | B98: ='21MBA221'!B98 -> NEELAMMA M K | C98: 4 | F98: 3 | G98: 4 | H98: 8 | I98: 5 | K98: 11 | L98: 35 | M98: 35
A99: ='21MBA221'!A99 -> P18FW21M0084 | B99: ='21MBA221'!B99 -> PRAMOD K L | C99: 5 | D99: 5 | E99: 3 | H99: 8 | J99: 5 | K99: 6 | L99: 34 | M99: 32
A100: ='21MBA221'!A100 -> P18FW21M0085 | B100: ='21MBA221'!B100 -> NAMRATHA N | C100: 4 | F100: 3 | G100: 0 | H100: 7 | I100: 8 | K100: 11 | L100: 36 | M100: 33
A101: ='21MBA221'!A101 -> P18FW21M0086 | B101: ='21MBA221'!B101 -> ANVITH KUMAR | C101: 4 | E101: 4 | F101: 4.5 | H101: 8 | I101: 8 | K101: 11 | L101: 36 | M101: 40
A102: ='21MBA221'!A102 -> P18FW21M0087 | B102: ='21MBA221'!B102 -> BHOOMIKA BHAT | C102: 5 | E102: 0 | F102: 3 | G102: 5 | H102: 0 | J102: 8 | K102: 6 | L102: 31 | M102: 27
A103: ='21MBA221'!A103 -> P18FW21M0088 | B103: ='21MBA221'!B103 -> SOUMYA GANAPATI HEGDE | C103: 1 | D103: 0 | G103: 5 | H103: 8 | I103: 8 | K103: 10 | L103: 31 | M103: 32
A104: ='21MBA221'!A104 -> P18FW21M0089 | B104: ='21MBA221'!B104 -> SHREEKRISHNA | D104: 4 | E104: 2 | F104: 1 | H104: 8 | I104: 9 | K104: 12 | L104: 36 | M104: 36
A105: ='21MBA221'!A105 -> P18FW21M0090 | B105: ='21MBA221'!B105 -> OLETI SAI SREENITHYA | D105: 5 | F105: 3 | G105: 3 | H105: 4 | I105: 1 | K105: 11 | L105: 35 | M105: 27
A106: ='21MBA221'!A106 -> P18FW21M0091 | B106: ='21MBA221'!B106 -> RAMANUJAM H J | C106: 4 | D106: 4 | F106: 4 | H106: 8 | J106: 7 | K106: 6 | L106: 37 | M106: 33
A107: ='21MBA221'!A107 -> P18FW21M0092 | B107: ='21MBA221'!B107 -> CHAVI JAGADEESH | C107: 3 | D107: 2 | G107: 3 | H107: 5 | I107: 4 | K107: 5 | L107: 28 | M107: 22
A108: ='21MBA221'!A108 -> P18FW21M0093 | B108: ='21MBA221'!B108 -> DESAI JATIN ARUN | C108: 4 | D108: 4 | E108: 4 | H108: 7 | I108: 7 | K108: 2 | L108: 27 | M108: 28
A109: ='21MBA221'!A109 -> P18FW21M0094 | B109: ='21MBA221'!B109 -> MALLESH S | C109: 3 | E109: 4 | F109: 5 | H109: 4 | I109: 6 | K109: 11 | L109: 36 | M109: 33
A110: ='21MBA221'!A110 -> P18FW21M0095 | B110: ='21MBA221'!B110 -> SRINIDHI K | C110: 4 | E110: 4 | G110: 4 | H110: 7 | J110: 8 | K110: 11 | L110: 38 | M110: 38
A111: ='21MBA221'!A111 -> P18FW21M0096 | B111: ='21MBA221'!B111 -> B SHASHANK | C111: 5 | E111: 4 | G111: 4 | H111: 4 | I111: 0 | K111: 11 | L111: 39 | M111: 28
A112: ='21MBA221'!A112 -> P18FW21M0097 | B112: ='21MBA221'!B112 -> YOGASHREE C N | C112: 4 | D112: 5 | E112: 0 | F112: 3 | G112: 0 | H112: 8 | J112: 8 | K112: 9 | L112: 37 | M112: 37
A113: ='21MBA221'!A113 -> P18FW21M0098 | B113: ='21MBA221'!B113 -> CHARANA T U | C113: 4 | D113: 5 | G113: 4 | H113: 5 | I113: 0 | K113: 11 | L113: 36 | M113: 29
A114: ='21MBA221'!A114 -> P18FW21M0099 | B114: ='21MBA221'!B114 -> NAGARAJ GAJANAN HEGDE | E114: 4 | F114: 4 | G114: 3 | I114: 0 | J114: 7 | K114: 11 | L114: 32 | M114: 29
A115: ='21MBA221'!A115 -> P18FW21M0100 | B115: ='21MBA221'!B115 -> NIKITHA J SHANBHOG | C115: 5 | D115: 3 | E115: 0 | H115: 7 | J115: 9 | K115: 6 | L115: 38 | M115: 30
A116: ='21MBA221'!A116 -> P18FW21M0101 | B116: ='21MBA221'!B116 -> YASHASWINI P | C116: 4 | F116: 5 | G116: 4 | H116: 4 | J116: 7 | K116: 11 | L116: 33 | M116: 35
A117: ='21MBA221'!A117 -> P18FW21M0102 | B117: ='21MBA221'!B117 -> TANUSHREE R | C117: 3 | E117: 3 | F117: 5 | H117: 6 | J117: 2 | K117: 8 | L117: 27 | M117: 27
A118: ='21MBA221'!A118 -> P18FW21M0103 | B118: ='21MBA221'!B118 -> CHETHAN KUMAR V A | C118: 3.5 | D118: 0 | E118: 0 | G118: 4 | H118: 7 | I118: 7 | K118: 8 | L118: 34 | M118: 30
A119: ='21MBA221'!A119 -> P18FW21M0104 | B119: ='21MBA221'!B119 -> NAYAN KUMAR | C119: 4 | D119: 0 | F119: 4 | H119: 7 | I119: 0 | K119: 11 | L119: 35 | M119: 26
A120: ='21MBA221'!A120 -> P18FW21M0105 | B120: ='21MBA221'!B120 -> DEEPAK GOPALAKRISHNAN | D120: 2 | E120: 4 | F120: 3 | H120: 5 | J120: 0 | K120: 5 | L120: 25 | M120: 19
A121: ='21MBA221'!A121 -> P18FW21M0106 | B121: ='21MBA221'!B121 -> POORNAPRAJNYA K MANGALVEDI | C121: 5 | F121: 5 | G121: 3 | H121: 6 | J121: 8 | K121: 10 | L121: 35 | M121: 37
A122: ='21MBA221'!A122 -> P18FW21M0107 | B122: ='21MBA221'!B122 -> JENISHA MENEZES | C122: 4 | F122: 4 | G122: 3 | H122: 7 | J122: 1 | K122: 9 | L122: 33 | M122: 28
A123: ='21MBA221'!A123 -> P18FW21M0108 | B123: ='21MBA221'!B123 -> SRAVANI SUNIL MHALSEKAR | E123: 4 | F123: 4 | G123: 4 | H123: 5 | I123: 6 | K123: 11 | L123: 36 | M123: 34
A124: ='21MBA221'!A124 -> P18FW21M0109 | B124: ='21MBA221'!B124 -> M RITISH | C124: 1 | D124: 2 | G124: 4 | I124: 0 | J124: 1 | K124: 5 | L124: 35 | M124: 13
A125: ='21MBA221'!A125 -> P18FW21M0110 | B125: ='21MBA221'!B125 -> DHANYA S SHARMA | C125: 0 | D125: 0 | G125: 1 | H125: 0 | I125: 0 | K125: 10 | L125: 32 | M125: 11
A126: ='21MBA221'!A126 -> P18FW21M0111 | B126: ='21MBA221'!B126 -> PREETHAM D VARMA | C126: 3 | F126: 3 | G126: 4 | H126: 7 | J126: 4 | K126: 5 | L126: 29 | M126: 26
A127: ='21MBA221'!A127 -> P18FW21M0112 | B127: ='21MBA221'!B127 -> DHIRAJKUMAR BELAVADI | C127: 3.5 | F127: 4 | G127: 4 | H127: 4 | J127: 4 | K127: 10 | L127: 31 | M127: 30
A128: ='21MBA221'!A128 -> P18FW21M0113 | B128: ='21MBA221'!B128 -> FERNANDES RICHA FLORINDA | C128: 3 | F128: 4 | G128: 0 | H128: 8 | I128: 0 | K128: 11 | L128: 32 | M128: 26
A129: ='21MBA221'!A129 -> P18FW21M0114 | B129: ='21MBA221'!B129 -> MEGHA U JOSHI | C129: 4 | D129: 4 | G129: 3 | H129: 1 | I129: 6 | K129: 6 | L129: 34 | M129: 24
A130: ='21MBA221'!A130 -> P18FW21M0116 | B130: ='21MBA221'!B130 -> DINAH NEETHA NORONHA | C130: 4 | F130: 4 | G130: 4 | H130: 8 | I130: 0 | K130: 9 | L130: 35 | M130: 29
A131: ='21MBA221'!A131 -> P18FW21M0117 | B131: ='21MBA221'!B131 -> HEGDE PAVANA GANAPATHI | C131: 3 | D131: 3 | E131: 1 | H131: 1 | I131: 7 | K131: 9 | L131: 31 | M131: 24
A132: ='21MBA221'!A132 -> P18FW21M0118 | B132: ='21MBA221'!B132 -> LOYSTON CRASTA | D132: 4 | E132: 4 | F132: 4 | H132: 7 | I132: 1 | K132: 10 | L132: 29 | M132: 30
A133: ='21MBA221'!A133 -> P18FW21M0119 | B133: ='21MBA221'!B133 -> GANESH HEGDE | C133: 0 | E133: 4 | F133: 0 | G133: 5 | H133: 3 | I133: 0 | K133: 9 | L133: 31 | M133: 21
A134: ='21MBA221'!A134 -> P18FW21M0120 | B134: ='21MBA221'!B134 -> ANUSHA PRAKASH | C134: 4 | E134: 3 | G134: 4 | H134: 7 | I134: 0 | K134: 9 | L134: 31 | M134: 27
A135: ='21MBA221'!A135 -> P18FW21M0121 | B135: ='21MBA221'!B135 -> ANJANA KSHIRASAGAR | D135: 4 | E135: 4 | G135: 4 | I135: 6 | J135: 0 | K135: 9 | L135: 34 | M135: 27
A136: ='21MBA221'!A136 -> P18FW21M0122 | B136: ='21MBA221'!B136 -> JAGADISH SHENOY R | C136: 0 | D136: 3 | G136: 1 | H136: 2 | I136: 1 | K136: 9 | L136: 34 | M136: 16
A137: ='21MBA221'!A137 -> P18FW21M0123 | B137: ='21MBA221'!B137 -> MADHAN KUMAR C S | C137: 0 | D137: 2 | E137: 0 | I137: 9 | J137: 3 | K137: 12 | L137: 34 | M137: 26
A138: ='21MBA221'!A138 -> P18FW21M0124 | B138: ='21MBA221'!B138 -> TEJAS H P | C138: 3 | E138: 4 | G138: 0 | H138: 5 | I138: 8 | K138: 3 | L138: 27 | M138: 23
A139: ='21MBA221'!A139 -> P18FW21M0125 | B139: ='21MBA221'!B139 -> DHANUSH K V | C139: 2 | E139: 3 | F139: 3 | H139: 3 | I139: 0 | K139: 1 | L139: 31 | M139: 12
A140: ='21MBA221'!A140 -> P18FW21M0126 | B140: ='21MBA221'!B140 -> SWAMI SAMIKSHA PUSHPARAJ | C140: 2 | D140: 2 | F140: 0 | H140: 6 | J140: 8 | K140: 12 | L140: 36 | M140: 30
A141: ='21MBA221'!A141 -> P18FW21M0127 | B141: ='21MBA221'!B141 -> AMITH BHAT | C141: 2 | E141: 4 | G141: 4 | H141: 7 | I141: 2 | K141: 9 | L141: 34 | M141: 28
A142: ='21MBA221'!A142 -> P18FW21M0128 | B142: ='21MBA221'!B142 -> NUTHANA U | D142: 4 | F142: 3 | G142: 4 | H142: 0 | I142: 0 | K142: 12 | L142: 34 | M142: 23
A143: ='21MBA221'!A143 -> P18FW21M0129 | B143: ='21MBA221'!B143 -> CHETAN SINGH M | C143: 0 | D143: 3 | G143: 2 | H143: 8 | J143: 5.5 | K143: 12 | L143: 25 | M143: 31
A144: ='21MBA221'!A144 -> P18FW21M0130 | B144: ='21MBA221'!B144 -> KAUSTUBH LACHAPPANAVAR | C144: 4 | F144: 4.5 | G144: 3.5 | H144: 8.5 | I144: 7.5 | K144: 12 | L144: 31 | M144: 40
A145: ='21MBA221'!A145 -> P18FW21M0131 | B145: ='21MBA221'!B145 -> KSHITIJ P L | C145: 4 | D145: 0 | F145: 4 | H145: 7 | I145: 2.5 | K145: 10.5 | L145: 26 | M145: =SUM(C145:K145) -> 28
A146: ='21MBA221'!A146 -> P18FW21M0132 | B146: ='21MBA221'!B146 -> BHUVANES P | C146: 3.5 | F146: 0 | G146: 4 | H146: 7 | I146: 6.5 | K146: 8.5 | L146: 22 | M146: 30
A147: ='21MBA221'!A147 -> P18FW21M0133 | B147: ='21MBA221'!B147 -> NALASANI VARSHITHA | C147: 5 | D147: 4 | E147: 3 | H147: 8 | J147: 9 | K147: 10 | L147: 34 | M147: 39
A148: ='21MBA221'!A148 -> P18FW21M0134 | B148: ='21MBA221'!B148 -> KOKILA K | C148: 4 | D148: 0 | G148: 3.5 | H148: 8 | I148: 3 | K148: 12 | L148: 35 | M148: 31
A149: ='21MBA221'!A149 -> P18FW21M0135 | B149: ='21MBA221'!B149 -> KOTHA KEERTHANA | C149: 2 | D149: 5 | E149: 2 | F149: 5 | H149: 3 | J149: 7 | K149: 10 | L149: 35 | M149: 34
A150: ='21MBA221'!A150 -> P18FW21M0136 | B150: ='21MBA221'!B150 -> MUCHELI SUBBARAJU | C150: 2.5 | F150: 3.5 | G150: 2.5 | I150: 3 | J150: 3 | K150: 11 | L150: 32 | M150: 26
A151: ='21MBA221'!A151 -> P18FW21M0137 | B151: ='21MBA221'!B151 -> NANDAGOPAL B R | C151: 4 | F151: 4 | G151: 4 | H151: 5 | I151: 5 | K151: 10 | L151: 34 | M151: 32
A152: ='21MBA221'!A152 -> P18FW21M0138 | B152: ='21MBA221'!B152 -> VISHAL SHIVARAJ | E152: 4 | F152: 3 | G152: 0 | H152: 5.5 | I152: 5 | K152: 10 | L152: 33 | M152: 28
A153: ='21MBA221'!A153 -> P18FW21M0139 | B153: ='21MBA221'!B153 -> SHASHI KUMAR R | C153: 4 | F153: 5 | G153: 4 | H153: 8 | I153: 8 | K153: 11 | L153: 33 | M153: 40
A154: ='21MBA221'!A154 -> P18FW21M0140 | B154: ='21MBA221'!B154 -> YASHWANTH R | D154: 4 | E154: 4.5 | F154: 4 | I154: 6.5 | J154: 9 | K154: 12 | L154: 34 | M154: 40
A155: ='21MBA221'!A155 -> P18FW21M0141 | B155: ='21MBA221'!B155 -> M M JABEZ | C155: 4 | E155: 4 | G155: 4 | H155: 7 | I155: 2 | K155: 10 | L155: 29 | M155: 31
A156: ='21MBA221'!A156 -> P18FW21M0142 | B156: ='21MBA221'!B156 -> KALAVALA ABHISHTA | C156: 4 | D156: 4 | G156: 4 | H156: 8.5 | I156: 2 | K156: 9.5 | L156: 33 | M156: 32
A157: ='21MBA221'!A157 -> P18FW21M0143 | B157: ='21MBA221'!B157 -> SANKALP V | C157: 3 | D157: 5 | E157: 4 | H157: 7 | J157: 6 | K157: 7 | L157: 30 | M157: 32
A158: ='21MBA221'!A158 -> P18FW21M0144 | B158: ='21MBA221'!B158 -> NAVEEN C | E158: 0 | F158: 2.5 | G158: 3 | I158: 8.5 | J158: 8.5 | K158: 12 | L158: 31 | M158: 35
A159: ='21MBA221'!A159 -> P18FW21M0145 | B159: ='21MBA221'!B159 -> PAVAN KUMAR M | E159: 0 | F159: 0 | G159: 0 | H159: 8 | J159: 8 | K159: 11 | L159: 28 | M159: 27
A160: ='21MBA221'!A160 -> P18FW21M0146 | B160: ='21MBA221'!B160 -> KAPARTHI BHAVANA | C160: 4 | D160: 5 | G160: 4.5 | H160: 8.5 | I160: 8.5 | K160: 9.5 | L160: 35 | M160: 40
A161: ='21MBA221'!A161 -> P18FW21M0147 | B161: ='21MBA221'!B161 -> MANOJ N S | C161: 4 | D161: 1 | F161: 1 | H161: 5 | J161: 8 | K161: 10 | L161: 34 | M161: 29
A162: ='21MBA221'!A162 -> P18FW21M0149 | B162: ='21MBA221'!B162 -> HEMA S | D162: 4 | E162: 5 | F162: 4 | H162: 7 | I162: 8 | K162: 9 | L162: 32 | M162: 37
A163: ='21MBA221'!A163 -> P18FW21M0150 | B163: ='21MBA221'!B163 -> MADHUSUDAN G | C163: 4 | F163: 4 | G163: 4 | H163: 5 | J163: 0 | K163: 10 | L163: 31 | M163: 27
A164: ='21MBA221'!A164 -> P18FW21M0151 | B164: ='21MBA221'!B164 -> ANNASAGARAM RAGHAVENDRA | C164: 4 | D164: 4 | G164: 4 | I164: 5 | J164: 4 | K164: 6 | L164: 24 | M164: 27
A165: ='21MBA221'!A165 -> P18FW21M0152 | B165: ='21MBA221'!B165 -> SYED MUSSAVEERULLA | C165: 4.5 | E165: 3.5 | F165: 3.5 | I165: 8 | J165: 8 | K165: 12 | L165: 24 | M165: 40
A166: ='21MBA221'!A166 -> P18FW21M0153 | B166: ='21MBA221'!B166 -> SYED SAMEER | C166: 4 | D166: 1 | G166: 4 | I166: 8.5 | J166: 8 | K166: 10 | L166: 26 | M166: 36
A167: ='21MBA221'!A167 -> P18FW21M0154 | B167: ='21MBA221'!B167 -> RAMANABOINA ANAND KUMAR | D167: 4.5 | E167: 2 | F167: 3 | H167: 8.5 | I167: 8.5 | K167: 13 | L167: 36 | M167: 40
A168: ='21MBA221'!A168 -> P18FW21M0155 | B168: ='21MBA221'!B168 -> SHIVAM GANAPATI ANVEKAR | C168: 2 | D168: 0 | G168: 3 | H168: 5 | J168: 3 | K168: 11 | L168: 30 | M168: 24
A169: ='21MBA221'!A169 -> P18FW21M0156 | B169: ='21MBA221'!B169 -> SHUBHAM SINGH | C169: 4 | D169: 0 | F169: 3 | G169: 4 | H169: 5 | J169: 6 | K169: 9 | L169: 32 | M169: 31
A170: ='21MBA221'!A170 -> P18FW21M0157 | B170: ='21MBA221'!B170 -> GURU VARUN G | D170: 4 | F170: 4 | G170: 2 | H170: 7 | J170: 7 | K170: 9 | L170: 26 | M170: 33
A171: ='21MBA221'!A171 -> P18FW21M0158 | B171: ='21MBA221'!B171 -> ABHIJEETH MASHETTY | C171: 2 | F171: 3 | G171: 3 | H171: 0 | J171: 6 | K171: 11 | L171: 29 | M171: 25
A172: ='21MBA221'!A172 -> P18FW21M0159 | B172: ='21MBA221'!B172 -> PRANITH KUMAR S | C172: 0 | E172: 1 | F172: 2 | H172: 8 | I172: 1 | K172: 11 | L172: 35 | M172: 23
A173: ='21MBA221'!A173 -> P18FW21M0160 | B173: ='21MBA221'!B173 -> LIKITHA A | C173: 4 | D173: 3 | F173: 3 | H173: 8 | J173: 1 | K173: 10 | L173: 32 | M173: 29
A174: ='21MBA221'!A174 -> P18FW21M0161 | B174: ='21MBA221'!B174 -> NAVEEN SETTY N A | D174: 5 | E174: 4 | F174: 4 | I174: 8 | J174: 8 | K174: 11 | L174: 36 | M174: 40
A175: ='21MBA221'!A175 -> P18FW21M0162 | B175: ='21MBA221'!B175 -> REHAN FAISAL QADRI | C175: 5 | D175: 4 | F175: 5 | H175: 5 | J175: 0 | K175: 11 | L175: 26 | M175: 30
A176: ='21MBA221'!A176 -> P18FW21M0163 | B176: ='21MBA221'!B176 -> SMITHA M | C176: 5 | D176: 5 | E176: 4 | H176: 7 | J176: 5 | K176: 7 | L176: 31 | M176: 33
A177: ='21MBA221'!A177 -> P18FW21M0164 | B177: ='21MBA221'!B177 -> ANIRUDH K | C177: 5 | D177: 5 | G177: 0 | H177: 8 | I177: 8.5 | K177: 7 | L177: 22 | M177: 34
A178: ='21MBA221'!A178 -> P18FW21M0165 | B178: ='21MBA221'!B178 -> SALMAN FAISAL QADRI | D178: 3 | E178: 4 | G178: 4 | H178: 6 | I178: 7 | K178: 3 | L178: 32 | M178: 27
A179: ='21MBA221'!A179 -> P18FW21M0166 | B179: ='21MBA221'!B179 -> RAVISH RAMACHANDRA HEGDE | C179: 2.5 | E179: 4 | F179: 2.5 | H179: 7.5 | J179: 8.5 | K179: 9.5 | L179: 32 | M179: 35
A180: ='21MBA221'!A180 -> P18FW21M0167 | B180: ='21MBA221'!B180 -> POOJA VALLUR | C180: 3.5 | D180: 4 | F180: 4 | H180: 7.5 | I180: 2.5 | K180: 11 | L180: 34 | M180: 33
A181: ='21MBA221'!A181 -> P18FW21M0169 | B181: ='21MBA221'!B181 -> MAHANTH GOWDA K C | C181: 3 | E181: 0 | G181: 3 | H181: 7 | J181: 8.5 | K181: 12 | L181: 32 | M181: 34
A182: ='21MBA221'!A182 -> P18FW21M0170 | B182: ='21MBA221'!B182 -> BHUPALI SAURABH PRAKASH | C182: 5 | D182: 2 | E182: 3 | F182: 4 | H182: 0 | I182: 8 | K182: 11 | L182: 29 | M182: 33
A183: ='21MBA221'!A183 -> P18FW21M0171 | B183: ='21MBA221'!B183 -> SYED RAIHAN | C183: 2 | E183: 0 | F183: 3 | H183: 7 | I183: 1 | K183: 10 | L183: 27 | M183: 23
A184: ='21MBA221'!A184 -> P18FW21M0172 | B184: ='21MBA221'!B184 -> SHRI HARI L | D184: 5 | E184: 3 | F184: 3 | I184: 9 | J184: 9 | K184: 12 | L184: 33 | M184: 41
A185: ='21MBA221'!A185 -> P18FW21M0173 | B185: ='21MBA221'!B185 -> SNEHA U | C185: 3 | D185: 0 | E185: 0 | H185: 8 | J185: 7 | K185: 5 | L185: 30 | M185: 23
A186: ='21MBA221'!A186 -> P18FW21M0174 | B186: ='21MBA221'!B186 -> SHAH VINIT SIDDHARTH | C186: 4 | F186: 4 | G186: 5 | H186: 7 | J186: 8 | K186: 12 | L186: 32 | M186: 40
A187: ='21MBA221'!A187 -> P18FW21M0175 | B187: ='21MBA221'!B187 -> NAYANA G C | D187: 3.5 | F187: 3 | G187: 3 | H187: 9 | I187: 9 | K187: 7 | L187: 32 | M187: 35
A188: ='21MBA221'!A188 -> P18FW21M0176 | B188: ='21MBA221'!B188 -> D SURIYA PRIYASREE | C188: 0 | D188: 3.5 | G188: 3.5 | H188: 8 | I188: 0 | K188: 7.5 | L188: 35 | M188: 23
A189: ='21MBA221'!A189 -> P18FW21M0177 | B189: ='21MBA221'!B189 -> SATHYA B NAYAKA | C189: 4 | D189: 0 | F189: 2 | I189: 9 | J189: 3 | K189: 11 | L189: 34 | M189: 29
A190: ='21MBA221'!A190 -> P18FW21M0178 | B190: ='21MBA221'!B190 -> NEHA H V | C190: 4 | E190: 3 | F190: 4 | H190: 0 | I190: 5 | K190: 10 | L190: 25 | M190: 26
A191: ='21MBA221'!A191 -> P18FW21M0179 | B191: ='21MBA221'!B191 -> SAAHIL SRIKANT KULLOLI | D191: 4 | F191: 2 | G191: 5 | H191: 0 | J191: 10 | K191: 12 | L191: 30 | M191: 33
A192: ='21MBA221'!A192 -> P18FW21M0180 | B192: ='21MBA221'!B192 -> SIMRANJIT KAUR | C192: 4 | D192: 3 | E192: 0 | H192: 7 | I192: 7 | K192: 9 | L192: 34 | M192: 30
A193: ='21MBA221'!A193 -> P18FW21M0181 | B193: ='21MBA221'!B193 -> NIRANJAN JANARDHAN HEGDE | D193: 5 | E193: 0 | F193: 3.5 | H193: 6 | I193: 0 | J193: 1 | K193: 9 | L193: 30 | M193: 25
A194: ='21MBA221'!A194 -> P18FW21M0182 | B194: ='21MBA221'!B194 -> TEJAS N | C194: 0 | D194: 0 | E194: 0 | H194: 0 | I194: 0 | K194: 0 | M194: 0
A195: ='21MBA221'!A195 -> P18FW21M0184 | B195: ='21MBA221'!B195 -> AGAMYA A KINHAL | C195: 0 | F195: 1 | G195: 4 | H195: 2 | I195: 0 | K195: 12 | L195: 26 | M195: 19
A196: No. of students attended | C196: =COUNTA(C16:C195) -> 146 | D196: 95 | E196: 90 | F196: 114 | G196: 103 | H196: 154 | I196: 125 | J196: 82 | K196: 180 | L196: =COUNT(L16:L195) -> 178
A197: No. of Students attained CO | C197: =COUNTIF(C16:C195,">"&C15) -> 101 | D197: 50 | E197: 47 | F197: 65 | G197: 70 | H197: 87 | I197: 67 | J197: 39 | K197: 110 | L197: 178
A198: CO Attainment percentage | C198: =ROUND(C197*100/C196,0) -> 69 | D198: 53 | E198: 52 | F198: 57 | G198: 68 | H198: 56 | I198: 54 | J198: 48 | K198: 61 | L198: =ROUND(L197*100/L196,0) -> 100
A199: Level | C199: =IF(C198>=80,"3",IF(C198>=70,"2",IF(C198>=60,"1","-"))) -> 1 | D199: =IF(D198>=80,"3",IF(D198>=70,"2",IF(D198>=60,"1","-"))) -> - | E199: - | F199: - | G199: 1 | H199: - | I199: - | J199: - | K199: 1 | L199: 3
C200: CO3 | D200: CO5 | E200: CO1 | F200: CO3 | G200: CO2 | H200: CO2 | I200: CO3 | J200: CO4 | K200: CO3
H201: Internals | J201: Final CO Attainment
... 6 more rows

Sheet 21MBA222-Attainment
A1: ='21MBA222'!A5:M5 -> Entrepreneurship and Start Up Management
D3: Internals | F3: Final CO Attainment
C4: CO | D4: Percentage | E4: Level | F4: Percentage | G4: Level
C5: CO1 | D5: ='21MBA222'!H203 -> 56 | E5: ='21MBA222'!I203 -> - | F5: ='21MBA222'!J203 -> 87 | G5: ='21MBA222'!K203 -> 3
C6: CO2 | D6: ='21MBA222'!H204 -> 62 | E6: ='21MBA222'!I204 -> 1 | F6: ='21MBA222'!J204 -> 89 | G6: ='21MBA222'!K204 -> 3
C7: CO3 | D7: ='21MBA222'!H205 -> 60 | E7: ='21MBA222'!I205 -> 1 | F7: ='21MBA222'!J205 -> 88 | G7: ='21MBA222'!K205 -> 3
C8: CO4 | D8: ='21MBA222'!H206 -> 48 | E8: ='21MBA222'!I206 -> - | F8: ='21MBA222'!J206 -> 84 | G8: ='21MBA222'!K206 -> 3
C9: CO5 | D9: ='21MBA222'!H207 -> 53 | E9: ='21MBA222'!I207 -> - | F9: ='21MBA222'!J207 -> 86 | G9: ='21MBA222'!K207 -> 3
C12: PO1 | D12: PO2 | E12: PO3 | F12: PO4 | G12: PO5 | H12: PO6 | I12: PO7 | J12: PO8 | K12: PO9 | L12: PO10 | M12: PO11
B13: C01 | C13: 2 | D13: 1 | E13: 1 | F13: 1 | G13: 1 | H13: 3 | I13: 1 | J13: 3 | K13: 2
B14: C02 | C14: 2 | D14: 3 | E14: 1 | F14: 1 | G14: 1 | H14: 3 | I14: 1 | J14: 3 | K14: 2
B15: C03 | C15: 2 | D15: 3 | E15: 3 | F15: 1 | G15: 3 | H15: 3 | I15: 3 | J15: 3 | K15: 3
B16: C04 | C16: 3 | D16: 3 | E16: 3 | F16: 1 | G16: 1 | H16: 3 | I16: 1 | J16: 3 | K16: 2
B17: C05 | C17: 3 | D17: 1 | E17: 3 | F17: 1 | G17: 1 | H17: 3 | I17: 1 | J17: 3 | K17: 3
C18: LEVEL | D18: 3-Substantial | E18: 2-Moderate | F18: 1-Slight | G18: "-" No Co-relation
A21: Final CO | C21: PO1 | D21: PO2 | E21: PO3 | F21: PO4 | G21: PO5 | H21: PO6 | I21: PO7 | J21: PO8 | K21: PO9 | L21: PO10 | M21: PO11
A22: ATTAINMENT
A23: C01 | B23: =F5 -> 86.80 | C23: =C13*$B$23/3 -> 57.87 | D23: 28.93 | E23: 28.93 | F23: 28.93 | G23: 28.93 | H23: 86.80 | I23: 28.93 | J23: 86.80 | K23: 57.87 | L23: 0.00 | M23: 0.00
A24: C02 | B24: =F6 -> 88.60 | C24: =C14*$B$24/3 -> 59.07 | D24: 88.60 | E24: 29.53 | F24: 29.53 | G24: 29.53 | H24: 88.60 | I24: 29.53 | J24: 88.60 | K24: 59.07 | L24: 0.00 | M24: 0.00
A25: C03 | B25: =F7 -> 88.08 | C25: =C15*$B$25/3 -> 58.72 | D25: 88.08 | E25: 88.08 | F25: 29.36 | G25: 88.08 | H25: 88.08 | I25: 88.08 | J25: 88.08 | K25: 88.08 | L25: 0.00 | M25: 0.00
A26: C04 | B26: =F8 -> 84.40 | C26: 88.08 | D26: =D17*$B$26/3 -> 28.13 | E26: 84.40 | F26: 28.13 | G26: 28.13 | H26: 84.40 | I26: 28.13 | J26: 84.40 | K26: 84.40 | L26: 0.00 | M26: 0.00
A27: C05 | B27: =F9 -> 85.90 | C27: =C17*$B$27/3 -> 85.90 | D27: =D17*$B$27/3 -> 28.63 | E27: 85.90 | F27: 28.63 | G27: 28.63 | H27: 85.90 | I27: 28.63 | J27: 85.90 | K27: 85.90 | L27: 0.00 | M27: 0.00
A28: Average | C28: =AVERAGE(C23:C27) -> 69.93 | D28: =AVERAGE(D23:D27) -> 52.48 | E28: 63.37 | F28: 28.92 | G28: 40.66 | H28: 86.76 | I28: 40.66 | J28: 86.76 | K28: 75.06 | L28: 0.00 | M28: 0.00

Sheet 21MBA121
A1: RV Institute of Management
A2: Autonomous Institution Affiliated to BCU
A3: MBA Programme II Semester
A4: Course Outcome Report
A5: Digital Marketing
A6: Name of the Course Teacher: | I6: Sub. Code: | L6: 21MBA121
A7: Dr. Padmalini Singh, Prof. Pooja T, Dr.Swathi Gupta | J7: Sec: | L7: ABC
D8: Semester II
D9: Batch 2021-23
C11: Section A | J11: Section B
A12: Question number | C12: 1 | D12: 2 | E12: 3 | F12: 4 | G12: 5 | H12: 6 | I12: 7 | J12: 8 | K12: 9 | L12: External Exam | M12: Mid Term Exam
A13: Course outcome | C13: CO1 | D13: CO2 | E13: CO5 | F13: CO4 | G13: CO4 | H13: CO1 | I13: CO2 | J13: CO3 | K13: CO4 | L13: Marks | M13: Marks
A14: Maximum marks | C14: 5 | D14: 5 | E14: 5 | F14: 5 | G14: 5 | H14: 5 | I14: 5 | J14: 10 | K14: 10 | L14: 50 | M14: 50
A15: Student Reg. No | B15: Student Name | C15: =C14*0.64 -> 3.2 | D15: =D14*0.64 -> 3.2 | E15: 3.2 | F15: 3.2 | G15: 3.2 | H15: 3.2 | I15: 3.2 | J15: 6.4 | K15: 6.4 | L15: =L14*0.357142 -> 18
A16: ='21MBA221'!A16 -> P18FW21M0001 | B16: ='21MBA221'!B16 -> VIPUL VILAS NAIK | C16: 3.5 | E16: 1 | G16: 3 | H16: 6 | J16: 6 | K16: 9 | L16: 32 | M16: =SUM(C16:K16) -> 29
A17: ='21MBA221'!A17 -> P18FW21M0002 | B17: ='21MBA221'!B17 -> M PRANEETH KUMAR REDDY | C17: 2 | D17: 2.5 | F17: 3 | H17: 6 | J17: 7 | K17: 7 | L17: 28 | M17: =SUM(C17:K17) -> 28
A18: ='21MBA221'!A18 -> P18FW21M0003 | B18: ='21MBA221'!B18 -> NIKHIL S ANJANALLI | C18: 4 | D18: 3 | F18: 4 | H18: 7 | I18: 1 | K18: 8 | L18: 33 | M18: 27
A19: ='21MBA221'!A19 -> P18FW21M0004 | B19: ='21MBA221'!B19 -> KARTHIK P SHETTY | C19: 4 | D19: 3.5 | F19: 4 | H19: 7 | I19: 0 | K19: 4 | L19: 34 | M19: 23
A20: ='21MBA221'!A20 -> P18FW21M0005 | B20: ='21MBA221'!B20 -> AMITH C | D20: 3 | F20: 4 | G20: 3 | H20: 7 | J20: 8 | K20: 6.5 | L20: 33 | M20: 32
A21: ='21MBA221'!A21 -> P18FW21M0006 | B21: ='21MBA221'!B21 -> AISHWARYA G | C21: 4 | E21: 3 | F21: 3 | H21: 6 | I21: 5 | K21: 8 | L21: 31 | M21: 29
A22: ='21MBA221'!A22 -> P18FW21M0007 | B22: ='21MBA221'!B22 -> AKANKSH P | C22: 3 | F22: 4 | G22: 4 | H22: 7.5 | J22: 6.5 | K22: 10.5 | L22: 39 | M22: 36
A23: ='21MBA221'!A23 -> P18FW21M0008 | B23: ='21MBA221'!B23 -> SACHITH B K | C23: 2.5 | D23: 3 | F23: 3 | H23: 5.5 | J23: 8 | K23: 7 | L23: 35 | M23: 29
A24: ='21MBA221'!A24 -> P18FW21M0009 | B24: ='21MBA221'!B24 -> CHAITANYA KAMATAGI B | C24: 3 | D24: 3 | F24: 3 | H24: 6 | J24: 8 | K24: 12 | L24: 37 | M24: 35
A25: ='21MBA221'!A25 -> P18FW21M0010 | B25: ='21MBA221'!B25 -> AKASH RACHAPPA KHANAGAVI | C25: 4 | E25: 1 | G25: 2 | H25: 7 | J25: 7 | K25: 8 | L25: 32 | M25: 29
A26: ='21MBA221'!A26 -> P18FW21M0011 | B26: ='21MBA221'!B26 -> SOURAV SADANAND SWAR | C26: 3.5 | D26: 4 | F26: 4 | H26: 7 | J26: 1 | K26: 8.5 | L26: 29 | M26: 28
A27: ='21MBA221'!A27 -> P18FW21M0012 | B27: ='21MBA221'!B27 -> NISHANTH KRISHNA | D27: 4 | F27: 3 | G27: 4 | H27: 8 | J27: 8 | K27: 8.5 | L27: 36 | M27: 36
A28: ='21MBA221'!A28 -> P18FW21M0013 | B28: ='21MBA221'!B28 -> MEHUL V BHASKAR | C28: 3 | E28: 2.5 | F28: 3 | H28: 6 | I28: 1 | K28: 8 | L28: 32 | M28: 24
A29: ='21MBA221'!A29 -> P18FW21M0014 | B29: ='21MBA221'!B29 -> SHUBHAM RAJENDRA REVANKAR | C29: 3 | D29: 3 | E29: 4 | H29: 6 | J29: 7 | K29: 9 | L29: 33 | M29: 32
A30: ='21MBA221'!A30 -> P18FW21M0015 | B30: ='21MBA221'!B30 -> SHETTY TRUPTHI CHANDRAHAS | C30: 3 | D30: 3 | E30: 3 | H30: 6 | J30: 6 | K30: 11 | L30: 39 | M30: 32
A31: ='21MBA221'!A31 -> P18FW21M0016 | B31: ='21MBA221'!B31 -> SHEEBAL M S | C31: 4 | D31: 4 | F31: 4 | H31: 7 | J31: 8 | K31: 9 | L31: 37 | M31: 36
A32: ='21MBA221'!A32 -> P18FW21M0017 | B32: ='21MBA221'!B32 -> VISHNU KUMAR | D32: 4 | E32: 3 | F32: 3 | H32: 9 | J32: 9 | K32: 10 | L32: 38 | M32: 38
A33: ='21MBA221'!A33 -> P18FW21M0018 | B33: ='21MBA221'!B33 -> HARSHITHA SRINIVAS | C33: 3 | D33: 3 | E33: 4 | H33: 6 | J33: 6 | K33: 9 | L33: 31 | M33: 31
A34: ='21MBA221'!A34 -> P18FW21M0019 | B34: ='21MBA221'!B34 -> SAGI SAMPI | D34: 3 | F34: 3 | G34: 2 | H34: 7 | J34: 8 | K34: 9 | L34: 39 | M34: 32
A35: ='21MBA221'!A35 -> P18FW21M0020 | B35: ='21MBA221'!B35 -> PAULOMEE BARUAH | D35: 3 | F35: 4 | G35: 3 | H35: 6 | J35: 4 | K35: 7 | L35: 37 | M35: 27
A36: ='21MBA221'!A36 -> P18FW21M0021 | B36: ='21MBA221'!B36 -> NEETHA KAMATH | C36: 4 | D36: 4 | F36: 3 | H36: 5 | J36: 7 | K36: 9 | L36: 33 | M36: 32
A37: ='21MBA221'!A37 -> P18FW21M0022 | B37: ='21MBA221'!B37 -> ADITYA UDAY HEGDE | C37: 4 | D37: 3 | F37: 3 | H37: 8 | J37: 6 | K37: 11 | L37: 28 | M37: 35
A38: ='21MBA221'!A38 -> P18FW21M0023 | B38: ='21MBA221'!B38 -> SHREYAS G A | C38: 3 | D38: 3 | F38: 3 | I38: 4 | J38: 6 | K38: 7 | L38: 33 | M38: 26
A39: ='21MBA221'!A39 -> P18FW21M0024 | B39: ='21MBA221'!B39 -> SRUJANA S | C39: 3 | D39: 2 | F39: 3 | H39: 6 | J39: 6 | K39: 7 | L39: 38 | M39: 27
A40: ='21MBA221'!A40 -> P18FW21M0025 | B40: ='21MBA221'!B40 -> PRAJWAL S N | C40: 2 | D40: 3 | F40: 3 | H40: 6 | J40: 7 | K40: 7 | L40: 38 | M40: 28
A41: ='21MBA221'!A41 -> P18FW21M0026 | B41: ='21MBA221'!B41 -> SUCHITRA G | C41: 3 | D41: 3 | E41: 3 | H41: 5 | I41: 0 | K41: 8 | L41: 32 | M41: 22
A42: ='21MBA221'!A42 -> P18FW21M0027 | B42: ='21MBA221'!B42 -> SANKET SURESH SHIRSAT | C42: 4 | D42: 3 | F42: 3 | H42: 6 | J42: 7 | K42: 9 | L42: 34 | M42: 32
A43: ='21MBA221'!A43 -> P18FW21M0028 | B43: ='21MBA221'!B43 -> ANIKET SANJAY REVANKAR | C43: 2 | D43: 2 | F43: 3 | H43: 6 | J43: 3 | K43: 9 | L43: 34 | M43: 25
A44: ='21MBA221'!A44 -> P18FW21M0029 | B44: ='21MBA221'!B44 -> AKHILA H | D44: 4 | E44: 2 | G44: 2 | H44: 8 | J44: 8 | K44: 12 | L44: 27 | M44: 36
A45: ='21MBA221'!A45 -> P18FW21M0030 | B45: ='21MBA221'!B45 -> M LUQMAN NAWAZ | C45: 4 | D45: 4 | F45: 3 | H45: 7 | J45: 5 | K45: 11 | L45: 37 | M45: 34
A46: ='21MBA221'!A46 -> P18FW21M0031 | B46: ='21MBA221'!B46 -> MADHURA A | D46: 3 | F46: 3 | G46: 4 | H46: 7 | J46: 7 | K46: 11 | L46: 41 | M46: 35
A47: ='21MBA221'!A47 -> P18FW21M0032 | B47: ='21MBA221'!B47 -> H V SHREEVATSA | C47: 2 | D47: 3 | E47: 2 | H47: 7 | I47: 6 | K47: 11 | L47: 33 | M47: 31
A48: ='21MBA221'!A48 -> P18FW21M0033 | B48: ='21MBA221'!B48 -> LILIMA DASH | D48: 3 | F48: 3 | G48: 3 | H48: 5 | J48: 5 | K48: 8 | L48: 33 | M48: 27
A49: ='21MBA221'!A49 -> P18FW21M0034 | B49: ='21MBA221'!B49 -> KUMAR ASHUTOSH | C49: 3 | D49: 3 | F49: 3 | H49: 6 | J49: 0 | K49: 5 | L49: 27 | M49: 20
A50: ='21MBA221'!A50 -> P18FW21M0035 | B50: ='21MBA221'!B50 -> RAHUL S SANGOLLI | C50: 3 | D50: 3 | F50: 3 | H50: 6 | J50: 7 | K50: 6 | L50: 27 | M50: 28
A51: ='21MBA221'!A51 -> P18FW21M0036 | B51: ='21MBA221'!B51 -> GIRISH N NASHI | C51: 3 | D51: 4 | F51: 4 | H51: 6 | I51: 4 | K51: 9 | L51: 31 | M51: 30
A52: ='21MBA221'!A52 -> P18FW21M0037 | B52: ='21MBA221'!B52 -> ANKITA GAJANAN NAIK | C52: 0 | D52: 4 | F52: 3 | H52: 7 | J52: 0 | K52: 10 | L52: 25 | M52: 24
A53: ='21MBA221'!A53 -> P18FW21M0038 | B53: ='21MBA221'!B53 -> GURUBASAVARAJ K M | D53: 3 | E53: 2 | F53: 3 | H53: 5 | I53: 3 | K53: 11 | L53: 37 | M53: 27
A54: ='21MBA221'!A54 -> P18FW21M0039 | B54: ='21MBA221'!B54 -> ANANYA P HEGDE | C54: 3 | D54: 4 | F54: 3 | H54: 7 | I54: 1 | K54: 6 | L54: 32 | M54: 24
A55: ='21MBA221'!A55 -> P18FW21M0040 | B55: ='21MBA221'!B55 -> NIVEDITHA K SWAMY | E55: 4 | F55: 4 | G55: 4 | H55: 8 | I55: 0 | K55: 11 | L55: 37 | M55: 31
A56: ='21MBA221'!A56 -> P18FW21M0041 | B56: ='21MBA221'!B56 -> LIKHITHA L | C56: 4 | D56: 3 | F56: 3 | H56: 7 | I56: 2 | K56: 7 | L56: 33 | M56: 26
A57: ='21MBA221'!A57 -> P18FW21M0042 | B57: ='21MBA221'!B57 -> RAHUL RAM BHAT | C57: 3 | D57: 3 | F57: 4 | H57: 6 | J57: 6 | K57: 12 | L57: 38 | M57: 34
A58: ='21MBA221'!A58 -> P18FW21M0043 | B58: ='21MBA221'!B58 -> AMIT KAMADOLLISHETTARU | C58: 3 | D58: 4 | F58: 3 | H58: 7 | J58: 6 | K58: 11 | L58: 30 | M58: 34
A59: ='21MBA221'!A59 -> P18FW21M0044 | B59: ='21MBA221'!B59 -> POOJARANI TALAWAR | C59: 3 | E59: 3 | F59: 4 | H59: 7 | I59: 2 | K59: 11 | L59: 30 | M59: 30
A60: ='21MBA221'!A60 -> P18FW21M0045 | B60: ='21MBA221'!B60 -> ABHITHA K | D60: 3 | E60: 2 | F60: 3 | H60: 6 | I60: 1 | K60: 9 | L60: 25 | M60: 24
A61: ='21MBA221'!A61 -> P18FW21M0046 | B61: ='21MBA221'!B61 -> S SHREYAS | C61: 2 | D61: 2 | E61: 3 | H61: 6 | J61: 1 | K61: 6 | L61: 27 | M61: 20
A62: ='21MBA221'!A62 -> P18FW21M0047 | B62: ='21MBA221'!B62 -> ABHISHEK SHENOY | C62: 3 | D62: 3 | F62: 3 | H62: 7 | J62: 0 | K62: 9 | L62: 35 | M62: 25
A63: ='21MBA221'!A63 -> P18FW21M0048 | B63: ='21MBA221'!B63 -> B S SUSHEN | C63: 3 | E63: 3 | F63: 3 | H63: 7 | J63: 8 | K63: 11 | L63: 40 | M63: 35
A64: ='21MBA221'!A64 -> P18FW21M0049 | B64: ='21MBA221'!B64 -> PRAJWALA H | C64: 4 | D64: 3 | G64: 2 | H64: 8 | J64: 7 | K64: 11 | L64: 37 | M64: 35
A65: ='21MBA221'!A65 -> P18FW21M0050 | B65: ='21MBA221'!B65 -> VAISHNAVI N | D65: 4 | F65: 3 | G65: 3 | H65: 6 | I65: 8 | K65: 11 | L65: 42 | M65: 35
A66: ='21MBA221'!A66 -> P18FW21M0051 | B66: ='21MBA221'!B66 -> DEEPAK GIRISH KALYANI | C66: 4 | D66: 3 | F66: 3 | H66: 8 | J66: 7 | K66: 12 | L66: 40 | M66: 37
A67: ='21MBA221'!A67 -> P18FW21M0052 | B67: ='21MBA221'!B67 -> ISAAC JESSE K | D67: 3 | E67: 3 | F67: 1 | H67: 6 | J67: 0 | K67: 9 | L67: 22 | M67: 22
A68: ='21MBA221'!A68 -> P18FW21M0053 | B68: ='21MBA221'!B68 -> SUPRIYA GOVIND BELSARE | C68: 4 | D68: 4 | G68: 3 | I68: 3 | J68: 7 | K68: 8 | L68: 32 | M68: 29
A69: ='21MBA221'!A69 -> P18FW21M0054 | B69: ='21MBA221'!B69 -> VINAYAK RAO GAIKWAD K | D69: 3 | E69: 3 | G69: 2 | H69: 1 | J69: 0 | K69: 13 | L69: 27 | M69: 22
A70: ='21MBA221'!A70 -> P18FW21M0055 | B70: ='21MBA221'!B70 -> SUTOPA DEB | C70: 3 | D70: 3 | F70: 2 | H70: 6 | J70: 4 | K70: 9 | L70: 31 | M70: 27
A71: ='21MBA221'!A71 -> P18FW21M0056 | B71: ='21MBA221'!B71 -> M S SUKRUT | C71: 3 | D71: 3 | F71: 4 | H71: 8 | I71: 0 | K71: 10 | L71: AB | M71: 28
A72: ='21MBA221'!A72 -> P18FW21M0057 | B72: ='21MBA221'!B72 -> BHASKARA PRABHU | C72: 3 | D72: 3 | F72: 3 | H72: 6 | J72: 6 | K72: 10 | L72: 33 | M72: 31
A73: ='21MBA221'!A73 -> P18FW21M0058 | B73: ='21MBA221'!B73 -> PRAKASH SHIVAKUMAR | C73: 3 | D73: 3 | F73: 3 | H73: 6 | J73: 5 | K73: 6 | L73: 35 | M73: 26
A74: ='21MBA221'!A74 -> P18FW21M0059 | B74: ='21MBA221'!B74 -> AMOGHA Y G | C74: 1 | D74: 2 | F74: 4 | H74: 5 | J74: 6 | K74: 6 | L74: 29 | M74: 24
A75: ='21MBA221'!A75 -> P18FW21M0060 | B75: ='21MBA221'!B75 -> BHARATH K S | D75: 4 | E75: 3 | G75: 1 | H75: 6 | J75: 7 | K75: 9 | L75: 33 | M75: 30
A76: ='21MBA221'!A76 -> P18FW21M0061 | B76: ='21MBA221'!B76 -> AKANKSH K G | D76: 3 | E76: 0 | F76: 3 | H76: 8 | I76: 5 | K76: 13 | L76: 36 | M76: 32
A77: ='21MBA221'!A77 -> P18FW21M0062 | B77: ='21MBA221'!B77 -> BERNARD FERNANDES | C77: 3 | D77: 3 | E77: 2 | H77: 5 | I77: 0 | K77: 7 | L77: 22 | M77: 20
A78: ='21MBA221'!A78 -> P18FW21M0063 | B78: ='21MBA221'!B78 -> AISHWARYA P | D78: 3 | E78: 4 | F78: 3 | H78: 6 | I78: 1 | K78: 8 | L78: 29 | M78: 25
A79: ='21MBA221'!A79 -> P18FW21M0064 | B79: ='21MBA221'!B79 -> VIOLA PINTO | D79: 3 | E79: 3 | F79: 3 | H79: 7 | I79: 5 | K79: 9 | L79: 34 | M79: 30
A80: ='21MBA221'!A80 -> P18FW21M0065 | B80: ='21MBA221'!B80 -> VARSHA | C80: 3 | F80: 3 | G80: 2 | H80: 5 | J80: 7 | K80: 7 | L80: 33 | M80: 27
A81: ='21MBA221'!A81 -> P18FW21M0066 | B81: ='21MBA221'!B81 -> CHIDRI BALAJI | C81: 4 | D81: 4 | F81: 3 | H81: 6 | I81: 7 | K81: 10 | L81: 37 | M81: =SUM(C81:K81) -> 34
A82: ='21MBA221'!A82 -> P18FW21M0067 | B82: ='21MBA221'!B82 -> GAGANDEEP V N | C82: 0 | D82: 3 | F82: 3 | H82: 4 | J82: 0 | K82: 10 | L82: 33 | M82: 20
A83: ='21MBA221'!A83 -> P18FW21M0068 | B83: ='21MBA221'!B83 -> PRAJWALA | C83: 4 | D83: 4 | F83: 4 | H83: 8 | I83: 7 | K83: 11 | L83: 43 | M83: 38
A84: ='21MBA221'!A84 -> P18FW21M0069 | B84: ='21MBA221'!B84 -> POORNIMA L | C84: 3 | D84: 4 | E84: 4 | I84: 5 | J84: 8 | K84: 12 | L84: 37 | M84: 36
A85: ='21MBA221'!A85 -> P18FW21M0070 | B85: ='21MBA221'!B85 -> SHUBIKSHA S | C85: 4 | D85: 4 | F85: 4 | H85: 7 | J85: 6 | K85: 12 | L85: 37 | M85: 37
A86: ='21MBA221'!A86 -> P18FW21M0071 | B86: ='21MBA221'!B86 -> ANUSHA | C86: 3 | D86: 3 | F86: 3 | H86: 7 | I86: 3 | K86: 10 | L86: 31 | M86: 29
A87: ='21MBA221'!A87 -> P18FW21M0072 | B87: ='21MBA221'!B87 -> P T KIRTI | C87: 3 | D87: 4 | F87: 4 | H87: 8 | J87: 8 | K87: 10 | L87: 29 | M87: 37
A88: ='21MBA221'!A88 -> P18FW21M0073 | B88: ='21MBA221'!B88 -> SAMEEKSHA M P | C88: 4 | F88: 4 | G88: 5 | H88: 6 | I88: 7 | K88: 10 | L88: 37 | M88: 36
A89: ='21MBA221'!A89 -> P18FW21M0074 | B89: ='21MBA221'!B89 -> KAVYAPRIYA J | D89: 3 | E89: 3 | F89: 3 | H89: 6 | J89: 6 | K89: 10 | L89: 33 | M89: 31
A90: ='21MBA221'!A90 -> P18FW21M0075 | B90: ='21MBA221'!B90 -> RAKSHITH R T | C90: 4 | D90: 3 | F90: 3 | H90: 6 | J90: 7 | K90: 9 | L90: 28 | M90: 32
A91: ='21MBA221'!A91 -> P18FW21M0076 | B91: ='21MBA221'!B91 -> SHUBHA R | C91: 4 | D91: 3 | F91: 3 | H91: 7 | J91: 6 | K91: 12 | L91: 38 | M91: 35
A92: ='21MBA221'!A92 -> P18FW21M0077 | B92: ='21MBA221'!B92 -> BASAVARAJ | C92: 3 | D92: 4 | F92: 3 | I92: 4 | J92: 8 | K92: 13 | L92: 39 | M92: 35
A93: ='21MBA221'!A93 -> P18FW21M0078 | B93: ='21MBA221'!B93 -> MANOJ RAKSHATH B S | C93: 3 | D93: 3 | E93: 3.5 | H93: 8 | J93: 8 | K93: 5 | L93: 26 | M93: 31
A94: ='21MBA221'!A94 -> P18FW21M0079 | B94: ='21MBA221'!B94 -> ADITI RANI | C94: 4 | D94: 3 | F94: 3 | H94: 8 | J94: 7 | K94: 8 | L94: 34 | M94: 33
A95: ='21MBA221'!A95 -> P18FW21M0080 | B95: ='21MBA221'!B95 -> DIVYA SHREE M | D95: 4 | E95: 3 | F95: 3.5 | H95: 9 | J95: 8.5 | K95: 10 | L95: 41 | M95: 38
A96: ='21MBA221'!A96 -> P18FW21M0081 | B96: ='21MBA221'!B96 -> VARUN S BHARADWAJ | C96: 4 | D96: 3 | F96: 4 | H96: 8 | J96: 2 | K96: 9 | L96: 38 | M96: 30
A97: ='21MBA221'!A97 -> P18FW21M0082 | B97: ='21MBA221'!B97 -> S KARTHIK | D97: 4 | E97: 3 | F97: 4 | H97: 7 | J97: 7.5 | K97: 9 | L97: 31 | M97: 35
A98: ='21MBA221'!A98 -> P18FW21M0083 | B98: ='21MBA221'!B98 -> NEELAMMA M K | C98: 4 | D98: 3 | F98: 4 | H98: 7 | J98: 2 | K98: 10 | L98: 39 | M98: 30
A99: ='21MBA221'!A99 -> P18FW21M0084 | B99: ='21MBA221'!B99 -> PRAMOD K L | C99: 3 | D99: 3 | F99: 4 | H99: 8 | J99: 7 | K99: 9 | L99: 38 | M99: 34
A100: ='21MBA221'!A100 -> P18FW21M0085 | B100: ='21MBA221'!B100 -> NAMRATHA N | C100: 4 | D100: 4 | F100: 3 | H100: 7 | I100: 5 | K100: 11 | L100: 35 | M100: 34
A101: ='21MBA221'!A101 -> P18FW21M0086 | B101: ='21MBA221'!B101 -> ANVITH KUMAR | C101: 3 | D101: 3 | F101: 3 | H101: 6 | I101: 5 | K101: 10 | L101: 30 | M101: 30
A102: ='21MBA221'!A102 -> P18FW21M0087 | B102: ='21MBA221'!B102 -> BHOOMIKA BHAT | D102: 3 | F102: 4 | G102: 2 | I102: 6 | J102: 7 | K102: 6 | L102: 33 | M102: 28
A103: ='21MBA221'!A103 -> P18FW21M0088 | B103: ='21MBA221'!B103 -> SOUMYA GANAPATI HEGDE | D103: 3.5 | E103: 2 | F103: 4 | H103: 7 | J103: 9 | K103: 8 | L103: 32 | M103: 34
A104: ='21MBA221'!A104 -> P18FW21M0089 | B104: ='21MBA221'!B104 -> SHREEKRISHNA | C104: 3 | D104: 3 | F104: 2 | H104: 7 | J104: 7 | K104: 9 | L104: 34 | M104: 31
A105: ='21MBA221'!A105 -> P18FW21M0090 | B105: ='21MBA221'!B105 -> OLETI SAI SREENITHYA | C105: 4 | D105: 4 | F105: 4 | H105: 7 | I105: 5 | K105: 9 | L105: 35 | M105: 33
A106: ='21MBA221'!A106 -> P18FW21M0091 | B106: ='21MBA221'!B106 -> RAMANUJAM H J | C106: 4 | D106: 4 | F106: 3 | H106: 7 | I106: 0 | K106: 10 | L106: 31 | M106: 28
A107: ='21MBA221'!A107 -> P18FW21M0092 | B107: ='21MBA221'!B107 -> CHAVI JAGADEESH | C107: 4 | F107: 2 | G107: 2 | H107: 6 | J107: 2 | K107: 11 | L107: 29 | M107: 27
A108: ='21MBA221'!A108 -> P18FW21M0093 | B108: ='21MBA221'!B108 -> DESAI JATIN ARUN | C108: 2 | D108: 2 | G108: 2 | H108: 4 | J108: 4 | K108: 7 | L108: 25 | M108: 21
A109: ='21MBA221'!A109 -> P18FW21M0094 | B109: ='21MBA221'!B109 -> MALLESH S | C109: 4 | E109: 2 | F109: 3 | I109: 5 | J109: 6 | K109: 8 | L109: 34 | M109: 28
A110: ='21MBA221'!A110 -> P18FW21M0095 | B110: ='21MBA221'!B110 -> SRINIDHI K | C110: 4 | D110: 3 | F110: 4 | H110: 7 | I110: 7 | K110: 8 | L110: 39 | M110: 33
A111: ='21MBA221'!A111 -> P18FW21M0096 | B111: ='21MBA221'!B111 -> B SHASHANK | D111: 3 | E111: 4 | F111: 4 | H111: 7 | J111: 4 | K111: 10 | L111: 38 | M111: 32
A112: ='21MBA221'!A112 -> P18FW21M0097 | B112: ='21MBA221'!B112 -> YOGASHREE C N | C112: 4 | E112: 4 | F112: 4 | H112: 8 | J112: 8 | K112: 9 | L112: 37 | M112: 37
A113: ='21MBA221'!A113 -> P18FW21M0098 | B113: ='21MBA221'!B113 -> CHARANA T U | C113: 3 | D113: 3 | E113: 3 | H113: 8 | J113: 6 | K113: 11 | L113: 30 | M113: 34
A114: ='21MBA221'!A114 -> P18FW21M0099 | B114: ='21MBA221'!B114 -> NAGARAJ GAJANAN HEGDE | D114: 3 | F114: 4 | G114: 2 | H114: 6 | J114: 7 | K114: 12 | L114: 31 | M114: 34
A115: ='21MBA221'!A115 -> P18FW21M0100 | B115: ='21MBA221'!B115 -> NIKITHA J SHANBHOG | C115: 4 | D115: 4 | E115: 4 | H115: 7 | J115: 7 | K115: 9 | L115: 34 | M115: 35
A116: ='21MBA221'!A116 -> P18FW21M0101 | B116: ='21MBA221'!B116 -> YASHASWINI P | C116: 4 | D116: 3 | F116: 4 | H116: 7 | J116: 7 | K116: 10 | L116: 33 | M116: 35
A117: ='21MBA221'!A117 -> P18FW21M0102 | B117: ='21MBA221'!B117 -> TANUSHREE R | C117: 4 | D117: 3 | F117: 3 | H117: 7 | I117: 1 | K117: 11 | L117: 25 | M117: 29
A118: ='21MBA221'!A118 -> P18FW21M0103 | B118: ='21MBA221'!B118 -> CHETHAN KUMAR V A | D118: 2 | E118: 2 | F118: 3 | I118: 4 | J118: 6 | K118: 10 | L118: 35 | M118: 27
A119: ='21MBA221'!A119 -> P18FW21M0104 | B119: ='21MBA221'!B119 -> NAYAN KUMAR | C119: 3 | E119: 3 | F119: 3 | H119: 6 | J119: 5 | K119: 8 | L119: 34 | M119: 28
A120: ='21MBA221'!A120 -> P18FW21M0105 | B120: ='21MBA221'!B120 -> DEEPAK GOPALAKRISHNAN | C120: 4 | D120: 3 | F120: 3 | H120: 6 | J120: 2 | L120: 23 | M120: 18
A121: ='21MBA221'!A121 -> P18FW21M0106 | B121: ='21MBA221'!B121 -> POORNAPRAJNYA K MANGALVEDI | C121: 4 | D121: 3 | F121: 3 | H121: 8 | I121: 5 | K121: 10 | L121: 33 | M121: 33
A122: ='21MBA221'!A122 -> P18FW21M0107 | B122: ='21MBA221'!B122 -> JENISHA MENEZES | D122: 3 | F122: 4 | G122: 3 | H122: 5 | J122: 5 | K122: 9 | L122: 33 | M122: 29
A123: ='21MBA221'!A123 -> P18FW21M0108 | B123: ='21MBA221'!B123 -> SRAVANI SUNIL MHALSEKAR | D123: 3 | E123: 4 | F123: 3 | H123: 2 | J123: 4 | K123: 9 | L123: 37 | M123: 25
A124: ='21MBA221'!A124 -> P18FW21M0109 | B124: ='21MBA221'!B124 -> M RITISH | C124: 3 | D124: 4 | F124: 0 | H124: 5 | J124: 5 | K124: 3 | L124: 34 | M124: 20
A125: ='21MBA221'!A125 -> P18FW21M0110 | B125: ='21MBA221'!B125 -> DHANYA S SHARMA | C125: 1 | D125: 2 | F125: 3 | H125: 6 | I125: 0 | K125: 10 | L125: 25 | M125: 22
A126: ='21MBA221'!A126 -> P18FW21M0111 | B126: ='21MBA221'!B126 -> PREETHAM D VARMA | C126: 4 | D126: 3 | F126: 3 | H126: 6 | I126: 2 | K126: 9 | L126: 30 | M126: 27
A127: ='21MBA221'!A127 -> P18FW21M0112 | B127: ='21MBA221'!B127 -> DHIRAJKUMAR BELAVADI | D127: 3 | F127: 3 | G127: 4 | H127: 6 | J127: 3 | K127: 10 | L127: 30 | M127: 29
A128: ='21MBA221'!A128 -> P18FW21M0113 | B128: ='21MBA221'!B128 -> FERNANDES RICHA FLORINDA | C128: 4 | E128: 3 | F128: 4 | H128: 6 | I128: 2 | K128: 11 | L128: 33 | M128: 30
A129: ='21MBA221'!A129 -> P18FW21M0114 | B129: ='21MBA221'!B129 -> MEGHA U JOSHI | C129: 4 | D129: 3 | F129: 4 | H129: 4 | I129: 0 | J129: 0 | K129: 11 | L129: 35 | M129: 26
A130: ='21MBA221'!A130 -> P18FW21M0116 | B130: ='21MBA221'!B130 -> DINAH NEETHA NORONHA | C130: 4 | D130: 3 | E130: 3 | H130: 7 | J130: 6 | K130: 9 | L130: 32 | M130: 32
A131: ='21MBA221'!A131 -> P18FW21M0117 | B131: ='21MBA221'!B131 -> HEGDE PAVANA GANAPATHI | C131: 4 | D131: 3 | F131: 4 | H131: 6 | J131: 5 | K131: 12 | L131: 29 | M131: 34
A132: ='21MBA221'!A132 -> P18FW21M0118 | B132: ='21MBA221'!B132 -> LOYSTON CRASTA | D132: 4 | E132: 2 | F132: 3 | H132: 2 | I132: 2 | K132: 10 | L132: 26 | M132: 23
A133: ='21MBA221'!A133 -> P18FW21M0119 | B133: ='21MBA221'!B133 -> GANESH HEGDE | D133: 3 | F133: 3 | G133: 2 | H133: 8 | J133: 8 | K133: 5 | L133: 31 | M133: 29
A134: ='21MBA221'!A134 -> P18FW21M0120 | B134: ='21MBA221'!B134 -> ANUSHA PRAKASH | C134: 4 | D134: 4 | E134: 4 | H134: 8 | I134: 7 | K134: 10 | L134: 33 | M134: 37
A135: ='21MBA221'!A135 -> P18FW21M0121 | B135: ='21MBA221'!B135 -> ANJANA KSHIRASAGAR | C135: 4 | D135: 3 | G135: 3 | H135: 6 | J135: 1 | K135: 10 | L135: 36 | M135: 27
A136: ='21MBA221'!A136 -> P18FW21M0122 | B136: ='21MBA221'!B136 -> JAGADISH SHENOY R | C136: 3 | D136: 3 | E136: 2 | H136: 7 | J136: 6 | K136: 9 | L136: 33 | M136: 30
A137: ='21MBA221'!A137 -> P18FW21M0123 | B137: ='21MBA221'!B137 -> MADHAN KUMAR C S | D137: 3 | F137: 3 | G137: 4 | H137: 8 | J137: 6 | K137: 8 | L137: 30 | M137: 32
A138: ='21MBA221'!A138 -> P18FW21M0124 | B138: ='21MBA221'!B138 -> TEJAS H P | E138: 0 | F138: 3 | G138: 3 | H138: 5 | I138: 5 | K138: 4 | L138: 24 | M138: 20
A139: ='21MBA221'!A139 -> P18FW21M0125 | B139: ='21MBA221'!B139 -> DHANUSH K V | C139: 3 | D139: 3 | G139: 2 | H139: 7 | I139: 6 | K139: 8 | L139: 31 | M139: 29
A140: ='21MBA221'!A140 -> P18FW21M0126 | B140: ='21MBA221'!B140 -> SWAMI SAMIKSHA PUSHPARAJ | C140: 3 | D140: 4.5 | F140: 2.5 | H140: 8 | I140: 7 | K140: 9 | L140: 32 | M140: 34
A141: ='21MBA221'!A141 -> P18FW21M0127 | B141: ='21MBA221'!B141 -> AMITH BHAT | C141: 4 | D141: 4 | F141: 3 | H141: 7 | I141: 0 | J141: 7 | K141: 10 | L141: 39 | M141: 35
A142: ='21MBA221'!A142 -> P18FW21M0128 | B142: ='21MBA221'!B142 -> NUTHANA U | C142: 4 | D142: 3 | F142: 3 | H142: 5 | I142: 6 | K142: 10 | L142: 39 | M142: 31
A143: ='21MBA221'!A143 -> P18FW21M0129 | B143: ='21MBA221'!B143 -> CHETAN SINGH M | D143: 2 | E143: 2 | F143: 2 | I143: 3 | J143: 2 | K143: 10 | L143: 27 | M143: 21
A144: ='21MBA221'!A144 -> P18FW21M0130 | B144: ='21MBA221'!B144 -> KAUSTUBH LACHAPPANAVAR | D144: 2 | E144: 3 | F144: 3 | H144: 7 | J144: 6 | K144: 10 | L144: 29 | M144: 31
A145: ='21MBA221'!A145 -> P18FW21M0131 | B145: ='21MBA221'!B145 -> KSHITIJ P L | C145: 2 | D145: 2 | E145: 3 | F145: 3 | H145: 5 | J145: 5 | K145: 8 | L145: 29 | M145: =SUM(C145:K145) -> 28
A146: ='21MBA221'!A146 -> P18FW21M0132 | B146: ='21MBA221'!B146 -> BHUVANES P | C146: 2 | D146: 3 | F146: 2 | H146: 4 | J146: 5 | K146: 6 | L146: 22 | M146: 22
A147: ='21MBA221'!A147 -> P18FW21M0133 | B147: ='21MBA221'!B147 -> NALASANI VARSHITHA | D147: 4 | E147: 4 | F147: 4 | I147: 7 | J147: 8 | K147: 11 | L147: 38 | M147: 38
A148: ='21MBA221'!A148 -> P18FW21M0134 | B148: ='21MBA221'!B148 -> KOKILA K | D148: 3 | F148: 4 | G148: 3 | H148: 5 | J148: 5 | K148: 13 | L148: 39 | M148: 33
A149: ='21MBA221'!A149 -> P18FW21M0135 | B149: ='21MBA221'!B149 -> KOTHA KEERTHANA | C149: 4 | D149: 4 | F149: 3 | H149: 7 | I149: 8 | K149: 11 | L149: 40 | M149: 37
A150: ='21MBA221'!A150 -> P18FW21M0136 | B150: ='21MBA221'!B150 -> MUCHELI SUBBARAJU | C150: 4 | D150: 4 | E150: 4 | H150: 6 | J150: 3 | K150: 11 | L150: 36 | M150: 32
A151: ='21MBA221'!A151 -> P18FW21M0137 | B151: ='21MBA221'!B151 -> NANDAGOPAL B R | C151: 4 | D151: 4 | F151: 4 | H151: 8 | I151: 7 | K151: 11 | L151: 39 | M151: 38
A152: ='21MBA221'!A152 -> P18FW21M0138 | B152: ='21MBA221'!B152 -> VISHAL SHIVARAJ | C152: 4 | D152: 4 | F152: 3 | H152: 6 | I152: 6 | K152: 11 | L152: 37 | M152: 34
A153: ='21MBA221'!A153 -> P18FW21M0139 | B153: ='21MBA221'!B153 -> SHASHI KUMAR R | C153: 4 | D153: 3 | F153: 3 | H153: 7 | J153: 5 | K153: 11 | L153: 39 | M153: 33
A154: ='21MBA221'!A154 -> P18FW21M0140 | B154: ='21MBA221'!B154 -> YASHWANTH R | C154: 3 | D154: 3 | G154: 1 | H154: 6 | J154: 9 | K154: 9 | L154: 40 | M154: 31
A155: ='21MBA221'!A155 -> P18FW21M0141 | B155: ='21MBA221'!B155 -> M M JABEZ | C155: 3 | D155: 3 | G155: 4 | H155: 7 | J155: 7 | K155: 7 | L155: 36 | M155: 31
A156: ='21MBA221'!A156 -> P18FW21M0142 | B156: ='21MBA221'!B156 -> KALAVALA ABHISHTA | C156: 3 | D156: 3 | F156: 4 | H156: 5 | J156: 7 | K156: 10 | L156: 35 | M156: 32
A157: ='21MBA221'!A157 -> P18FW21M0143 | B157: ='21MBA221'!B157 -> SANKALP V | C157: 3 | D157: 4 | E157: 3 | H157: 7 | I157: 0 | K157: 8 | L157: 33 | M157: 25
A158: ='21MBA221'!A158 -> P18FW21M0144 | B158: ='21MBA221'!B158 -> NAVEEN C | E158: 4 | F158: 3 | G158: 3 | H158: 6 | I158: 5 | K158: 11 | L158: 40 | M158: 32
A159: ='21MBA221'!A159 -> P18FW21M0145 | B159: ='21MBA221'!B159 -> PAVAN KUMAR M | C159: 4 | F159: 3 | G159: 3 | H159: 5 | I159: 0 | K159: 10 | L159: 32 | M159: 25
A160: ='21MBA221'!A160 -> P18FW21M0146 | B160: ='21MBA221'!B160 -> KAPARTHI BHAVANA | C160: 4 | D160: 4 | F160: 3 | H160: 6 | J160: 7 | K160: 12 | L160: 39 | M160: 36
A161: ='21MBA221'!A161 -> P18FW21M0147 | B161: ='21MBA221'!B161 -> MANOJ N S | C161: 4 | D161: 3 | F161: 4 | H161: 7 | I161: 8 | K161: 9 | L161: 40 | M161: 35
A162: ='21MBA221'!A162 -> P18FW21M0149 | B162: ='21MBA221'!B162 -> HEMA S | D162: 3 | F162: 3 | G162: 3 | I162: 6 | J162: 7 | K162: 9 | L162: 36 | M162: 31
A163: ='21MBA221'!A163 -> P18FW21M0150 | B163: ='21MBA221'!B163 -> MADHUSUDAN G | D163: 4 | E163: 1 | F163: 4 | H163: 7 | I163: 4 | K163: 10 | L163: 34 | M163: 30
A164: ='21MBA221'!A164 -> P18FW21M0151 | B164: ='21MBA221'!B164 -> ANNASAGARAM RAGHAVENDRA | C164: 3 | D164: 4 | F164: 3 | H164: 5 | I164: 4 | K164: 10 | L164: 28 | M164: 29
A165: ='21MBA221'!A165 -> P18FW21M0152 | B165: ='21MBA221'!B165 -> SYED MUSSAVEERULLA | D165: 4 | E165: 3 | F165: 3 | H165: 6 | J165: 6 | K165: 10 | L165: 36 | M165: 32
A166: ='21MBA221'!A166 -> P18FW21M0153 | B166: ='21MBA221'!B166 -> SYED SAMEER | C166: 3 | D166: 3 | F166: 4 | H166: 7 | J166: 2 | K166: 10 | L166: 37 | M166: 29
A167: ='21MBA221'!A167 -> P18FW21M0154 | B167: ='21MBA221'!B167 -> RAMANABOINA ANAND KUMAR | C167: 3 | E167: 4 | F167: 3 | H167: 8 | J167: 8 | K167: 13 | L167: 41 | M167: 39
A168: ='21MBA221'!A168 -> P18FW21M0155 | B168: ='21MBA221'!B168 -> SHIVAM GANAPATI ANVEKAR | D168: 3 | E168: 3 | F168: 3 | H168: 7 | I168: 6 | K168: 8 | L168: 34 | M168: 30
A169: ='21MBA221'!A169 -> P18FW21M0156 | B169: ='21MBA221'!B169 -> SHUBHAM SINGH | C169: 4 | D169: 3.5 | F169: 4 | H169: 7 | J169: 6 | K169: 7 | L169: 32 | M169: 32
A170: ='21MBA221'!A170 -> P18FW21M0157 | B170: ='21MBA221'!B170 -> GURU VARUN G | C170: 3 | D170: 3 | G170: 4 | H170: 1.5 | I170: 7 | K170: 8.5 | L170: 26 | M170: 27
A171: ='21MBA221'!A171 -> P18FW21M0158 | B171: ='21MBA221'!B171 -> ABHIJEETH MASHETTY | D171: 2 | E171: 2 | F171: 3 | H171: 6 | J171: 7 | K171: 7 | L171: 36 | M171: 27
A172: ='21MBA221'!A172 -> P18FW21M0159 | B172: ='21MBA221'!B172 -> PRANITH KUMAR S | C172: 3 | D172: 2 | E172: 3 | H172: 8 | I172: 7 | K172: 10 | L172: 38 | M172: 33
A173: ='21MBA221'!A173 -> P18FW21M0160 | B173: ='21MBA221'!B173 -> LIKITHA A | C173: 3 | D173: 3 | E173: 3 | H173: 7 | I173: 4 | K173: 10 | L173: 35 | M173: 30
A174: ='21MBA221'!A174 -> P18FW21M0161 | B174: ='21MBA221'!B174 -> NAVEEN SETTY N A | C174: 4 | D174: 4 | F174: 4 | H174: 7 | I174: 7 | K174: 12 | L174: 38 | M174: 38
A175: ='21MBA221'!A175 -> P18FW21M0162 | B175: ='21MBA221'!B175 -> REHAN FAISAL QADRI | D175: 3 | F175: 3 | G175: 3 | H175: 8 | J175: 7 | K175: 5 | L175: 34 | M175: 29
A176: ='21MBA221'!A176 -> P18FW21M0163 | B176: ='21MBA221'!B176 -> SMITHA M | C176: 4 | D176: 4 | F176: 4 | H176: 7 | J176: 6 | K176: 10 | L176: 37 | M176: 35
A177: ='21MBA221'!A177 -> P18FW21M0164 | B177: ='21MBA221'!B177 -> ANIRUDH K | C177: 3 | D177: 2 | E177: 1 | H177: 2 | J177: 0 | K177: 12 | L177: 22 | M177: 20
A178: ='21MBA221'!A178 -> P18FW21M0165 | B178: ='21MBA221'!B178 -> SALMAN FAISAL QADRI | C178: 4 | F178: 3 | G178: 4 | H178: 6 | J178: 5 | K178: 10 | L178: 36 | M178: 32
A179: ='21MBA221'!A179 -> P18FW21M0166 | B179: ='21MBA221'!B179 -> RAVISH RAMACHANDRA HEGDE | C179: 4 | D179: 3 | E179: 1 | H179: 6 | I179: 6 | K179: 8 | L179: 30 | M179: 28
A180: ='21MBA221'!A180 -> P18FW21M0167 | B180: ='21MBA221'!B180 -> POOJA VALLUR | C180: 4 | D180: 4 | F180: 3 | H180: 8 | I180: 5 | K180: 10 | L180: 36 | M180: 34
A181: ='21MBA221'!A181 -> P18FW21M0169 | B181: ='21MBA221'!B181 -> MAHANTH GOWDA K C | C181: 4 | E181: 4 | F181: 3 | H181: 6 | J181: 6 | K181: 11 | L181: 39 | M181: 34
A182: ='21MBA221'!A182 -> P18FW21M0170 | B182: ='21MBA221'!B182 -> BHUPALI SAURABH PRAKASH | C182: 2 | E182: 2 | F182: 3 | H182: 6 | I182: 6 | K182: 8 | L182: 37 | M182: 27
A183: ='21MBA221'!A183 -> P18FW21M0171 | B183: ='21MBA221'!B183 -> SYED RAIHAN | C183: 3.5 | E183: 3 | F183: 2 | H183: 7 | J183: 5 | K183: 8 | L183: 35 | M183: 29
A184: ='21MBA221'!A184 -> P18FW21M0172 | B184: ='21MBA221'!B184 -> SHRI HARI L | C184: 3 | D184: 2.5 | F184: 3 | H184: 7 | J184: 7 | K184: 7 | L184: 28 | M184: 30
A185: ='21MBA221'!A185 -> P18FW21M0173 | B185: ='21MBA221'!B185 -> SNEHA U | C185: 4 | D185: 3 | F185: 3 | H185: 6 | J185: 0 | K185: 10 | L185: 29 | M185: 26
A186: ='21MBA221'!A186 -> P18FW21M0174 | B186: ='21MBA221'!B186 -> SHAH VINIT SIDDHARTH | D186: 4 | E186: 4 | F186: 3 | H186: 6 | I186: 6 | K186: 10 | L186: 37 | M186: 33
A187: ='21MBA221'!A187 -> P18FW21M0175 | B187: ='21MBA221'!B187 -> NAYANA G C | C187: 4 | D187: 3.5 | G187: 1 | H187: 6 | I187: 6 | K187: 7 | L187: 35 | M187: 28
A188: ='21MBA221'!A188 -> P18FW21M0176 | B188: ='21MBA221'!B188 -> D SURIYA PRIYASREE | D188: 3 | F188: 3 | G188: 1 | H188: 6 | J188: 0 | K188: 9 | L188: 35 | M188: 22
A189: ='21MBA221'!A189 -> P18FW21M0177 | B189: ='21MBA221'!B189 -> SATHYA B NAYAKA | D189: 2 | E189: 2 | F189: 3 | H189: 6 | J189: 5 | K189: 8 | L189: 29 | M189: 26
A190: ='21MBA221'!A190 -> P18FW21M0178 | B190: ='21MBA221'!B190 -> NEHA H V | C190: 3 | D190: 3 | E190: 2 | H190: 5 | J190: 6 | K190: 4 | L190: 30 | M190: 23
A191: ='21MBA221'!A191 -> P18FW21M0179 | B191: ='21MBA221'!B191 -> SAAHIL SRIKANT KULLOLI | C191: 2 | D191: 3 | F191: 3 | H191: 6 | I191: 4 | K191: 8 | L191: 30 | M191: 26
A192: ='21MBA221'!A192 -> P18FW21M0180 | B192: ='21MBA221'!B192 -> SIMRANJIT KAUR | D192: 4 | E192: 3 | F192: 4 | H192: 8 | J192: 8 | K192: 8 | L192: 38 | M192: 35
A193: ='21MBA221'!A193 -> P18FW21M0181 | B193: ='21MBA221'!B193 -> NIRANJAN JANARDHAN HEGDE | D193: 3 | E193: 4 | F193: 3 | H193: 7 | J193: 5 | K193: 11 | L193: 33 | M193: 33
A194: ='21MBA221'!A194 -> P18FW21M0182 | B194: ='21MBA221'!B194 -> TEJAS N | M194: 0
A195: ='21MBA221'!A195 -> P18FW21M0184 | B195: ='21MBA221'!B195 -> AGAMYA A KINHAL | C195: 4 | D195: 3 | F195: 4 | H195: 5 | I195: 0 | K195: 9 | L195: 29 | M195: 25
A196: No. of students attended | C196: =COUNTA(C16:C195) -> 130 | D196: 156 | E196: 68 | F196: 144 | G196: 40 | H196: 169 | I196: 72 | J196: 119 | K196: 178 | L196: =COUNT(L16:L195) -> 178
A197: No. of Students attained CO | C197: =COUNTIF(C16:C195,">"&C15) -> 64 | D197: 50 | E197: 18 | F197: 46 | G197: 10 | H197: 164 | I197: 45 | J197: 52 | K197: 163 | L197: 178
A198: CO Attainment percentage | C198: =ROUND(C197*100/C196,0) -> 49 | D198: 32 | E198: 26 | F198: 32 | G198: 25 | H198: 97 | I198: 63 | J198: 44 | K198: 92 | L198: =ROUND(L197*100/L196,0) -> 100
A199: Level | C199: =IF(C198>=80,"3",IF(C198>=70,"2",IF(C198>=60,"1","-"))) -> - | D199: =IF(D198>=80,"3",IF(D198>=70,"2",IF(D198>=60,"1","-"))) -> - | E199: - | F199: - | G199: - | H199: 3 | I199: 1 | J199: - | K199: 3 | L199: 3
C200: CO1 | D200: CO2 | E200: CO5 | F200: CO4 | G200: CO4 | H200: CO1 | I200: CO2 | J200: CO3 | K200: CO4
H201: Internals | J201: Final CO Attainment
... 6 more rows

Sheet 21MBA121-Attainment
A1: ='21MBA121'!A5:M5 -> Digital Marketing
D3: Internals | F3: Final CO Attainment
C4: CO | D4: Percentage | E4: Level | F4: Percentage | G4: Level
C5: CO1 | D5: ='21MBA121'!H203 -> 73 | E5: ='21MBA121'!I203 -> 2 | F5: ='21MBA121'!J203 -> 92 | G5: ='21MBA121'!K203 -> 3
C6: CO2 | D6: ='21MBA121'!H204 -> 48 | E6: ='21MBA121'!I204 -> - | F6: ='21MBA121'!J204 -> 84 | G6: ='21MBA121'!K204 -> 3
C7: CO3 | D7: ='21MBA121'!H205 -> 44 | E7: ='21MBA121'!I205 -> - | F7: ='21MBA121'!J205 -> 83 | G7: ='21MBA121'!K205 -> 3
C8: CO4 | D8: ='21MBA121'!H206 -> 50 | E8: ='21MBA121'!I206 -> - | F8: ='21MBA121'!J206 -> 85 | G8: ='21MBA121'!K206 -> 3
C9: CO5 | D9: ='21MBA121'!H207 -> 26 | E9: ='21MBA121'!I207 -> - | F9: ='21MBA121'!J207 -> 78 | G9: ='21MBA121'!K207 -> 2
C13: PO1 | D13: PO2 | E13: PO3 | F13: PO4 | G13: PO5 | H13: PO6 | I13: PO7 | J13: PO8 | K13: PO9 | L13: PO10 | M13: PO11
B14: C01 | C14: 3 | D14: 1 | F14: 2 | G14: 1 | H14: 1 | I14: 2 | J14: 3
B15: C02 | C15: 3 | D15: 2 | F15: 2 | G15: 1 | H15: 2 | I15: 3 | J15: 3 | K15: 1
B16: C03 | C16: 3 | D16: 2 | F16: 2 | G16: 1 | I16: 3 | J16: 3 | K16: 1
B17: C04 | C17: 3 | D17: 2 | F17: 2 | G17: 1 | I17: 3 | J17: 3
B18: C05 | C18: 2 | D18: 1 | F18: 1 | H18: 1 | I18: 1 | J18: 3 | K18: 2
C19: LEVEL | D19: 3-Substantial | E19: 2-Moderate | F19: 1-Slight | G19: "-" No Co-relation
A22: Final CO | C22: PO1 | D22: PO2 | E22: PO3 | F22: PO4 | G22: PO5 | H22: PO6 | I22: PO7 | J22: PO8 | K22: PO9 | L22: PO10 | M22: PO11
A23: ATTAINMENT
A24: C01 | B24: =F5 -> 91.90 | C24: =C14*$B$24/3 -> 91.90 | D24: =D14*$B$24/3 -> 30.63 | E24: =E14*$B$24/3 -> 0.00 | F24: 61.27 | G24: 30.63 | H24: 30.63 | I24: 61.27 | J24: 91.90 | K24: 0.00 | L24: 0.00 | M24: 0.00
A25: C02 | B25: =F6 -> 84.25 | C25: =C15*$B$25/3 -> 84.25 | D25: 56.17 | E25: 0.00 | F25: 56.17 | G25: 28.08 | H25: 56.17 | I25: 84.25 | J25: 84.25 | K25: 28.08 | L25: 0.00 | M25: 0.00
A26: C03 | B26: 83.20 | C26: =C16*$B$26/3 -> 83.20 | D26: 55.47 | E26: 0.00 | F26: 55.47 | G26: 27.73 | H26: 0.00 | I26: 83.20 | J26: 83.20 | K26: 27.73 | L26: 0.00 | M26: 0.00
A27: C04 | B27: 84.90 | C27: =C17*$B$27/3 -> 84.90 | D27: 56.60 | E27: 0.00 | F27: 56.60 | G27: 28.30 | H27: 0.00 | I27: 84.90 | J27: 84.90 | K27: 0.00 | L27: 0.00 | M27: 0.00
A28: C05 | B28: 77.80 | C28: =C18*$B$28/3 -> 51.87 | D28: 25.93 | E28: 0.00 | F28: 25.93 | G28: 0.00 | H28: 25.93 | I28: 25.93 | J28: 77.80 | K28: 51.87 | L28: 0.00 | M28: 0.00
A29: Average | C29: =AVERAGE(C24:C28) -> 79.22 | D29: 44.96 | E29: 0.00 | F29: 51.09 | G29: 22.95 | H29: 22.55 | I29: 67.91 | J29: 84.41 | K29: 21.54 | L29: 0.00 | M29: 0.00

Sheet Final Attainment Level
A1: R V Institute of Management
A2: CA 17, 26 Main, 36th Cross, 4th T Block, Jayanagar,
A3: Bengaluru, Karnataka 560 041
A4: Final CO-PO Attainment -Batch-2021-23 2nd Semester
A5: Average
A6: Subject Code | B6: SUBJECT | C6: PO1 | D6: PO2 | E6: PO3 | F6: PO4 | G6: PO5 | H6: PO6 | I6: PO7 | J6: PO8 | K6: PO9 | L6: PO10 | M6: PO11
A7: ='21MBA221'!L6 -> 21MBA221 | B7: ='21MBA221- Attainment'!A1 -> Macro Economics | C7: ='21MBA221- Attainment'!C29 -> 74 | D7: ='21MBA221- Attainment'!D29 -> 86 | E7: ='21MBA221- Attainment'!E29 -> 12 | F7: ='21MBA221- Attainment'!F29 -> 45 | G7: ='21MBA221- Attainment'!G29 -> 0 | H7: ='21MBA221- Attainment'!H29 -> 71 | I7: ='21MBA221- Attainment'!I29 -> 11 | J7: ='21MBA221- Attainment'!J29 -> 23 | K7: ='21MBA221- Attainment'!K29 -> 34 | L7: ='21MBA221- Attainment'!L29 -> 12 | M7: ='21MBA221- Attainment'!M29 -> 39
A8: ='21MBA421'!L6 -> 21MBA421 | B8: ='21MBA421-Attainment'!A1 -> Application of Operations Research in Business | C8: ='21MBA421-Attainment'!C23 -> 20 | D8: ='21MBA421-Attainment'!D23 -> 82 | E8: ='21MBA421-Attainment'!E23 -> 20 | F8: ='21MBA421-Attainment'!F23 -> 0 | G8: ='21MBA421-Attainment'!G23 -> 7 | H8: ='21MBA421-Attainment'!H23 -> 34 | I8: ='21MBA421-Attainment'!I23 -> 82 | J8: ='21MBA421-Attainment'!J23 -> 34 | K8: ='21MBA421-Attainment'!K23 -> 82 | L8: ='21MBA421-Attainment'!L23 -> 20 | M8: ='21MBA421-Attainment'!M23 -> 7
A9: ='21MBA521'!L6 -> 21MBA521 | B9: ='21MBA521-Attainment'!A1 -> Introduction to Business Analytics | C9: ='21MBA521-Attainment'!C28 -> 0 | D9: ='21MBA521-Attainment'!D28 -> 59 | E9: ='21MBA521-Attainment'!E28 -> 12 | F9: ='21MBA521-Attainment'!F28 -> 12 | G9: ='21MBA521-Attainment'!G28 -> 6 | H9: ='21MBA521-Attainment'!H28 -> 41 | I9: ='21MBA521-Attainment'!I28 -> 59 | J9: ='21MBA521-Attainment'!J28 -> 53 | K9: ='21MBA521-Attainment'!K28 -> 53 | L9: ='21MBA521-Attainment'!L28 -> 6 | M9: ='21MBA521-Attainment'!M28 -> 6
A10: ='21MBA621'!L6 -> 21MBA621 | B10: ='21MBA621-Attainment'!A1 -> Human Resource Management | C10: ='21MBA621-Attainment'!B27 -> 82 | D10: ='21MBA621-Attainment'!C27 -> 82 | E10: ='21MBA621-Attainment'!D27 -> 75 | F10: ='21MBA621-Attainment'!E27 -> 62 | G10: ='21MBA621-Attainment'!F27 -> 68 | H10: ='21MBA621-Attainment'!G27 -> 75 | I10: ='21MBA621-Attainment'!H27 -> 75 | J10: ='21MBA621-Attainment'!I27 -> 68 | K10: ='21MBA621-Attainment'!J27 -> 82 | L10: ='21MBA621-Attainment'!K27 -> 41 | M10: ='21MBA621-Attainment'!L27 -> 41
A11: ='21MBA321'!L6 -> 21MBA321 | B11: ='21MBA321-Attainment'!A1 -> Financial Management | C11: ='21MBA321-Attainment'!C27 -> 73 | D11: ='21MBA321-Attainment'!D27 -> 34 | E11: ='21MBA321-Attainment'!E27 -> 10 | F11: ='21MBA321-Attainment'!F27 -> 24 | G11: ='21MBA321-Attainment'!G27 -> 24 | H11: ='21MBA321-Attainment'!H27 -> 34 | I11: ='21MBA321-Attainment'!I27 -> 29 | J11: ='21MBA321-Attainment'!J27 -> 58 | K11: ='21MBA321-Attainment'!K27 -> 39 | L11: ='21MBA321-Attainment'!L27 -> 14 | M11: ='21MBA321-Attainment'!M27 -> 34
A12: ='21MBA222'!L6 -> 21MBA222 | B12: ='21MBA222-Attainment'!A1 -> Entrepreneurship and Start Up Management | C12: ='21MBA222-Attainment'!C28 -> 70 | D12: ='21MBA222-Attainment'!D28 -> 52 | E12: ='21MBA222-Attainment'!E28 -> 63 | F12: ='21MBA222-Attainment'!F28 -> 29 | G12: ='21MBA222-Attainment'!G28 -> 41 | H12: ='21MBA222-Attainment'!H28 -> 87 | I12: ='21MBA222-Attainment'!I28 -> 41 | J12: ='21MBA222-Attainment'!J28 -> 87 | K12: ='21MBA222-Attainment'!K28 -> 75 | L12: ='21MBA222-Attainment'!L28 -> 0 | M12: ='21MBA222-Attainment'!M28 -> 0
A13: ='21MBA121'!L6 -> 21MBA121 | B13: ='21MBA121-Attainment'!A1 -> Digital Marketing | C13: ='21MBA121-Attainment'!C29 -> 79 | D13: ='21MBA121-Attainment'!D29 -> 45 | E13: ='21MBA121-Attainment'!E29 -> 0 | F13: ='21MBA121-Attainment'!F29 -> 51 | G13: ='21MBA121-Attainment'!G29 -> 23 | H13: ='21MBA121-Attainment'!H29 -> 23 | I13: ='21MBA121-Attainment'!I29 -> 68 | J13: ='21MBA121-Attainment'!J29 -> 84 | K13: ='21MBA121-Attainment'!K29 -> 22 | L13: ='21MBA121-Attainment'!L29 -> 0 | M13: ='21MBA121-Attainment'!M29 -> 0

Sheet CO Attainment for all Subjects
A1: RV Institute of Management
A2: Autonomous Institution Affiliated to BCU
A3: MBA Programme I Semester
A4: CO -PO Attainment Level 2021-23 Batch 2nd Semester
A6: ='21MBA221- Attainment'!A1 -> Macro Economics | C6: ='21MBA221- Attainment'!D3 -> Internals | E6: ='21MBA221- Attainment'!F3 -> Final CO Attainment
B7: ='21MBA221- Attainment'!C4 -> CO | C7: ='21MBA221- Attainment'!D4 -> Percentage | D7: ='21MBA221- Attainment'!E4 -> Level | E7: ='21MBA221- Attainment'!F4 -> Percentage | F7: ='21MBA221- Attainment'!G4 -> Level
B8: ='21MBA221- Attainment'!C5 -> CO1 | C8: ='21MBA221- Attainment'!D5 -> 65 | D8: ='21MBA221- Attainment'!E5 -> 1 | E8: ='21MBA221- Attainment'!F5 -> 89 | F8: ='21MBA221- Attainment'!G5 -> 3
B9: ='21MBA221- Attainment'!C6 -> CO2 | C9: ='21MBA221- Attainment'!D6 -> 61 | D9: ='21MBA221- Attainment'!E6 -> 1 | E9: ='21MBA221- Attainment'!F6 -> 88 | F9: ='21MBA221- Attainment'!G6 -> 3
B10: ='21MBA221- Attainment'!C7 -> CO3 | C10: ='21MBA221- Attainment'!D7 -> 48 | D10: ='21MBA221- Attainment'!E7 -> 1 | E10: ='21MBA221- Attainment'!F7 -> 84 | F10: ='21MBA221- Attainment'!G7 -> 3
B11: ='21MBA221- Attainment'!C8 -> CO4 | C11: ='21MBA221- Attainment'!D8 -> 59 | D11: ='21MBA221- Attainment'!E8 -> - | E11: ='21MBA221- Attainment'!F8 -> 87 | F11: ='21MBA221- Attainment'!G8 -> 3
B12: ='21MBA221- Attainment'!C9 -> CO5 | C12: ='21MBA221- Attainment'!D9 -> 39 | D12: ='21MBA221- Attainment'!E9 -> - | E12: ='21MBA221- Attainment'!F9 -> 81 | F12: ='21MBA221- Attainment'!G9 -> 3
A14: ='21MBA421-Attainment'!A1 -> Application of Operations Research in Business | C14: ='21MBA421-Attainment'!D3 -> Internals | E14: ='21MBA421-Attainment'!F3 -> Final CO Attainment
B15: ='21MBA421-Attainment'!C4 -> CO | C15: ='21MBA421-Attainment'!D4 -> Percentage | D15: ='21MBA421-Attainment'!E4 -> Level | E15: ='21MBA421-Attainment'!F4 -> Percentage | F15: ='21MBA421-Attainment'!G4 -> Level
B16: ='21MBA421-Attainment'!C5 -> CO1 | C16: ='21MBA421-Attainment'!D5 -> 69 | D16: ='21MBA421-Attainment'!E5 -> 1 | E16: ='21MBA421-Attainment'!F5 -> 83 | F16: ='21MBA421-Attainment'!G5 -> 3
B17: ='21MBA421-Attainment'!C6 -> CO2 | C17: ='21MBA421-Attainment'!D6 -> 73 | D17: ='21MBA421-Attainment'!E6 -> 2 | E17: ='21MBA421-Attainment'!F6 -> 84 | F17: ='21MBA421-Attainment'!G6 -> 3
B18: ='21MBA421-Attainment'!C7 -> CO3 | C18: ='21MBA421-Attainment'!D7 -> 53 | D18: ='21MBA421-Attainment'!E7 -> - | E18: ='21MBA421-Attainment'!F7 -> 78 | F18: ='21MBA421-Attainment'!G7 -> 2
B19: ='21MBA421-Attainment'!C8 -> CO4 | C19: ='21MBA421-Attainment'!D8 -> 66 | D19: ='21MBA421-Attainment'!E8 -> 1 | E19: ='21MBA421-Attainment'!F8 -> 82 | F19: ='21MBA421-Attainment'!G8 -> 3
A21: ='21MBA521-Attainment'!A1 -> Introduction to Business Analytics | C21: ='21MBA521-Attainment'!D3 -> Internals | E21: ='21MBA521-Attainment'!F3 -> Final CO Attainment
B22: ='21MBA521-Attainment'!C4 -> CO | C22: ='21MBA521-Attainment'!D4 -> Percentage | D22: ='21MBA521-Attainment'!E4 -> Level | E22: ='21MBA521-Attainment'!F4 -> Percentage | F22: ='21MBA521-Attainment'!G4 -> Level
B23: ='21MBA521-Attainment'!C5 -> CO1 | C23: ='21MBA521-Attainment'!D5 -> 73 | D23: ='21MBA521-Attainment'!E5 -> 2 | E23: ='21MBA521-Attainment'!F5 -> 92 | F23: ='21MBA521-Attainment'!G5 -> 3
B24: ='21MBA521-Attainment'!C6 -> CO2 | C24: ='21MBA521-Attainment'!D6 -> 42 | D24: ='21MBA521-Attainment'!E6 -> - | E24: ='21MBA521-Attainment'!F6 -> 83 | F24: ='21MBA521-Attainment'!G6 -> 3
B25: ='21MBA521-Attainment'!C7 -> CO3 | C25: ='21MBA521-Attainment'!D7 -> 58 | D25: ='21MBA521-Attainment'!E7 -> - | E25: ='21MBA521-Attainment'!F7 -> 87 | F25: ='21MBA521-Attainment'!G7 -> 3
B26: ='21MBA521-Attainment'!C8 -> CO4 | C26: ='21MBA521-Attainment'!D8 -> 55 | D26: ='21MBA521-Attainment'!E8 -> - | E26: ='21MBA521-Attainment'!F8 -> 87 | F26: ='21MBA521-Attainment'!G8 -> 3
B27: ='21MBA521-Attainment'!C9 -> CO5 | C27: ='21MBA521-Attainment'!D9 -> 69 | D27: ='21MBA521-Attainment'!E9 -> 1 | E27: ='21MBA521-Attainment'!F9 -> 91 | F27: ='21MBA521-Attainment'!G9 -> 3
A29: ='21MBA621-Attainment'!A1 -> Human Resource Management | C29: ='21MBA621-Attainment'!D3 -> Internals | E29: ='21MBA621-Attainment'!F3 -> Final CO Attainment
B30: ='21MBA621-Attainment'!C4 -> CO | C30: ='21MBA621-Attainment'!D4 -> Percentage | D30: ='21MBA621-Attainment'!E4 -> Level | E30: ='21MBA621-Attainment'!F4 -> Percentage | F30: ='21MBA621-Attainment'!G4 -> Level
B31: ='21MBA621-Attainment'!C5 -> CO1 | C31: ='21MBA621-Attainment'!D5 -> 34 | D31: ='21MBA621-Attainment'!E5 -> - | E31: ='21MBA621-Attainment'!F5 -> 80 | F31: ='21MBA621-Attainment'!G5 -> 2
B32: ='21MBA621-Attainment'!C6 -> CO2 | C32: ='21MBA621-Attainment'!D6 -> 44 | D32: ='21MBA621-Attainment'!E6 -> - | E32: ='21MBA621-Attainment'!F6 -> 83 | F32: ='21MBA621-Attainment'!G6 -> 3
B33: ='21MBA621-Attainment'!C7 -> CO3 | C33: ='21MBA621-Attainment'!D7 -> 51 | D33: ='21MBA621-Attainment'!E7 -> - | E33: ='21MBA621-Attainment'!F7 -> 85 | F33: ='21MBA621-Attainment'!G7 -> 3
B34: ='21MBA621-Attainment'!C8 -> CO4 | C34: ='21MBA621-Attainment'!D8 -> 39 | D34: ='21MBA621-Attainment'!E8 -> - | E34: ='21MBA621-Attainment'!F8 -> 81 | F34: ='21MBA621-Attainment'!G8 -> 3
B35: ='21MBA621-Attainment'!C9 -> CO5 | C35: ='21MBA621-Attainment'!D9 -> 48 | D35: ='21MBA621-Attainment'!E9 -> - | E35: ='21MBA621-Attainment'!F9 -> 84 | F35: ='21MBA621-Attainment'!G9 -> 3
A37: ='21MBA222-Attainment'!A1 -> Entrepreneurship and Start Up Management | C37: ='21MBA222-Attainment'!D3 -> Internals | E37: ='21MBA222-Attainment'!F3 -> Final CO Attainment
B38: ='21MBA222-Attainment'!C4 -> CO | C38: ='21MBA222-Attainment'!D4 -> Percentage | D38: ='21MBA222-Attainment'!E4 -> Level | E38: ='21MBA222-Attainment'!F4 -> Percentage | F38: ='21MBA222-Attainment'!G4 -> Level
B39: ='21MBA222-Attainment'!C5 -> CO1 | C39: ='21MBA222-Attainment'!D5 -> 56 | D39: ='21MBA222-Attainment'!E5 -> - | E39: ='21MBA222-Attainment'!F5 -> 87 | F39: ='21MBA222-Attainment'!G5 -> 3
B40: ='21MBA222-Attainment'!C6 -> CO2 | C40: ='21MBA222-Attainment'!D6 -> 62 | D40: ='21MBA222-Attainment'!E6 -> 1 | E40: ='21MBA222-Attainment'!F6 -> 89 | F40: ='21MBA222-Attainment'!G6 -> 3
B41: ='21MBA222-Attainment'!C7 -> CO3 | C41: ='21MBA222-Attainment'!D7 -> 60 | D41: ='21MBA222-Attainment'!E7 -> 1 | E41: ='21MBA222-Attainment'!F7 -> 88 | F41: ='21MBA222-Attainment'!G7 -> 3
B42: ='21MBA222-Attainment'!C8 -> CO4 | C42: ='21MBA222-Attainment'!D8 -> 48 | D42: ='21MBA222-Attainment'!E8 -> - | E42: ='21MBA222-Attainment'!F8 -> 84 | F42: ='21MBA222-Attainment'!G8 -> 3
B43: ='21MBA222-Attainment'!C9 -> CO5 | C43: ='21MBA222-Attainment'!D9 -> 53 | D43: ='21MBA222-Attainment'!E9 -> - | E43: ='21MBA222-Attainment'!F9 -> 86 | F43: ='21MBA222-Attainment'!G9 -> 3
A45: ='21MBA321-Attainment'!A1 -> Financial Management | C45: ='21MBA321-Attainment'!D3 -> Internals | E45: ='21MBA321-Attainment'!F3 -> Final CO Attainment
B46: ='21MBA321-Attainment'!C4 -> CO | C46: ='21MBA321-Attainment'!D4 -> Percentage | D46: ='21MBA321-Attainment'!E4 -> Level | E46: ='21MBA321-Attainment'!F4 -> Percentage | F46: ='21MBA321-Attainment'!G4 -> Level
B47: ='21MBA321-Attainment'!C5 -> CO1 | C47: ='21MBA321-Attainment'!D5 -> 55 | D47: ='21MBA321-Attainment'!E5 -> - | E47: ='21MBA321-Attainment'!F5 -> 77 | F47: ='21MBA321-Attainment'!G5 -> 2
B48: ='21MBA321-Attainment'!C6 -> CO2 | C48: ='21MBA321-Attainment'!D6 -> 46 | D48: ='21MBA321-Attainment'!E6 -> - | E48: ='21MBA321-Attainment'!F6 -> 74 | F48: ='21MBA321-Attainment'!G6 -> 2
B49: ='21MBA321-Attainment'!C7 -> CO3 | C49: ='21MBA321-Attainment'!D7 -> 37 | D49: ='21MBA321-Attainment'!E7 -> - | E49: ='21MBA321-Attainment'!F7 -> 71 | F49: ='21MBA321-Attainment'!G7 -> 2
B50: ='21MBA321-Attainment'!C8 -> CO4 | C50: ='21MBA321-Attainment'!D8 -> 38 | D50: ='21MBA321-Attainment'!E8 -> - | E50: ='21MBA321-Attainment'!F8 -> 72 | F50: ='21MBA321-Attainment'!G8 -> 2
B51: ='21MBA321-Attainment'!C9 -> CO5 | C51: ='21MBA321-Attainment'!D9 -> 29 | D51: ='21MBA321-Attainment'!E9 -> - | E51: ='21MBA321-Attainment'!F9 -> 69 | F51: ='21MBA321-Attainment'!G9 -> 1
A53: ='21MBA121-Attainment'!A1:G1 -> Digital Marketing | C53: ='21MBA121-Attainment'!D3 -> Internals | E53: ='21MBA121-Attainment'!F3 -> Final CO Attainment
B54: ='21MBA121-Attainment'!C4 -> CO | C54: ='21MBA121-Attainment'!D4 -> Percentage | D54: ='21MBA121-Attainment'!E4 -> Level | E54: ='21MBA121-Attainment'!F4 -> Percentage | F54: ='21MBA121-Attainment'!G4 -> Level
B55: ='21MBA121-Attainment'!C5 -> CO1 | C55: ='21MBA121-Attainment'!D5 -> 73 | D55: ='21MBA121-Attainment'!E5 -> 2 | E55: ='21MBA121-Attainment'!F5 -> 92 | F55: ='21MBA121-Attainment'!G5 -> 3
B56: ='21MBA121-Attainment'!C6 -> CO2 | C56: ='21MBA121-Attainment'!D6 -> 48 | D56: ='21MBA121-Attainment'!E6 -> - | E56: ='21MBA121-Attainment'!F6 -> 84 | F56: ='21MBA121-Attainment'!G6 -> 3
B57: ='21MBA121-Attainment'!C7 -> CO3 | C57: ='21MBA121-Attainment'!D7 -> 44 | D57: ='21MBA121-Attainment'!E7 -> - | E57: ='21MBA121-Attainment'!F7 -> 83 | F57: ='21MBA121-Attainment'!G7 -> 3
B58: ='21MBA121-Attainment'!C8 -> CO4 | C58: ='21MBA121-Attainment'!D8 -> 50 | D58: ='21MBA121-Attainment'!E8 -> - | E58: ='21MBA121-Attainment'!F8 -> 85 | F58: ='21MBA121-Attainment'!G8 -> 3
B59: ='21MBA121-Attainment'!C9 -> CO5 | C59: ='21MBA121-Attainment'!D9 -> 26 | D59: ='21MBA121-Attainment'!E9 -> - | E59: ='21MBA121-Attainment'!F9 -> 78 | F59: ='21MBA121-Attainment'!G9 -> 2
